Workbook

Sheet Global data DD.MM.YY
A1: Snow Pits Dome Fuji 2018/2019 | B1: Snow Stratigraphy, density and temp data
A2: Potential use of the pit SP: Snow Physic R: Radar ST: Satellite MB: Mass Balance | B2: SP
A3: Closest Point on Japanese Traverse | B3: MD364 | D3: Data recorded | F3: YES | G3: NO | H3: Where is it
A4: South position (decimal) | B4: 74.00731 | D4: Snow Stratigraphy | G4: X | H4: on this sheet
A5: East position (decimal) | B5: 42.99695 | D5: Snow SSA | G5: X | H5: here and sheet SSA for details
A6: Altitude (m a.s.l.) | B6: 3300 | D6: Snow Albedo | G6: X | H6: on albedo, just a test, useless
A7: Date (DD.MM.YY) | B7: 30.11.18 | D7: SMP | F7: X | H7: on smp, test also, 5 profiles
A8: Time UTC start | B8: 17:00:00 | D8: Surface snow SSA, density, temp Variability | G8: X | H8: on snow surface variability sheet
A9: Time UTC end | B9: 18:30:00
A10: Observer(s) | B10: JCG
A11: General comments (weather, clouds, other remarks) | B11: Fog on the plateau, visibility of a few km, blue sky above your head, wind below 5 m.1, air temp minus 30 deg, lost of sastrugi, up to 50 cm height, very very hard snow, difficult with the SMP, even with full body weight on it!.
A13: Temperatures:
A14: Air temp 1m [-°C] | B14: 30
A15: Air/snow temp [-°C] (informative)
A16: Snow bottom pit temp [-°C]
A17: General comments on snow pit (surface, sastrugi, others) | B17: very hard, lots of sastrugi, only SMP was done, see the file data, nothing else. Pictures of the field are associated with, GPS waypoints JC 1 to 4
D18: Cutter 100 cc weight | E18: 141 | F18: Cutter 36 cc weight | G18: 111
A19: Total Thickness [cm] | D19: Cutter 250 cc weight
A20: Snow Thickness: | B20: [All distances measured from snow/atmosphere interface, 0 is at the top]
A21: Layer, from top to bottom | B21: Top [cm] | C21: Bottom [cm] | D21: Height top from surface (air snow =0) | E21: Height bottom from surface (air snow = 0) | F21: Depth cm of density measurement | G21: Original weight (cutter + snow) | H21: Density snow kg.m-3 | I21: Depth cm of temperature | J21: Temperature [-°C] | K21: Snow Type 1 | L21: % observation visual | M21: Diameter min [mm] | N21: Diameter max [mm] | O21: Snow Type 2 | P21: % observation visual | Q21: Diameter min [mm] | R21: Diameter max [mm] | S21: SSA m2 kg-1 | T21: Hardness (hand test) | U21: Comments
A22: 1
A23: 2
A24: 3
A25: 5
A26: 6
A27: 7
A28: 8
A29: 9
A30: 10
A31: 11
A32: 12
A33: 13
A34: 14
A35: 15

Sheet SSA Data details
A1: ='Global data DD.MM.YY'!A1 -> Snow Pits Dome Fuji 2018/2019 | B1: SSA data, exported from the ICE Cube software
A2: ='Global data DD.MM.YY'!A2 -> Potential use of the pit SP: Snow Physic R: Radar ST: Satellite MB: Mass Balance | B2: ='Global data DD.MM.YY'!B2 -> SP
A3: ='Global data DD.MM.YY'!A3 -> Closest Point on Japanese Traverse | B3: ='Global data DD.MM.YY'!B3 -> MD364
A4: ='Global data DD.MM.YY'!A4 -> South position (decimal) | B4: ='Global data DD.MM.YY'!B4 -> 74.00731
A5: ='Global data DD.MM.YY'!A5 -> East position (decimal) | B5: ='Global data DD.MM.YY'!B5 -> 42.99695
A6: ='Global data DD.MM.YY'!A6 -> Altitude (m a.s.l.) | B6: ='Global data DD.MM.YY'!B6 -> 3300
A7: ='Global data DD.MM.YY'!A7 -> Date (DD.MM.YY) | B7: ='Global data DD.MM.YY'!B7 -> 30.11.18
A8: ='Global data DD.MM.YY'!A8 -> Time UTC start | B8: ='Global data DD.MM.YY'!B8 -> 17:00:00
A9: ='Global data DD.MM.YY'!A9 -> Time UTC end | B9: ='Global data DD.MM.YY'!B9 -> 0.7708333333
A10: ='Global data DD.MM.YY'!A10 -> Observer(s) | B10: ='Global data DD.MM.YY'!B10 -> JCG
A11: ='Global data DD.MM.YY'!A11 -> General comments (weather, clouds, other remarks)

Sheet SMP Data details
A1: ='Global data DD.MM.YY'!A1 -> Snow Pits Dome Fuji 2018/2019 | B1: SSA data, exported from the ICE Cube software
A2: ='Global data DD.MM.YY'!A2 -> Potential use of the pit SP: Snow Physic R: Radar ST: Satellite MB: Mass Balance | B2: ='Global data DD.MM.YY'!B2 -> SP
A3: ='Global data DD.MM.YY'!A3 -> Closest Point on Japanese Traverse | B3: ='Global data DD.MM.YY'!B3 -> MD364
A4: ='Global data DD.MM.YY'!A4 -> South position (decimal) | B4: ='Global data DD.MM.YY'!B4 -> 74.00731
A5: ='Global data DD.MM.YY'!A5 -> East position (decimal) | B5: ='Global data DD.MM.YY'!B5 -> 42.99695
A6: ='Global data DD.MM.YY'!A6 -> Altitude (m a.s.l.) | B6: ='Global data DD.MM.YY'!B6 -> 3300
A7: ='Global data DD.MM.YY'!A7 -> Date (DD.MM.YY) | B7: ='Global data DD.MM.YY'!B7 -> 30.11.18
A8: ='Global data DD.MM.YY'!A8 -> Time UTC start | B8: ='Global data DD.MM.YY'!B8 -> 17:00:00
A9: ='Global data DD.MM.YY'!A9 -> Time UTC end | B9: ='Global data DD.MM.YY'!B9 -> 18:30:00
A10: ='Global data DD.MM.YY'!A10 -> Observer(s) | B10: ='Global data DD.MM.YY'!B10 -> JCG
A11: ='Global data DD.MM.YY'!A11 -> General comments (weather, clouds, other remarks)
A12: Name and info | B12: Long | C12: Lat | D12: Name and info | E12: Long | F12: Lat | G12: Name and info | H12: Long | I12: Lat | J12: Name and info | K12: Long | L12: Lat | M12: Name and info | N12: Long | O12: Lat | P12: Average density Fuji 2-4-5-6 | Q12: Average SSA Fuji 2-4-5-6
A13: Fuji 10 | D13: Fuji 11 | G13: Fuji 12 | J13: Fuji 13 | M13: Fuji 16 | P13: Fuji 17 | S13: Fuji 22 | V13: Fuji 25 | Y13: Fuji 26 | AB13: Fuji 27 | AE13: Fuji 28 | AH13: Fuji 29 | AK13: Fuji 30 | AN13: Fuji 31 | AQ13: Fuji 33 | AT13: Fuji 34 | AW13: Fuji 35 | BA13: Average area
A14: distance [mm] | B14: P2015_density [kg/m^3] | C14: ssa m2.kg-1 | D14: distance [mm] | E14: P2015_density [kg/m^3] | F14: ssa m2 kg-1 | G14: distance [mm] | H14: P2015_density [kg/m^3] | I14: ssa m2 kg-1 | J14: distance [mm] | K14: P2015_density [kg/m^3] | L14: ssa m2 kg-1 | M14: distance [mm] | N14: P2015_density [kg/m^3] | O14: ssa m2 kg-1 | P14: distance [mm] | Q14: P2015_density [kg/m^3] | R14: ssa m2 kg-1 | S14: distance [mm] | T14: P2015_density [kg/m^3] | U14: ssa m2 kg-1 | V14: distance [mm] | W14: P2015_density [kg/m^3] | X14: ssa m2 kg-1 | Y14: distance [mm] | Z14: P2015_density [kg/m^3] | AA14: ssa m2.kg-1 | AB14: distance [mm] | AC14: P2015_density [kg/m^3] | AD14: ssa m2 kg-1 | AE14: distance [mm] | AF14: P2015_density [kg/m^3] | AG14: ssa m2 kg-1 | AH14: distance [mm] | AI14: P2015_density [kg/m^3] | AJ14: ssa m2 kg-1 | AK14: distance [mm] | AL14: P2015_density [kg/m^3] | AM14: ssa m2 kg-1 | AN14: distance [mm] | AO14: P2015_density [kg/m^3] | AP14: ssa m2 kg-1 | AQ14: distance [mm] | AR14: P2015_density [kg/m^3] | AS14: ssa m2 kg-1 | AT14: distance [mm] | AU14: P2015_density [kg/m^3] | AV14: ssa m2 kg-1 | AW14: distance [mm] | AX14: P2015_density [kg/m^3] | AY14: ssa m2 kg-1 | BA14: distance [mm] | BB14: P2015_density [kg/m^3] | BC14: ssa m2 kg-1 | BD14: density std | BE14: ssa stdv
A15: 0 | B15: 498.6383 | C15: 6.828244275 | D15: 0 | E15: 357.548 | F15: 8.923882225 | G15: 0 | H15: 444.4017 | I15: 8.817339149 | J15: 0 | K15: 393.5988 | L15: 9.009269357 | M15: 0 | N15: 248.8602 | O15: 20.96619411 | P15: 0 | Q15: 413.0432 | R15: 8.753217012 | S15: 0 | T15: 277.1041 | U15: 7.585932388 | V15: 0 | W15: 319.5083 | X15: 9.327262814 | Y15: 0 | Z15: 328.5822 | AA15: 10.34514722 | AB15: 0 | AC15: 282.423 | AD15: 16.44874591 | AE15: 0 | AF15: 454.2139 | AG15: 7.603707743 | AH15: 0 | AI15: 428.5517 | AJ15: 12.77753544 | AK15: 0 | AL15: 368.9314 | AM15: 6.465321701 | AN15: 0 | AO15: 304.4961 | AP15: 13.92344602 | AQ15: 0 | AR15: 428.5038 | AS15: 9.937840785 | AT15: 0 | AU15: 287.3252 | AV15: 8.594547437 | AW15: 0 | AX15: 324.6446 | AY15: 10.56095965 | BA15: =AW15 -> 0 | BB15: =AVERAGE(B15,E15,H15,K15,N15,Q15,T15,W15,Z15,AC15,AF15,AI15,AL15,AO15,AR15,AU15,AX15) -> 362.3749706 | BC15: =AVERAGE(C15,F15,I15,L15,O15,R15,U15,X15,AA15,AD15,AG15,AJ15,AM15,AP15,AS15,AV15,AY15) -> 10.4040349 | BD15: =STDEV(B15,E15,H15,K15,N15,Q15,T15,W15,Z15,AC15,AF15,AI15,AL15,AO15,AR15,AU15,AX15) -> 73.3254265 | BE15: =STDEV(C15,F15,I15,L15,O15,R15,U15,X15,AA15,AD15,AG15,AJ15,AM15,AP15,AS15,AV15,AY15) -> 3.743819166
A16: 1.25 | B16: 402.9542 | C16: 6.321046892 | D16: 1.25 | E16: 399.3713 | F16: 8.299890949 | G16: 1.25 | H16: 462.1719 | I16: 7.630098146 | J16: 1.25 | K16: 426.4678 | L16: 7.938167939 | M16: 1.25 | N16: 247.7148 | O16: 22.38953108 | P16: 1.25 | Q16: 446.2067 | R16: 7.655070883 | S16: 1.25 | T16: 239.0026 | U16: 6.398473282 | V16: 1.25 | W16: 311.4173 | X16: 7.891712105 | Y16: 1.25 | Z16: 318.3053 | AA16: 7.543947655 | AB16: 1.25 | AC16: 290.9673 | AD16: 8.969683751 | AE16: 1.25 | AF16: 442.2999 | AG16: 7.150054526 | AH16: 1.25 | AI16: 432.4302 | AJ16: 12.17797165 | AK16: 1.25 | AL16: 304.2266 | AM16: 6.591384951 | AN16: 1.25 | AO16: 325.8138 | AP16: 10.35169029 | AQ16: 1.25 | AR16: 448.4018 | AS16: 8.768484188 | AT16: 1.25 | AU16: 344.5483 | AV16: 8.244274809 | AW16: 1.25 | AX16: 361.2038 | AY16: 8.797164667 | BA16: =AW16 -> 1.25 | BB16: =AVERAGE(B16,E16,H16,K16,N16,Q16,T16,W16,Z16,AC16,AF16,AI16,AL16,AO16,AR16,AU16,AX16) -> 364.9119765 | BC16: =AVERAGE(C16,F16,I16,L16,O16,R16,U16,X16,AA16,AD16,AG16,AJ16,AM16,AP16,AS16,AV16,AY16) -> 9.00697928 | BD16: =STDEV(B16,E16,H16,K16,N16,Q16,T16,W16,Z16,AC16,AF16,AI16,AL16,AO16,AR16,AU16,AX16) -> 73.20352244 | BE16: =STDEV(C16,F16,I16,L16,O16,R16,U16,X16,AA16,AD16,AG16,AJ16,AM16,AP16,AS16,AV16,AY16) -> 3.739084262
A17: 2.5 | B17: 416.9996 | C17: 6.201526718 | D17: 2.5 | E17: 488.6367 | F17: 8.552453653 | G17: 2.5 | H17: 543.8873 | I17: 6.841439477 | J17: 2.5 | K17: 477.6628 | L17: 6.974154853 | M17: 2.5 | N17: 269.1747 | O17: 14.42006543 | P17: 2.5 | Q17: 539.2213 | R17: 7.530970556 | S17: 2.5 | T17: 471.642 | U17: 6.7695747 | V17: 2.5 | W17: 417.1608 | X17: 7.896619411 | Y17: 2.5 | Z17: 468.25 | AA17: 7.530207197 | AB17: 2.5 | AC17: 366.7725 | AD17: 10.2610687 | AE17: 2.5 | AF17: 490.1371 | AG17: 6.452344602 | AH17: 2.5 | AI17: 445.5148 | AJ17: 11.63391494 | AK17: 2.5 | AL17: 456.2875 | AM17: 8.153326063 | AN17: 2.5 | AO17: 387.6683 | AP17: 11.16270447 | AQ17: 2.5 | AR17: 506.8026 | AS17: 8.742529989 | AT17: 2.5 | AU17: 448.8114 | AV17: 8.89825518 | AW17: 2.5 | AX17: 448.6468 | AY17: 9.515485278 | BA17: =AW17 -> 2.5 | BB17: =AVERAGE(B17,E17,H17,K17,N17,Q17,T17,W17,Z17,AC17,AF17,AI17,AL17,AO17,AR17,AU17,AX17) -> 449.6044824 | BC17: =AVERAGE(C17,F17,I17,L17,O17,R17,U17,X17,AA17,AD17,AG17,AJ17,AM17,AP17,AS17,AV17,AY17) -> 8.678625954 | BD17: =STDEV(B17,E17,H17,K17,N17,Q17,T17,W17,Z17,AC17,AF17,AI17,AL17,AO17,AR17,AU17,AX17) -> 66.33709924 | BE17: =STDEV(C17,F17,I17,L17,O17,R17,U17,X17,AA17,AD17,AG17,AJ17,AM17,AP17,AS17,AV17,AY17) -> 2.174884476
A18: 3.75 | B18: 465.2259 | C18: 6.585823337 | D18: 3.75 | E18: 504.4388 | F18: 8.382551799 | G18: 3.75 | H18: 584.8703 | I18: 6.691603053 | J18: 3.75 | K18: 562.4692 | L18: 6.17393675 | M18: 3.75 | N18: 296.4329 | O18: 21.03642312 | P18: 3.75 | Q18: 555.7933 | R18: 7.07568157 | S18: 3.75 | T18: 581.504 | U18: 6.103707743 | V18: 3.75 | W18: 510.0609 | X18: 7.380697928 | Y18: 3.75 | Z18: 545.387 | AA18: 6.73391494 | AB18: 3.75 | AC18: 416.8471 | AD18: 11.05398037 | AE18: 3.75 | AF18: 586.2367 | AG18: 5.791603053 | AH18: 3.75 | AI18: 458.7531 | AJ18: 10.89651036 | AK18: 3.75 | AL18: 499.5913 | AM18: 8.700109051 | AN18: 3.75 | AO18: 407.4505 | AP18: 11.42508179 | AQ18: 3.75 | AR18: 529.3241 | AS18: 8.763249727 | AT18: 3.75 | AU18: 499.16 | AV18: 8.913522356 | AW18: 3.75 | AX18: 488.2519 | AY18: 9.844711014 | BA18: =AW18 -> 3.75 | BB18: =AVERAGE(B18,E18,H18,K18,N18,Q18,T18,W18,Z18,AC18,AF18,AI18,AL18,AO18,AR18,AU18,AX18) -> 499.5174706 | BC18: =AVERAGE(C18,F18,I18,L18,O18,R18,U18,X18,AA18,AD18,AG18,AJ18,AM18,AP18,AS18,AV18,AY18) -> 8.914888704 | BD18: =STDEV(B18,E18,H18,K18,N18,Q18,T18,W18,Z18,AC18,AF18,AI18,AL18,AO18,AR18,AU18,AX18) -> 75.54121178 | BE18: =STDEV(C18,F18,I18,L18,O18,R18,U18,X18,AA18,AD18,AG18,AJ18,AM18,AP18,AS18,AV18,AY18) -> 3.614064252
A19: 5 | B19: 534.9007 | C19: 6.879825518 | D19: 5 | E19: 479.3579 | F19: 8.649945474 | G19: 5 | H19: 584.9436 | I19: 6.753435115 | J19: 5 | K19: 545.1702 | L19: 6.179934569 | M19: 5 | N19: 291.0577 | O19: 13.67644493 | P19: 5 | Q19: 590.3003 | R19: 6.878407852 | S19: 5 | T19: 547.9185 | U19: 6.035986914 | V19: 5 | W19: 546.3278 | X19: 7.489422028 | Y19: 5 | Z19: 590.9704 | AA19: 6.521810251 | AB19: 5 | AC19: 448.4359 | AD19: 11.67230098 | AE19: 5 | AF19: 615.1896 | AG19: 5.441003272 | AH19: 5 | AI19: 475.9794 | AJ19: 11.58735005 | AK19: 5 | AL19: 485.7505 | AM19: 8.828135224 | AN19: 5 | AO19: 409.3292 | AP19: 12.46543075 | AQ19: 5 | AR19: 536.8381 | AS19: 8.70174482 | AT19: 5 | AU19: 520.6634 | AV19: 8.937731734 | AW19: 5 | AX19: 491.4346 | AY19: 9.680588877 | BA19: =AW19 -> 5 | BB19: =AVERAGE(B19,E19,H19,K19,N19,Q19,T19,W19,Z19,AC19,AF19,AI19,AL19,AO19,AR19,AU19,AX19) -> 511.4451647 | BC19: =AVERAGE(C19,F19,I19,L19,O19,R19,U19,X19,AA19,AD19,AG19,AJ19,AM19,AP19,AS19,AV19,AY19) -> 8.610558727 | BD19: =STDEV(B19,E19,H19,K19,N19,Q19,T19,W19,Z19,AC19,AF19,AI19,AL19,AO19,AR19,AU19,AX19) -> 79.05230336 | BE19: =STDEV(C19,F19,I19,L19,O19,R19,U19,X19,AA19,AD19,AG19,AJ19,AM19,AP19,AS19,AV19,AY19) -> 2.471271833
A20: 6.25 | B20: 547.8621 | C20: 7.142748092 | D20: 6.25 | E20: 485.7241 | F20: 9.942529989 | G20: 6.25 | H20: 593.4702 | I20: 6.834351145 | J20: 6.25 | K20: 533.3755 | L20: 6.244274809 | M20: 6.25 | N20: 307.5628 | O20: 9.592039258 | P20: 6.25 | Q20: 596.46 | R20: 6.729334787 | S20: 6.25 | T20: 529.5064 | U20: 6.603380589 | V20: 6.25 | W20: 534.935 | X20: 7.840676118 | Y20: 6.25 | Z20: 608.2503 | AA20: 6.057251908 | AB20: 6.25 | AC20: 456.6552 | AD20: 12.02922574 | AE20: 6.25 | AF20: 615.2631 | AG20: 5.110032715 | AH20: 6.25 | AI20: 476.1756 | AJ20: 11.62584515 | AK20: 6.25 | AL20: 472.0978 | AM20: 9.472082879 | AN20: 6.25 | AO20: 415.4765 | AP20: 13.90959651 | AQ20: 6.25 | AR20: 539.6855 | AS20: 8.709269357 | AT20: 6.25 | AU20: 522.3424 | AV20: 9.07393675 | AW20: 6.25 | AX20: 500.1976 | AY20: 9.766848419 | BA20: =AW20 -> 6.25 | BB20: =AVERAGE(B20,E20,H20,K20,N20,Q20,T20,W20,Z20,AC20,AF20,AI20,AL20,AO20,AR20,AU20,AX20) -> 513.8258882 | BC20: =AVERAGE(C20,F20,I20,L20,O20,R20,U20,X20,AA20,AD20,AG20,AJ20,AM20,AP20,AS20,AV20,AY20) -> 8.628436718 | BD20: =STDEV(B20,E20,H20,K20,N20,Q20,T20,W20,Z20,AC20,AF20,AI20,AL20,AO20,AR20,AU20,AX20) -> 77.04310258 | BE20: =STDEV(C20,F20,I20,L20,O20,R20,U20,X20,AA20,AD20,AG20,AJ20,AM20,AP20,AS20,AV20,AY20) -> 2.394485517
A21: 7.5 | B21: 530.9254 | C21: 7.770883315 | D21: 7.5 | E21: 489.7213 | F21: 10.28342421 | G21: 7.5 | H21: 532.027 | I21: 6.727044711 | J21: 7.5 | K21: 609.174 | L21: 5.46870229 | M21: 7.5 | N21: 385.7417 | O21: 10.48167939 | P21: 7.5 | Q21: 607.3855 | R21: 6.668484188 | S21: 7.5 | T21: 554.583 | U21: 7.213195202 | V21: 7.5 | W21: 548.7019 | X21: 8.258669575 | Y21: 7.5 | Z21: 636.1387 | AA21: 5.737077426 | AB21: 7.5 | AC21: 453.6071 | AD21: 11.64689204 | AE21: 7.5 | AF21: 655.8398 | AG21: 4.56870229 | AH21: 7.5 | AI21: 479.4392 | AJ21: 11.56368593 | AK21: 7.5 | AL21: 434.6694 | AM21: 9.815812432 | AN21: 7.5 | AO21: 418.8167 | AP21: 13.98058888 | AQ21: 7.5 | AR21: 541.9091 | AS21: 8.627262814 | AT21: 7.5 | AU21: 523.3078 | AV21: 9.13827699 | AW21: 7.5 | AX21: 514.4009 | AY21: 10.00632497 | BA21: =AW21 -> 7.5 | BB21: =AVERAGE(B21,E21,H21,K21,N21,Q21,T21,W21,Z21,AC21,AF21,AI21,AL21,AO21,AR21,AU21,AX21) -> 524.4934412 | BC21: =AVERAGE(C21,F21,I21,L21,O21,R21,U21,X21,AA21,AD21,AG21,AJ21,AM21,AP21,AS21,AV21,AY21) -> 8.703335685 | BD21: =STDEV(B21,E21,H21,K21,N21,Q21,T21,W21,Z21,AC21,AF21,AI21,AL21,AO21,AR21,AU21,AX21) -> 76.03715526 | BE21: =STDEV(C21,F21,I21,L21,O21,R21,U21,X21,AA21,AD21,AG21,AJ21,AM21,AP21,AS21,AV21,AY21) -> 2.514655254
A22: 8.75 | B22: 522.3511 | C22: 7.894111232 | D22: 8.75 | E22: 495.476 | F22: 10.12988004 | G22: 8.75 | H22: 479.4636 | I22: 7.203162486 | J22: 8.75 | K22: 654.149 | L22: 4.980261723 | M22: 8.75 | N22: 430.4123 | O22: 10.63456925 | P22: 8.75 | Q22: 605.8987 | R22: 6.595528899 | S22: 8.75 | T22: 568.6358 | U22: 7.674591058 | V22: 8.75 | W22: 538.5984 | X22: 8.36870229 | Y22: 8.75 | Z22: 644.8931 | AA22: 5.580152672 | AB22: 8.75 | AC22: 458.8486 | AD22: 12.06892039 | AE22: 8.75 | AF22: 671.1108 | AG22: 4.308942203 | AH22: 8.75 | AI22: 472.4697 | AJ22: 11.45387132 | AK22: 8.75 | AL22: 422.5943 | AM22: 10.88833152 | AN22: 8.75 | AO22: 421.9494 | AP22: 13.36303162 | AQ22: 8.75 | AR22: 542.3543 | AS22: 8.519302072 | AT22: 8.75 | AU22: 513.4354 | AV22: 8.844274809 | AW22: 8.75 | AX22: 512.9968 | AY22: 10.06455834 | BA22: =AW22 -> 8.75 | BB22: =AVERAGE(B22,E22,H22,K22,N22,Q22,T22,W22,Z22,AC22,AF22,AI22,AL22,AO22,AR22,AU22,AX22) -> 526.8021941 | BC22: =AVERAGE(C22,F22,I22,L22,O22,R22,U22,X22,AA22,AD22,AG22,AJ22,AM22,AP22,AS22,AV22,AY22) -> 8.739540702 | BD22: =STDEV(B22,E22,H22,K22,N22,Q22,T22,W22,Z22,AC22,AF22,AI22,AL22,AO22,AR22,AU22,AX22) -> 79.72626312 | BE22: =STDEV(C22,F22,I22,L22,O22,R22,U22,X22,AA22,AD22,AG22,AJ22,AM22,AP22,AS22,AV22,AY22) -> 2.555305773
A23: 10 | B23: 518.3247 | C23: 7.774045802 | D23: 10 | E23: 496.4465 | F23: 10.304253 | G23: 10 | H23: 490.9428 | I23: 7.627480916 | J23: 10 | K23: 674.1578 | L23: 4.741330425 | M23: 10 | N23: 459.6518 | O23: 10.52497274 | P23: 10 | Q23: 611.4401 | R23: 6.550708833 | S23: 10 | T23: 561.9226 | U23: 7.737186478 | V23: 10 | W23: 531.7581 | X23: 8.656706652 | Y23: 10 | Z23: 652.3152 | AA23: 5.471864776 | AB23: 10 | AC23: 463.1183 | AD23: 12.33304253 | AE23: 10 | AF23: 689.6052 | AG23: 4.122464558 | AH23: 10 | AI23: 471.4061 | AJ23: 12.01788441 | AK23: 10 | AL23: 414.606 | AM23: 11.62377317 | AN23: 10 | AO23: 428.3705 | AP23: 12.94329335 | AQ23: 10 | AR23: 529.3597 | AS23: 8.579389313 | AT23: 10 | AU23: 507.1876 | AV23: 8.962377317 | AW23: 10 | AX23: 508.139 | AY23: 10.19901854 | BA23: =AW23 -> 10 | BB23: =AVERAGE(B23,E23,H23,K23,N23,Q23,T23,W23,Z23,AC23,AF23,AI23,AL23,AO23,AR23,AU23,AX23) -> 529.9265882 | BC23: =AVERAGE(C23,F23,I23,L23,O23,R23,U23,X23,AA23,AD23,AG23,AJ23,AM23,AP23,AS23,AV23,AY23) -> 8.833517224 | BD23: =STDEV(B23,E23,H23,K23,N23,Q23,T23,W23,Z23,AC23,AF23,AI23,AL23,AO23,AR23,AU23,AX23) -> 82.59720838 | BE23: =STDEV(C23,F23,I23,L23,O23,R23,U23,X23,AA23,AD23,AG23,AJ23,AM23,AP23,AS23,AV23,AY23) -> 2.660999139
A24: 11.25 | B24: 525.0524 | C24: 7.983206107 | D24: 11.25 | E24: 493.1653 | F24: 10.48015267 | G24: 11.25 | H24: 490.9131 | I24: 8.388222465 | J24: 11.25 | K24: 679.4539 | L24: 4.646564885 | M24: 11.25 | N24: 479.1784 | O24: 10.72671756 | P24: 11.25 | Q24: 608.1924 | R24: 6.416248637 | S24: 11.25 | T24: 555.6925 | U24: 7.639803708 | V24: 11.25 | W24: 541.3235 | X24: 8.988004362 | Y24: 11.25 | Z24: 655.7167 | AA24: 5.423664122 | AB24: 11.25 | AC24: 464.7255 | AD24: 12.2257361 | AE24: 11.25 | AF24: 675.5188 | AG24: 4.302508179 | AH24: 11.25 | AI24: 468.4891 | AJ24: 12.36859324 | AK24: 11.25 | AL24: 395.8328 | AM24: 12.01908397 | AN24: 11.25 | AO24: 425.9136 | AP24: 11.31962923 | AQ24: 11.25 | AR24: 533.8367 | AS24: 9.09302072 | AT24: 11.25 | AU24: 501.6393 | AV24: 9.091821156 | AW24: 11.25 | AX24: 503.6778 | AY24: 10.3476554 | BA24: =AW24 -> 11.25 | BB24: =AVERAGE(B24,E24,H24,K24,N24,Q24,T24,W24,Z24,AC24,AF24,AI24,AL24,AO24,AR24,AU24,AX24) -> 529.3130471 | BC24: =AVERAGE(C24,F24,I24,L24,O24,R24,U24,X24,AA24,AD24,AG24,AJ24,AM24,AP24,AS24,AV24,AY24) -> 8.90944897 | BD24: =STDEV(B24,E24,H24,K24,N24,Q24,T24,W24,Z24,AC24,AF24,AI24,AL24,AO24,AR24,AU24,AX24) -> 82.95111629 | BE24: =STDEV(C24,F24,I24,L24,O24,R24,U24,X24,AA24,AD24,AG24,AJ24,AM24,AP24,AS24,AV24,AY24) -> 2.584301287
A25: 12.5 | B25: 502.4017 | C25: 8.372846238 | D25: 12.5 | E25: 494.9328 | F25: 10.34143948 | G25: 12.5 | H25: 520.8635 | I25: 9.383424209 | J25: 12.5 | K25: 683.0352 | L25: 4.594547437 | M25: 12.5 | N25: 492.5547 | O25: 10.89214831 | P25: 12.5 | Q25: 626.6491 | R25: 6.269029444 | S25: 12.5 | T25: 565.8776 | U25: 7.590730643 | V25: 12.5 | W25: 535.5004 | X25: 9.01046892 | Y25: 12.5 | Z25: 658.6892 | AA25: 5.386477644 | AB25: 12.5 | AC25: 441.6596 | AD25: 11.05954198 | AE25: 12.5 | AF25: 662.5567 | AG25: 4.480916031 | AH25: 12.5 | AI25: 469.0539 | AJ25: 12.67110142 | AK25: 12.5 | AL25: 395.2052 | AM25: 13.20370774 | AN25: 12.5 | AO25: 449.8277 | AP25: 11.05528899 | AQ25: 12.5 | AR25: 532.6458 | AS25: 9.242420938 | AT25: 12.5 | AU25: 501.4224 | AV25: 9.452453653 | AW25: 12.5 | AX25: 499.9019 | AY25: 10.50054526 | BA25: =AW25 -> 12.5 | BB25: =AVERAGE(B25,E25,H25,K25,N25,Q25,T25,W25,Z25,AC25,AF25,AI25,AL25,AO25,AR25,AU25,AX25) -> 531.3398471 | BC25: =AVERAGE(C25,F25,I25,L25,O25,R25,U25,X25,AA25,AD25,AG25,AJ25,AM25,AP25,AS25,AV25,AY25) -> 9.029828725 | BD25: =STDEV(B25,E25,H25,K25,N25,Q25,T25,W25,Z25,AC25,AF25,AI25,AL25,AO25,AR25,AU25,AX25) -> 82.72779661 | BE25: =STDEV(C25,F25,I25,L25,O25,R25,U25,X25,AA25,AD25,AG25,AJ25,AM25,AP25,AS25,AV25,AY25) -> 2.626381897
A26: 13.75 | B26: 520.3298 | C26: 9.160523446 | D26: 13.75 | E26: 471.4634 | F26: 9.190621592 | G26: 13.75 | H26: 516.5286 | I26: 9.53827699 | J26: 13.75 | K26: 685.582 | L26: 4.575245365 | M26: 13.75 | N26: 491.4209 | O26: 10.83751363 | P26: 13.75 | Q26: 625.4129 | R26: 6.175463468 | S26: 13.75 | T26: 566.0144 | U26: 7.611450382 | V26: 13.75 | W26: 526.855 | X26: 9.210359869 | Y26: 13.75 | Z26: 657.2805 | AA26: 5.342966194 | AB26: 13.75 | AC26: 413.8932 | AD26: 10.84885496 | AE26: 13.75 | AF26: 666.444 | AG26: 4.530861505 | AH26: 13.75 | AI26: 448.6529 | AJ26: 11.60992366 | AK26: 13.75 | AL26: 375.0464 | AM26: 13.49062159 | AN26: 13.75 | AO26: 465.8329 | AP26: 10.4565976 | AQ26: 13.75 | AR26: 522.3595 | AS26: 9.203162486 | AT26: 13.75 | AU26: 504.8324 | AV26: 9.687350055 | AW26: 13.75 | AX26: 492.0401 | AY26: 10.55528899 | BA26: =AW26 -> 13.75 | BB26: =AVERAGE(B26,E26,H26,K26,N26,Q26,T26,W26,Z26,AC26,AF26,AI26,AL26,AO26,AR26,AU26,AX26) -> 526.4699353 | BC26: =AVERAGE(C26,F26,I26,L26,O26,R26,U26,X26,AA26,AD26,AG26,AJ26,AM26,AP26,AS26,AV26,AY26) -> 8.94265187 | BD26: =STDEV(B26,E26,H26,K26,N26,Q26,T26,W26,Z26,AC26,AF26,AI26,AL26,AO26,AR26,AU26,AX26) -> 88.30718465 | BE26: =STDEV(C26,F26,I26,L26,O26,R26,U26,X26,AA26,AD26,AG26,AJ26,AM26,AP26,AS26,AV26,AY26) -> 2.524854498
A27: 15 | B27: 515.9318 | C27: 9.351254089 | D27: 15 | E27: 485.2206 | F27: 9.296946565 | G27: 15 | H27: 508.7432 | I27: 9.184405671 | J27: 15 | K27: 683.1375 | L27: 4.527153762 | M27: 15 | N27: 478.2275 | O27: 10.61832061 | P27: 15 | Q27: 628.1358 | R27: 6.021592148 | S27: 15 | T27: 570.3053 | U27: 7.357688113 | V27: 15 | W27: 509.6466 | X27: 9.234023991 | Y27: 15 | Z27: 649.8169 | AA27: 5.396619411 | AB27: 15 | AC27: 377.6226 | AD27: 8.973173391 | AE27: 15 | AF27: 673.9693 | AG27: 4.531515812 | AH27: 15 | AI27: 431.1851 | AJ27: 12.00141767 | AK27: 15 | AL27: 375.7854 | AM27: 15.41417666 | AN27: 15 | AO27: 488.1647 | AP27: 10.59727372 | AQ27: 15 | AR27: 519.0436 | AS27: 9.42780807 | AT27: 15 | AU27: 497.6668 | AV27: 9.713740458 | AW27: 15 | AX27: 490.0113 | AY27: 10.67164667 | BA27: =AW27 -> 15 | BB27: =AVERAGE(B27,E27,H27,K27,N27,Q27,T27,W27,Z27,AC27,AF27,AI27,AL27,AO27,AR27,AU27,AX27) -> 522.5067059 | BC27: =AVERAGE(C27,F27,I27,L27,O27,R27,U27,X27,AA27,AD27,AG27,AJ27,AM27,AP27,AS27,AV27,AY27) -> 8.959926872 | BD27: =STDEV(B27,E27,H27,K27,N27,Q27,T27,W27,Z27,AC27,AF27,AI27,AL27,AO27,AR27,AU27,AX27) -> 92.1495842 | BE27: =STDEV(C27,F27,I27,L27,O27,R27,U27,X27,AA27,AD27,AG27,AJ27,AM27,AP27,AS27,AV27,AY27) -> 2.779469039
A28: 16.25 | B28: 506.9118 | C28: 9.32519084 | D28: 16.25 | E28: 509.899 | F28: 9.804798255 | G28: 16.25 | H28: 400.3546 | I28: 7.144601963 | J28: 16.25 | K28: 687.8149 | L28: 4.439912759 | M28: 16.25 | N28: 472.9465 | O28: 10.87568157 | P28: 16.25 | Q28: 629.4596 | R28: 5.978407852 | S28: 16.25 | T28: 580.3005 | U28: 7.262050164 | V28: 16.25 | W28: 493.7093 | X28: 9.62257361 | Y28: 16.25 | Z28: 651.1554 | AA28: 5.467284624 | AB28: 16.25 | AC28: 401.6036 | AD28: 8.010141767 | AE28: 16.25 | AF28: 652.2904 | AG28: 4.721592148 | AH28: 16.25 | AI28: 390.0092 | AJ28: 9.721810251 | AK28: 16.25 | AL28: 361.1536 | AM28: 15.05757906 | AN28: 16.25 | AO28: 487.3842 | AP28: 10.4870229 | AQ28: 16.25 | AR28: 522.7359 | AS28: 9.69476554 | AT28: 16.25 | AU28: 505.8842 | AV28: 10.09454744 | AW28: 16.25 | AX28: 491.3629 | AY28: 10.86303162 | BA28: =AW28 -> 16.25 | BB28: =AVERAGE(B28,E28,H28,K28,N28,Q28,T28,W28,Z28,AC28,AF28,AI28,AL28,AO28,AR28,AU28,AX28) -> 514.4103294 | BC28: =AVERAGE(C28,F28,I28,L28,O28,R28,U28,X28,AA28,AD28,AG28,AJ28,AM28,AP28,AS28,AV28,AY28) -> 8.739470139 | BD28: =STDEV(B28,E28,H28,K28,N28,Q28,T28,W28,Z28,AC28,AF28,AI28,AL28,AO28,AR28,AU28,AX28) -> 98.00587474 | BE28: =STDEV(C28,F28,I28,L28,O28,R28,U28,X28,AA28,AD28,AG28,AJ28,AM28,AP28,AS28,AV28,AY28) -> 2.69531455
A29: 17.5 | B29: 491.896 | C29: 9.502726281 | D29: 17.5 | E29: 508.8273 | F29: 9.26172301 | G29: 17.5 | H29: 518.6398 | I29: 6.514176663 | J29: 17.5 | K29: 689.4851 | L29: 4.46521265 | M29: 17.5 | N29: 467.4972 | O29: 10.97797165 | P29: 17.5 | Q29: 630.8675 | R29: 6.048745911 | S29: 17.5 | T29: 536.3644 | U29: 7.294547437 | V29: 17.5 | W29: 492.0847 | X29: 10.11384951 | Y29: 17.5 | Z29: 650.8565 | AA29: 5.425081788 | AB29: 17.5 | AC29: 492.3639 | AD29: 7.353653217 | AE29: 17.5 | AF29: 644.0377 | AG29: 4.805888768 | AH29: 17.5 | AI29: 393.5739 | AJ29: 8.479825518 | AK29: 17.5 | AL29: 363.7479 | AM29: 17.45539804 | AN29: 17.5 | AO29: 438.9652 | AP29: 9.590948746 | AQ29: 17.5 | AR29: 517.0588 | AS29: 9.528571429 | AT29: 17.5 | AU29: 506.9801 | AV29: 10.14176663 | AW29: 17.5 | AX29: 490.0077 | AY29: 11.0827699 | BA29: =AW29 -> 17.5 | BB29: =AVERAGE(B29,E29,H29,K29,N29,Q29,T29,W29,Z29,AC29,AF29,AI29,AL29,AO29,AR29,AU29,AX29) -> 519.6031588 | BC29: =AVERAGE(C29,F29,I29,L29,O29,R29,U29,X29,AA29,AD29,AG29,AJ29,AM29,AP29,AS29,AV29,AY29) -> 8.708403361 | BD29: =STDEV(B29,E29,H29,K29,N29,Q29,T29,W29,Z29,AC29,AF29,AI29,AL29,AO29,AR29,AU29,AX29) -> 89.10997128 | BE29: =STDEV(C29,F29,I29,L29,O29,R29,U29,X29,AA29,AD29,AG29,AJ29,AM29,AP29,AS29,AV29,AY29) -> 3.097442859
A30: 18.75 | B30: 493.1647 | C30: 9.92606325 | D30: 18.75 | E30: 512.3766 | F30: 8.886804798 | G30: 18.75 | H30: 590.1021 | I30: 6.391494002 | J30: 18.75 | K30: 674.4633 | L30: 4.662813522 | M30: 18.75 | N30: 475.8436 | O30: 11.59225736 | P30: 18.75 | Q30: 615.5257 | R30: 6.208069793 | S30: 18.75 | T30: 546.263 | U30: 8.035441658 | V30: 18.75 | W30: 495.2169 | X30: 10.24089422 | Y30: 18.75 | Z30: 643.4516 | AA30: 5.43740458 | AB30: 18.75 | AC30: 566.2995 | AD30: 6.899236641 | AE30: 18.75 | AF30: 667.7818 | AG30: 4.694438386 | AH30: 18.75 | AI30: 459.1764 | AJ30: 8.123991276 | AK30: 18.75 | AL30: 360.6349 | AM30: 17.07546347 | AN30: 18.75 | AO30: 425.2292 | AP30: 10.63238822 | AQ30: 18.75 | AR30: 516.1292 | AS30: 9.466739368 | AT30: 18.75 | AU30: 504.3144 | AV30: 10.11035987 | AW30: 18.75 | AX30: 489.0069 | AY30: 11.28778626 | BA30: =AW30 -> 18.75 | BB30: =AVERAGE(B30,E30,H30,K30,N30,Q30,T30,W30,Z30,AC30,AF30,AI30,AL30,AO30,AR30,AU30,AX30) -> 531.4694 | BC30: =AVERAGE(C30,F30,I30,L30,O30,R30,U30,X30,AA30,AD30,AG30,AJ30,AM30,AP30,AS30,AV30,AY30) -> 8.80421451 | BD30: =STDEV(B30,E30,H30,K30,N30,Q30,T30,W30,Z30,AC30,AF30,AI30,AL30,AO30,AR30,AU30,AX30) -> 85.95685798 | BE30: =STDEV(C30,F30,I30,L30,O30,R30,U30,X30,AA30,AD30,AG30,AJ30,AM30,AP30,AS30,AV30,AY30) -> 3.100324317
A31: 20 | B31: 496.4067 | C31: 10.10937841 | D31: 20 | E31: 525.2954 | F31: 8.652671756 | G31: 20 | H31: 569.334 | I31: 6.616357688 | J31: 20 | K31: 677.5733 | L31: 4.716466739 | M31: 20 | N31: 468.803 | O31: 11.3525627 | P31: 20 | Q31: 612.8665 | R31: 6.456161396 | S31: 20 | T31: 554.0585 | U31: 8.344274809 | V31: 20 | W31: 481.2204 | X31: 9.010250818 | Y31: 20 | Z31: 621.6497 | AA31: 5.736095965 | AB31: 20 | AC31: 592.7313 | AD31: 6.684514722 | AE31: 20 | AF31: 667.0825 | AG31: 4.727371865 | AH31: 20 | AI31: 522.0893 | AJ31: 7.907197383 | AK31: 20 | AL31: 353.2211 | AM31: 17.05561614 | AN31: 20 | AO31: 395.9085 | AP31: 11.35267176 | AQ31: 20 | AR31: 513.8977 | AS31: 9.631079607 | AT31: 20 | AU31: 503.1655 | AV31: 10.26881134 | AW31: 20 | AX31: 489.977 | AY31: 11.39880044 | BA31: =AW31 -> 20 | BB31: =AVERAGE(B31,E31,H31,K31,N31,Q31,T31,W31,Z31,AC31,AF31,AI31,AL31,AO31,AR31,AU31,AX31) -> 532.0753176 | BC31: =AVERAGE(C31,F31,I31,L31,O31,R31,U31,X31,AA31,AD31,AG31,AJ31,AM31,AP31,AS31,AV31,AY31) -> 8.824722561 | BD31: =STDEV(B31,E31,H31,K31,N31,Q31,T31,W31,Z31,AC31,AF31,AI31,AL31,AO31,AR31,AU31,AX31) -> 86.9533845 | BE31: =STDEV(C31,F31,I31,L31,O31,R31,U31,X31,AA31,AD31,AG31,AJ31,AM31,AP31,AS31,AV31,AY31) -> 3.071540211
A32: 21.25 | B32: 496.8895 | C32: 10.09312977 | D32: 21.25 | E32: 540.0477 | F32: 8.481025082 | G32: 21.25 | H32: 587.1038 | I32: 7.047873501 | J32: 21.25 | K32: 677.0191 | L32: 4.718865867 | M32: 21.25 | N32: 457.7681 | O32: 11.41177754 | P32: 21.25 | Q32: 612.7353 | R32: 6.604798255 | S32: 21.25 | T32: 554.6033 | U32: 8.312977099 | V32: 21.25 | W32: 516.9753 | X32: 8.484732824 | Y32: 21.25 | Z32: 618.9941 | AA32: 6.046892039 | AB32: 21.25 | AC32: 612.7216 | AD32: 6.485932388 | AE32: 21.25 | AF32: 665.8722 | AG32: 4.796619411 | AH32: 21.25 | AI32: 540.0249 | AJ32: 7.456597601 | AK32: 21.25 | AL32: 349.6375 | AM32: 17.80458015 | AN32: 21.25 | AO32: 412.398 | AP32: 13.95572519 | AQ32: 21.25 | AR32: 514.8003 | AS32: 9.939694656 | AT32: 21.25 | AU32: 492.6013 | AV32: 10.06423119 | AW32: 21.25 | AX32: 487.9687 | AY32: 11.29803708 | BA32: =AW32 -> 21.25 | BB32: =AVERAGE(B32,E32,H32,K32,N32,Q32,T32,W32,Z32,AC32,AF32,AI32,AL32,AO32,AR32,AU32,AX32) -> 537.5388647 | BC32: =AVERAGE(C32,F32,I32,L32,O32,R32,U32,X32,AA32,AD32,AG32,AJ32,AM32,AP32,AS32,AV32,AY32) -> 9.000205273 | BD32: =STDEV(B32,E32,H32,K32,N32,Q32,T32,W32,Z32,AC32,AF32,AI32,AL32,AO32,AR32,AU32,AX32) -> 86.97191695 | BE32: =STDEV(C32,F32,I32,L32,O32,R32,U32,X32,AA32,AD32,AG32,AJ32,AM32,AP32,AS32,AV32,AY32) -> 3.357479072
A33: 22.5 | B33: 496.1105 | C33: 9.870665213 | D33: 22.5 | E33: 540.9725 | F33: 8.078735005 | G33: 22.5 | H33: 575.132 | I33: 7.280043621 | J33: 22.5 | K33: 673.8328 | L33: 4.7695747 | M33: 22.5 | N33: 462.5348 | O33: 11.90621592 | P33: 22.5 | Q33: 604.5961 | R33: 6.716357688 | S33: 22.5 | T33: 553.6525 | U33: 8.027371865 | V33: 22.5 | W33: 539.3233 | X33: 8.203162486 | Y33: 22.5 | Z33: 620.859 | AA33: 6.181679389 | AB33: 22.5 | AC33: 601.5714 | AD33: 6.298037077 | AE33: 22.5 | AF33: 672.5181 | AG33: 4.791494002 | AH33: 22.5 | AI33: 567.2022 | AJ33: 6.985932388 | AK33: 22.5 | AL33: 344.7065 | AM33: 17.53827699 | AN33: 22.5 | AO33: 406.6459 | AP33: 14.60785169 | AQ33: 22.5 | AR33: 515.4478 | AS33: 9.962050164 | AT33: 22.5 | AU33: 483.703 | AV33: 10.32475463 | AW33: 22.5 | AX33: 487.8756 | AY33: 11.24820065 | BA33: =AW33 -> 22.5 | BB33: =AVERAGE(B33,E33,H33,K33,N33,Q33,T33,W33,Z33,AC33,AF33,AI33,AL33,AO33,AR33,AU33,AX33) -> 538.0402353 | BC33: =AVERAGE(C33,F33,I33,L33,O33,R33,U33,X33,AA33,AD33,AG33,AJ33,AM33,AP33,AS33,AV33,AY33) -> 8.987670794 | BD33: =STDEV(B33,E33,H33,K33,N33,Q33,T33,W33,Z33,AC33,AF33,AI33,AL33,AO33,AR33,AU33,AX33) -> 87.46784584 | BE33: =STDEV(C33,F33,I33,L33,O33,R33,U33,X33,AA33,AD33,AG33,AJ33,AM33,AP33,AS33,AV33,AY33) -> 3.416848344
A34: 23.75 | B34: 497.36 | C34: 9.894874591 | D34: 23.75 | E34: 556.0555 | F34: 8.025954198 | G34: 23.75 | H34: 575.8161 | I34: 7.613631407 | J34: 23.75 | K34: 672.4465 | L34: 4.803816794 | M34: 23.75 | N34: 456.1118 | O34: 11.908506 | P34: 23.75 | Q34: 604.6016 | R34: 6.723882225 | S34: 23.75 | T34: 558.7218 | U34: 7.839803708 | V34: 23.75 | W34: 552.7163 | X34: 8.11134133 | Y34: 23.75 | Z34: 600.775 | AA34: 6.39825518 | AB34: 23.75 | AC34: 618.7779 | AD34: 5.888440567 | AE34: 23.75 | AF34: 670.6926 | AG34: 4.781897492 | AH34: 23.75 | AI34: 595.4163 | AJ34: 6.80087241 | AK34: 23.75 | AL34: 343.3281 | AM34: 18.35038168 | AN34: 23.75 | AO34: 402.4084 | AP34: 14.85474373 | AQ34: 23.75 | AR34: 506.1401 | AS34: 9.786259542 | AT34: 23.75 | AU34: 491.5577 | AV34: 10.9693566 | AW34: 23.75 | AX34: 487.2624 | AY34: 11.23707743 | BA34: =AW34 -> 23.75 | BB34: =AVERAGE(B34,E34,H34,K34,N34,Q34,T34,W34,Z34,AC34,AF34,AI34,AL34,AO34,AR34,AU34,AX34) -> 540.5993 | BC34: =AVERAGE(C34,F34,I34,L34,O34,R34,U34,X34,AA34,AD34,AG34,AJ34,AM34,AP34,AS34,AV34,AY34) -> 9.058182051 | BD34: =STDEV(B34,E34,H34,K34,N34,Q34,T34,W34,Z34,AC34,AF34,AI34,AL34,AO34,AR34,AU34,AX34) -> 88.9361733 | BE34: =STDEV(C34,F34,I34,L34,O34,R34,U34,X34,AA34,AD34,AG34,AJ34,AM34,AP34,AS34,AV34,AY34) -> 3.599358052
A35: 25 | B35: 485.9602 | C35: 9.957470011 | D35: 25 | E35: 557.1144 | F35: 7.890076336 | G35: 25 | H35: 573.2154 | I35: 7.637840785 | J35: 25 | K35: 670.5692 | L35: 4.797709924 | M35: 25 | N35: 433.5837 | O35: 11.63555071 | P35: 25 | Q35: 595.3015 | R35: 6.69040349 | S35: 25 | T35: 554.0368 | U35: 7.536205016 | V35: 25 | W35: 558.6219 | X35: 7.854852781 | Y35: 25 | Z35: 606.9332 | AA35: 6.584841876 | AB35: 25 | AC35: 641.9777 | AD35: 5.586804798 | AE35: 25 | AF35: 658.2705 | AG35: 4.828898582 | AH35: 25 | AI35: 597.323 | AJ35: 6.613631407 | AK35: 25 | AL35: 344.8807 | AM35: 18.29814613 | AN35: 25 | AO35: 399.4595 | AP35: 14.94732824 | AQ35: 25 | AR35: 502.7586 | AS35: 10.04689204 | AT35: 25 | AU35: 489.1794 | AV35: 11.06074155 | AW35: 25 | AX35: 478.5807 | AY35: 11.10152672 | BA35: =AW35 -> 25 | BB35: =AVERAGE(B35,E35,H35,K35,N35,Q35,T35,W35,Z35,AC35,AF35,AI35,AL35,AO35,AR35,AU35,AX35) -> 538.1039059 | BC35: =AVERAGE(C35,F35,I35,L35,O35,R35,U35,X35,AA35,AD35,AG35,AJ35,AM35,AP35,AS35,AV35,AY35) -> 9.004054141 | BD35: =STDEV(B35,E35,H35,K35,N35,Q35,T35,W35,Z35,AC35,AF35,AI35,AL35,AO35,AR35,AU35,AX35) -> 91.49749189 | BE35: =STDEV(C35,F35,I35,L35,O35,R35,U35,X35,AA35,AD35,AG35,AJ35,AM35,AP35,AS35,AV35,AY35) -> 3.619034413
A36: 26.25 | B36: 471.6303 | C36: 10.28189749 | D36: 26.25 | E36: 554.708 | F36: 7.537513631 | G36: 26.25 | H36: 550.4352 | I36: 7.115049073 | J36: 26.25 | K36: 674.6826 | L36: 4.766630316 | M36: 26.25 | N36: 435.2495 | O36: 12.89869138 | P36: 26.25 | Q36: 586.1241 | R36: 6.884732824 | S36: 26.25 | T36: 567.6656 | U36: 7.206652126 | V36: 26.25 | W36: 574.8691 | X36: 7.828026172 | Y36: 26.25 | Z36: 608.8207 | AA36: 6.590294438 | AB36: 26.25 | AC36: 652.5033 | AD36: 5.506324973 | AE36: 26.25 | AF36: 652.6744 | AG36: 4.8087241 | AH36: 26.25 | AI36: 608.1814 | AJ36: 6.422246456 | AK36: 26.25 | AL36: 343.69 | AM36: 18.51690294 | AN36: 26.25 | AO36: 400.4825 | AP36: 14.76892039 | AQ36: 26.25 | AR36: 503.5913 | AS36: 10.21395856 | AT36: 26.25 | AU36: 487.6283 | AV36: 10.90272628 | AW36: 26.25 | AX36: 471.8766 | AY36: 11.09847328 | BA36: =AW36 -> 26.25 | BB36: =AVERAGE(B36,E36,H36,K36,N36,Q36,T36,W36,Z36,AC36,AF36,AI36,AL36,AO36,AR36,AU36,AX36) -> 537.9301706 | BC36: =AVERAGE(C36,F36,I36,L36,O36,R36,U36,X36,AA36,AD36,AG36,AJ36,AM36,AP36,AS36,AV36,AY36) -> 9.020456732 | BD36: =STDEV(B36,E36,H36,K36,N36,Q36,T36,W36,Z36,AC36,AF36,AI36,AL36,AO36,AR36,AU36,AX36) -> 93.40669988 | BE36: =STDEV(C36,F36,I36,L36,O36,R36,U36,X36,AA36,AD36,AG36,AJ36,AM36,AP36,AS36,AV36,AY36) -> 3.750723525
A37: 27.5 | B37: 458.3198 | C37: 10.73664122 | D37: 27.5 | E37: 569.7709 | F37: 7.203598691 | G37: 27.5 | H37: 581.3588 | I37: 6.462268266 | J37: 27.5 | K37: 665.5354 | L37: 4.902071974 | M37: 27.5 | N37: 436.5984 | O37: 13.18713195 | P37: 27.5 | Q37: 571.1726 | R37: 7.109160305 | S37: 27.5 | T37: 541.8646 | U37: 7.189094875 | V37: 27.5 | W37: 550.3044 | X37: 7.599454744 | Y37: 27.5 | Z37: 608.0938 | AA37: 6.480152672 | AB37: 27.5 | AC37: 652.9785 | AD37: 5.504907306 | AE37: 27.5 | AF37: 665.2097 | AG37: 4.708069793 | AH37: 27.5 | AI37: 611.9726 | AJ37: 6.313304253 | AK37: 27.5 | AL37: 338.7527 | AM37: 18.61439477 | AN37: 27.5 | AO37: 396.8173 | AP37: 12.84907306 | AQ37: 27.5 | AR37: 501.6346 | AS37: 10.39302072 | AT37: 27.5 | AU37: 492.0707 | AV37: 10.94569248 | AW37: 27.5 | AX37: 471.378 | AY37: 11.34023991 | BA37: =AW37 -> 27.5 | BB37: =AVERAGE(B37,E37,H37,K37,N37,Q37,T37,W37,Z37,AC37,AF37,AI37,AL37,AO37,AR37,AU37,AX37) -> 536.1078118 | BC37: =AVERAGE(C37,F37,I37,L37,O37,R37,U37,X37,AA37,AD37,AG37,AJ37,AM37,AP37,AS37,AV37,AY37) -> 8.914016294 | BD37: =STDEV(B37,E37,H37,K37,N37,Q37,T37,W37,Z37,AC37,AF37,AI37,AL37,AO37,AR37,AU37,AX37) -> 94.96107286 | BE37: =STDEV(C37,F37,I37,L37,O37,R37,U37,X37,AA37,AD37,AG37,AJ37,AM37,AP37,AS37,AV37,AY37) -> 3.69423408
A38: 28.75 | B38: 451.7893 | C38: 11.37546347 | D38: 28.75 | E38: 566.5604 | F38: 6.830534351 | G38: 28.75 | H38: 597.3997 | I38: 6.191384951 | J38: 28.75 | K38: 665.1011 | L38: 5.026281352 | M38: 28.75 | N38: 368.5965 | O38: 8.962050164 | P38: 28.75 | Q38: 539.0083 | R38: 7.505125409 | S38: 28.75 | T38: 552.4226 | U38: 7.786150491 | V38: 28.75 | W38: 528.8985 | X38: 7.625736096 | Y38: 28.75 | Z38: 605.3704 | AA38: 6.511123228 | AB38: 28.75 | AC38: 631.7901 | AD38: 5.622682661 | AE38: 28.75 | AF38: 666.6614 | AG38: 4.661613959 | AH38: 28.75 | AI38: 606.6591 | AJ38: 6.407524537 | AK38: 28.75 | AL38: 335.5595 | AM38: 18.47709924 | AN38: 28.75 | AO38: 419.2842 | AP38: 12.0219193 | AQ38: 28.75 | AR38: 503.1409 | AS38: 10.60763359 | AT38: 28.75 | AU38: 490.7448 | AV38: 10.84285714 | AW38: 28.75 | AX38: 478.9275 | AY38: 11.77142857 | BA38: =AW38 -> 28.75 | BB38: =AVERAGE(B38,E38,H38,K38,N38,Q38,T38,W38,Z38,AC38,AF38,AI38,AL38,AO38,AR38,AU38,AX38) -> 529.8773118 | BC38: =AVERAGE(C38,F38,I38,L38,O38,R38,U38,X38,AA38,AD38,AG38,AJ38,AM38,AP38,AS38,AV38,AY38) -> 8.719212265 | BD38: =STDEV(B38,E38,H38,K38,N38,Q38,T38,W38,Z38,AC38,AF38,AI38,AL38,AO38,AR38,AU38,AX38) -> 97.60101468 | BE38: =STDEV(C38,F38,I38,L38,O38,R38,U38,X38,AA38,AD38,AG38,AJ38,AM38,AP38,AS38,AV38,AY38) -> 3.482439086
A39: 30 | B39: 449.405 | C39: 11.64394766 | D39: 30 | E39: 584.5217 | F39: 6.215485278 | G39: 30 | H39: 570.6855 | I39: 6.530970556 | J39: 30 | K39: 666.7417 | L39: 5.050817884 | M39: 30 | N39: 335.386 | O39: 7.289967285 | P39: 30 | Q39: 533.4483 | R39: 8.097928026 | S39: 30 | T39: 539.0522 | U39: 7.795201745 | V39: 30 | W39: 522.1766 | X39: 7.18778626 | Y39: 30 | Z39: 603.9307 | AA39: 6.630861505 | AB39: 30 | AC39: 570.6583 | AD39: 6.141875682 | AE39: 30 | AF39: 683.1668 | AG39: 4.429989095 | AH39: 30 | AI39: 613.2144 | AJ39: 6.534242094 | AK39: 30 | AL39: 337.1549 | AM39: 18.11548528 | AN39: 30 | AO39: 427.3086 | AP39: 11.86194111 | AQ39: 30 | AR39: 489.8035 | AS39: 10.25670665 | AT39: 30 | AU39: 486.382 | AV39: 10.76663032 | AW39: 30 | AX39: 480.115 | AY39: 11.44078517 | BA39: =AW39 -> 30 | BB39: =AVERAGE(B39,E39,H39,K39,N39,Q39,T39,W39,Z39,AC39,AF39,AI39,AL39,AO39,AR39,AU39,AX39) -> 523.1265412 | BC39: =AVERAGE(C39,F39,I39,L39,O39,R39,U39,X39,AA39,AD39,AG39,AJ39,AM39,AP39,AS39,AV39,AY39) -> 8.587683623 | BD39: =STDEV(B39,E39,H39,K39,N39,Q39,T39,W39,Z39,AC39,AF39,AI39,AL39,AO39,AR39,AU39,AX39) -> 99.46524934 | BE39: =STDEV(C39,F39,I39,L39,O39,R39,U39,X39,AA39,AD39,AG39,AJ39,AM39,AP39,AS39,AV39,AY39) -> 3.397672069
A40: 31.25 | B40: 436.5756 | C40: 11.28756816 | D40: 31.25 | E40: 626.0473 | F40: 5.829989095 | G40: 31.25 | H40: 567.501 | I40: 7.100218103 | J40: 31.25 | K40: 664.1509 | L40: 5.013849509 | M40: 31.25 | N40: 484.8858 | O40: 7.157906216 | P40: 31.25 | Q40: 544.1541 | R40: 8.780043621 | S40: 31.25 | T40: 534.1584 | U40: 7.857251908 | V40: 31.25 | W40: 398.092 | X40: 6.374263904 | Y40: 31.25 | Z40: 594.2055 | AA40: 6.66870229 | AB40: 31.25 | AC40: 533.225 | AD40: 6.836423119 | AE40: 31.25 | AF40: 674.2131 | AG40: 4.511559433 | AH40: 31.25 | AI40: 607.8971 | AJ40: 6.393675027 | AK40: 31.25 | AL40: 341.2506 | AM40: 17.92017448 | AN40: 31.25 | AO40: 409.8836 | AP40: 11.5825518 | AQ40: 31.25 | AR40: 483.0769 | AS40: 10.49345692 | AT40: 31.25 | AU40: 486.3488 | AV40: 10.92813522 | AW40: 31.25 | AX40: 478.2537 | AY40: 11.19498364 | BA40: =AW40 -> 31.25 | BB40: =AVERAGE(B40,E40,H40,K40,N40,Q40,T40,W40,Z40,AC40,AF40,AI40,AL40,AO40,AR40,AU40,AX40) -> 521.4070235 | BC40: =AVERAGE(C40,F40,I40,L40,O40,R40,U40,X40,AA40,AD40,AG40,AJ40,AM40,AP40,AS40,AV40,AY40) -> 8.584161909 | BD40: =STDEV(B40,E40,H40,K40,N40,Q40,T40,W40,Z40,AC40,AF40,AI40,AL40,AO40,AR40,AU40,AX40) -> 94.73339546 | BE40: =STDEV(C40,F40,I40,L40,O40,R40,U40,X40,AA40,AD40,AG40,AJ40,AM40,AP40,AS40,AV40,AY40) -> 3.331132472
A41: 32.5 | B41: 424.8666 | C41: 11.79378408 | D41: 32.5 | E41: 624.6923 | F41: 5.867720829 | G41: 32.5 | H41: 557.3174 | I41: 7.589640131 | J41: 32.5 | K41: 659.7973 | L41: 5.019302072 | M41: 32.5 | N41: 517.8468 | O41: 6.753762268 | P41: 32.5 | Q41: 539.1237 | R41: 8.633805889 | S41: 32.5 | T41: 551.3739 | U41: 7.89825518 | V41: 32.5 | W41: 331.127 | X41: 6.626608506 | Y41: 32.5 | Z41: 586.8937 | AA41: 6.894111232 | AB41: 32.5 | AC41: 530.7434 | AD41: 7.565539804 | AE41: 32.5 | AF41: 652.2412 | AG41: 4.849836423 | AH41: 32.5 | AI41: 621.0918 | AJ41: 6.116466739 | AK41: 32.5 | AL41: 341.4963 | AM41: 18.54972737 | AN41: 32.5 | AO41: 380.7897 | AP41: 12.17753544 | AQ41: 32.5 | AR41: 483.6567 | AS41: 10.67655398 | AT41: 32.5 | AU41: 476.3988 | AV41: 10.82486369 | AW41: 32.5 | AX41: 481.9588 | AY41: 11.25016358 | BA41: =AW41 -> 32.5 | BB41: =AVERAGE(B41,E41,H41,K41,N41,Q41,T41,W41,Z41,AC41,AF41,AI41,AL41,AO41,AR41,AU41,AX41) -> 515.3773765 | BC41: =AVERAGE(C41,F41,I41,L41,O41,R41,U41,X41,AA41,AD41,AG41,AJ41,AM41,AP41,AS41,AV41,AY41) -> 8.769863365 | BD41: =STDEV(B41,E41,H41,K41,N41,Q41,T41,W41,Z41,AC41,AF41,AI41,AL41,AO41,AR41,AU41,AX41) -> 101.8027253 | BE41: =STDEV(C41,F41,I41,L41,O41,R41,U41,X41,AA41,AD41,AG41,AJ41,AM41,AP41,AS41,AV41,AY41) -> 3.456035499
A42: 33.75 | B42: 426.5565 | C42: 12.29280262 | D42: 33.75 | E42: 622.8512 | F42: 6.022355507 | G42: 33.75 | H42: 542.1337 | I42: 8.051363141 | J42: 33.75 | K42: 660.1737 | L42: 5.028789531 | M42: 33.75 | N42: 532.6204 | O42: 6.96434024 | P42: 33.75 | Q42: 504.2339 | R42: 7.542529989 | S42: 33.75 | T42: 563.4865 | U42: 7.639258451 | V42: 33.75 | W42: 509.1844 | X42: 8.419411123 | Y42: 33.75 | Z42: 593.1893 | AA42: 7.029770992 | AB42: 33.75 | AC42: 534.1069 | AD42: 8.166848419 | AE42: 33.75 | AF42: 620.2911 | AG42: 5.236095965 | AH42: 33.75 | AI42: 631.3375 | AJ42: 6.024536532 | AK42: 33.75 | AL42: 340.5834 | AM42: 18.38604144 | AN42: 33.75 | AO42: 386.6643 | AP42: 15.15136314 | AQ42: 33.75 | AR42: 484.4853 | AS42: 10.55496183 | AT42: 33.75 | AU42: 480.9429 | AV42: 11.29727372 | AW42: 33.75 | AX42: 488.6646 | AY42: 11.47688113 | BA42: =AW42 -> 33.75 | BB42: =AVERAGE(B42,E42,H42,K42,N42,Q42,T42,W42,Z42,AC42,AF42,AI42,AL42,AO42,AR42,AU42,AX42) -> 524.7944471 | BC42: =AVERAGE(C42,F42,I42,L42,O42,R42,U42,X42,AA42,AD42,AG42,AJ42,AM42,AP42,AS42,AV42,AY42) -> 9.134389634 | BD42: =STDEV(B42,E42,H42,K42,N42,Q42,T42,W42,Z42,AC42,AF42,AI42,AL42,AO42,AR42,AU42,AX42) -> 87.75717646 | BE42: =STDEV(C42,F42,I42,L42,O42,R42,U42,X42,AA42,AD42,AG42,AJ42,AM42,AP42,AS42,AV42,AY42) -> 3.639134485
A43: 35 | B43: 420.0985 | C43: 12.17502726 | D43: 35 | E43: 629.15 | F43: 6.047001091 | G43: 35 | H43: 525.6833 | I43: 8.499890949 | J43: 35 | K43: 654.4255 | L43: 5.051472192 | M43: 35 | N43: 511.7075 | O43: 7.688113413 | P43: 35 | Q43: 449.9016 | R43: 6.743075245 | S43: 35 | T43: 531.0766 | U43: 7.425736096 | V43: 35 | W43: 488.5873 | X43: 8.998364231 | Y43: 35 | Z43: 576.6622 | AA43: 6.90436205 | AB43: 35 | AC43: 534.01 | AD43: 8.761286805 | AE43: 35 | AF43: 602.2218 | AG43: 5.494656489 | AH43: 35 | AI43: 604.5046 | AJ43: 6.168047983 | AK43: 35 | AL43: 341.1116 | AM43: 17.39640131 | AN43: 35 | AO43: 375.7071 | AP43: 15.57230098 | AQ43: 35 | AR43: 493.0639 | AS43: 10.59182116 | AT43: 35 | AU43: 482.1893 | AV43: 11.29727372 | AW43: 35 | AX43: 480.6266 | AY43: 11.11188659 | BA43: =AW43 -> 35 | BB43: =AVERAGE(B43,E43,H43,K43,N43,Q43,T43,W43,Z43,AC43,AF43,AI43,AL43,AO43,AR43,AU43,AX43) -> 511.8074941 | BC43: =AVERAGE(C43,F43,I43,L43,O43,R43,U43,X43,AA43,AD43,AG43,AJ43,AM43,AP43,AS43,AV43,AY43) -> 9.172159856 | BD43: =STDEV(B43,E43,H43,K43,N43,Q43,T43,W43,Z43,AC43,AF43,AI43,AL43,AO43,AR43,AU43,AX43) -> 86.16222352 | BE43: =STDEV(C43,F43,I43,L43,O43,R43,U43,X43,AA43,AD43,AG43,AJ43,AM43,AP43,AS43,AV43,AY43) -> 3.483473236
A44: 36.25 | B44: 420.0631 | C44: 12.35528899 | D44: 36.25 | E44: 623.3755 | F44: 6.122464558 | G44: 36.25 | H44: 521.8441 | I44: 9.058015267 | J44: 36.25 | K44: 652.55 | L44: 5.129225736 | M44: 36.25 | N44: 491.3119 | O44: 8.550163577 | P44: 36.25 | Q44: 368.5771 | R44: 7.089967285 | S44: 36.25 | T44: 525.1052 | U44: 7.939258451 | V44: 36.25 | W44: 494.45 | X44: 9.66259542 | Y44: 36.25 | Z44: 562.8582 | AA44: 7.052889858 | AB44: 36.25 | AC44: 514.3346 | AD44: 8.926717557 | AE44: 36.25 | AF44: 611.7798 | AG44: 5.446346783 | AH44: 36.25 | AI44: 603.2034 | AJ44: 6.441984733 | AK44: 36.25 | AL44: 343.5148 | AM44: 17.71243184 | AN44: 36.25 | AO44: 371.9346 | AP44: 16.38200654 | AQ44: 36.25 | AR44: 496.8103 | AS44: 10.60490731 | AT44: 36.25 | AU44: 475.1863 | AV44: 11.06423119 | AW44: 36.25 | AX44: 476.7502 | AY44: 11.01668484 | BA44: =AW44 -> 36.25 | BB44: =AVERAGE(B44,E44,H44,K44,N44,Q44,T44,W44,Z44,AC44,AF44,AI44,AL44,AO44,AR44,AU44,AX44) -> 503.1558294 | BC44: =AVERAGE(C44,F44,I44,L44,O44,R44,U44,X44,AA44,AD44,AG44,AJ44,AM44,AP44,AS44,AV44,AY44) -> 9.444422349 | BD44: =STDEV(B44,E44,H44,K44,N44,Q44,T44,W44,Z44,AC44,AF44,AI44,AL44,AO44,AR44,AU44,AX44) -> 91.02074907 | BE44: =STDEV(C44,F44,I44,L44,O44,R44,U44,X44,AA44,AD44,AG44,AJ44,AM44,AP44,AS44,AV44,AY44) -> 3.543076984
A45: 37.5 | B45: 421.0204 | C45: 11.28647764 | D45: 37.5 | E45: 622.1301 | F45: 6.217666303 | G45: 37.5 | H45: 519.1033 | I45: 9.429443839 | J45: 37.5 | K45: 663.1333 | L45: 5.08953108 | M45: 37.5 | N45: 480.7617 | O45: 9.354307525 | P45: 37.5 | Q45: 506.4627 | R45: 9.118647764 | S45: 37.5 | T45: 530.2897 | U45: 8.358669575 | V45: 37.5 | W45: 493.0989 | X45: 10.18058888 | Y45: 37.5 | Z45: 569.5851 | AA45: 7.457688113 | AB45: 37.5 | AC45: 498.4095 | AD45: 9.357579062 | AE45: 37.5 | AF45: 607.2055 | AG45: 5.491712105 | AH45: 37.5 | AI45: 616.4832 | AJ45: 6.549509269 | AK45: 37.5 | AL45: 344.2872 | AM45: 18.03860414 | AN45: 37.5 | AO45: 362.2002 | AP45: 16.29640131 | AQ45: 37.5 | AR45: 497.8315 | AS45: 10.42159215 | AT45: 37.5 | AU45: 470.7 | AV45: 11.12540894 | AW45: 37.5 | AX45: 479.6998 | AY45: 11.25136314 | BA45: =AW45 -> 37.5 | BB45: =AVERAGE(B45,E45,H45,K45,N45,Q45,T45,W45,Z45,AC45,AF45,AI45,AL45,AO45,AR45,AU45,AX45) -> 510.7295353 | BC45: =AVERAGE(C45,F45,I45,L45,O45,R45,U45,X45,AA45,AD45,AG45,AJ45,AM45,AP45,AS45,AV45,AY45) -> 9.707364167 | BD45: =STDEV(B45,E45,H45,K45,N45,Q45,T45,W45,Z45,AC45,AF45,AI45,AL45,AO45,AR45,AU45,AX45) -> 87.30956084 | BE45: =STDEV(C45,F45,I45,L45,O45,R45,U45,X45,AA45,AD45,AG45,AJ45,AM45,AP45,AS45,AV45,AY45) -> 3.439153281
A46: 38.75 | B46: 413.3126 | C46: 9.66346783 | D46: 38.75 | E46: 612.9079 | F46: 6.37480916 | G46: 38.75 | H46: 516.3731 | I46: 9.642966194 | J46: 38.75 | K46: 664.5766 | L46: 5.026499455 | M46: 38.75 | N46: 495.6649 | O46: 10.42562704 | P46: 38.75 | Q46: 528.3177 | R46: 8.842966194 | S46: 38.75 | T46: 498.2631 | U46: 8.295747001 | V46: 38.75 | W46: 495.4192 | X46: 10.0525627 | Y46: 38.75 | Z46: 577.3141 | AA46: 7.630643402 | AB46: 38.75 | AC46: 474.0763 | AD46: 9.886150491 | AE46: 38.75 | AF46: 613.0453 | AG46: 5.483097056 | AH46: 38.75 | AI46: 616.386 | AJ46: 6.522900763 | AK46: 38.75 | AL46: 347.0021 | AM46: 17.81352236 | AN46: 38.75 | AO46: 357.6269 | AP46: 17.53664122 | AQ46: 38.75 | AR46: 504.7825 | AS46: 10.50043621 | AT46: 38.75 | AU46: 475.9743 | AV46: 11.76292257 | AW46: 38.75 | AX46: 476.9186 | AY46: 11.22442748 | BA46: =AW46 -> 38.75 | BB46: =AVERAGE(B46,E46,H46,K46,N46,Q46,T46,W46,Z46,AC46,AF46,AI46,AL46,AO46,AR46,AU46,AX46) -> 509.8800706 | BC46: =AVERAGE(C46,F46,I46,L46,O46,R46,U46,X46,AA46,AD46,AG46,AJ46,AM46,AP46,AS46,AV46,AY46) -> 9.805022772 | BD46: =STDEV(B46,E46,H46,K46,N46,Q46,T46,W46,Z46,AC46,AF46,AI46,AL46,AO46,AR46,AU46,AX46) -> 88.24235656 | BE46: =STDEV(C46,F46,I46,L46,O46,R46,U46,X46,AA46,AD46,AG46,AJ46,AM46,AP46,AS46,AV46,AY46) -> 3.55956798
A47: 40 | B47: 424.8882 | C47: 8.142202835 | D47: 40 | E47: 610.0718 | F47: 6.542420938 | G47: 40 | H47: 519.6475 | I47: 9.756379498 | J47: 40 | K47: 668.1119 | L47: 4.944492912 | M47: 40 | N47: 490.3187 | O47: 10.72137405 | P47: 40 | Q47: 506.5995 | R47: 8.460196292 | S47: 40 | T47: 498.8522 | U47: 8.972300981 | V47: 40 | W47: 496.3132 | X47: 9.323773173 | Y47: 40 | Z47: 574.1525 | AA47: 7.554852781 | AB47: 40 | AC47: 473.7849 | AD47: 10.68069793 | AE47: 40 | AF47: 621.7151 | AG47: 5.323991276 | AH47: 40 | AI47: 603.8025 | AJ47: 6.530207197 | AK47: 40 | AL47: 348.8655 | AM47: 17.50774264 | AN47: 40 | AO47: 354.7055 | AP47: 18.57001091 | AQ47: 40 | AR47: 496.4386 | AS47: 10.50610687 | AT47: 40 | AU47: 473.553 | AV47: 11.74776445 | AW47: 40 | AX47: 474.2247 | AY47: 11.54612868 | BA47: =AW47 -> 40 | BB47: =AVERAGE(B47,E47,H47,K47,N47,Q47,T47,W47,Z47,AC47,AF47,AI47,AL47,AO47,AR47,AU47,AX47) -> 508.0026647 | BC47: =AVERAGE(C47,F47,I47,L47,O47,R47,U47,X47,AA47,AD47,AG47,AJ47,AM47,AP47,AS47,AV47,AY47) -> 9.813567259 | BD47: =STDEV(B47,E47,H47,K47,N47,Q47,T47,W47,Z47,AC47,AF47,AI47,AL47,AO47,AR47,AU47,AX47) -> 87.52594487 | BE47: =STDEV(C47,F47,I47,L47,O47,R47,U47,X47,AA47,AD47,AG47,AJ47,AM47,AP47,AS47,AV47,AY47) -> 3.713968208
A48: 41.25 | B48: 493.0299 | C48: 7.445147219 | D48: 41.25 | E48: 613.8248 | F48: 6.659869138 | G48: 41.25 | H48: 518.7512 | I48: 9.472955289 | J48: 41.25 | K48: 667.5187 | L48: 4.958015267 | M48: 41.25 | N48: 490.6983 | O48: 11.05648855 | P48: 41.25 | Q48: 467.9393 | R48: 9.084514722 | S48: 41.25 | T48: 513.7289 | U48: 9.472082879 | V48: 41.25 | W48: 513.9462 | X48: 8.880916031 | Y48: 41.25 | Z48: 574.7328 | AA48: 7.376990185 | AB48: 41.25 | AC48: 455.1164 | AD48: 11.01014177 | AE48: 41.25 | AF48: 625.4016 | AG48: 5.187131952 | AH48: 41.25 | AI48: 594.9523 | AJ48: 6.667284624 | AK48: 41.25 | AL48: 348.6088 | AM48: 17.03664122 | AN48: 41.25 | AO48: 355.0126 | AP48: 17.87044711 | AQ48: 41.25 | AR48: 497.1331 | AS48: 10.83075245 | AT48: 41.25 | AU48: 464.7674 | AV48: 11.33162486 | AW48: 41.25 | AX48: 469.8029 | AY48: 11.42355507 | BA48: =AW48 -> 41.25 | BB48: =AVERAGE(B48,E48,H48,K48,N48,Q48,T48,W48,Z48,AC48,AF48,AI48,AL48,AO48,AR48,AU48,AX48) -> 509.7038353 | BC48: =AVERAGE(C48,F48,I48,L48,O48,R48,U48,X48,AA48,AD48,AG48,AJ48,AM48,AP48,AS48,AV48,AY48) -> 9.750856373 | BD48: =STDEV(B48,E48,H48,K48,N48,Q48,T48,W48,Z48,AC48,AF48,AI48,AL48,AO48,AR48,AU48,AX48) -> 86.51534368 | BE48: =STDEV(C48,F48,I48,L48,O48,R48,U48,X48,AA48,AD48,AG48,AJ48,AM48,AP48,AS48,AV48,AY48) -> 3.570124516
A49: 42.5 | B49: 543.7582 | C49: 6.762268266 | D49: 42.5 | E49: 608.5139 | F49: 6.681788441 | G49: 42.5 | H49: 519.0428 | I49: 8.996074155 | J49: 42.5 | K49: 667.8355 | L49: 4.982224646 | M49: 42.5 | N49: 486.7371 | O49: 10.70065431 | P49: 42.5 | Q49: 463.8765 | R49: 10.11166848 | S49: 42.5 | T49: 498.8755 | U49: 9.500654308 | V49: 42.5 | W49: 526.3344 | X49: 9.029770992 | Y49: 42.5 | Z49: 581.9326 | AA49: 7.037949836 | AB49: 42.5 | AC49: 446.8328 | AD49: 11.93729553 | AE49: 42.5 | AF49: 621.756 | AG49: 5.089858233 | AH49: 42.5 | AI49: 601.5344 | AJ49: 6.68865867 | AK49: 42.5 | AL49: 351.0659 | AM49: 17.36357688 | AN49: 42.5 | AO49: 360.7317 | AP49: 16.67088332 | AQ49: 42.5 | AR49: 495.6344 | AS49: 10.504253 | AT49: 42.5 | AU49: 464.0311 | AV49: 11.57775354 | AW49: 42.5 | AX49: 467.9866 | AY49: 11.49651036 | BA49: =AW49 -> 42.5 | BB49: =AVERAGE(B49,E49,H49,K49,N49,Q49,T49,W49,Z49,AC49,AF49,AI49,AL49,AO49,AR49,AU49,AX49) -> 512.1458471 | BC49: =AVERAGE(C49,F49,I49,L49,O49,R49,U49,X49,AA49,AD49,AG49,AJ49,AM49,AP49,AS49,AV49,AY49) -> 9.713637822 | BD49: =STDEV(B49,E49,H49,K49,N49,Q49,T49,W49,Z49,AC49,AF49,AI49,AL49,AO49,AR49,AU49,AX49) -> 86.77460137 | BE49: =STDEV(C49,F49,I49,L49,O49,R49,U49,X49,AA49,AD49,AG49,AJ49,AM49,AP49,AS49,AV49,AY49) -> 3.529224331
A50: 43.75 | B50: 586.6426 | C50: 6.347110142 | D50: 43.75 | E50: 610.4604 | F50: 6.604034896 | G50: 43.75 | H50: 531.9961 | I50: 8.510141767 | J50: 43.75 | K50: 659.4894 | L50: 5.037186478 | M50: 43.75 | N50: 494.8665 | O50: 10.52028353 | P50: 43.75 | Q50: 475.5601 | R50: 10.9348964 | S50: 43.75 | T50: 486.4877 | U50: 9.853326063 | V50: 43.75 | W50: 525.1221 | X50: 9.005343511 | Y50: 43.75 | Z50: 588.5052 | AA50: 7.011886587 | AB50: 43.75 | AC50: 441.1155 | AD50: 12.68920393 | AE50: 43.75 | AF50: 603.5416 | AG50: 5.172300981 | AH50: 43.75 | AI50: 596.6354 | AJ50: 6.574918212 | AK50: 43.75 | AL50: 350.839 | AM50: 17.10261723 | AN50: 43.75 | AO50: 370.4636 | AP50: 15.51788441 | AQ50: 43.75 | AR50: 497.2966 | AS50: 10.46226827 | AT50: 43.75 | AU50: 466.7971 | AV50: 11.99585605 | AW50: 43.75 | AX50: 475.248 | AY50: 11.91613959 | BA50: =AW50 -> 43.75 | BB50: =AVERAGE(B50,E50,H50,K50,N50,Q50,T50,W50,Z50,AC50,AF50,AI50,AL50,AO50,AR50,AU50,AX50) -> 515.3568765 | BC50: =AVERAGE(C50,F50,I50,L50,O50,R50,U50,X50,AA50,AD50,AG50,AJ50,AM50,AP50,AS50,AV50,AY50) -> 9.720905767 | BD50: =STDEV(B50,E50,H50,K50,N50,Q50,T50,W50,Z50,AC50,AF50,AI50,AL50,AO50,AR50,AU50,AX50) -> 85.03975332 | BE50: =STDEV(C50,F50,I50,L50,O50,R50,U50,X50,AA50,AD50,AG50,AJ50,AM50,AP50,AS50,AV50,AY50) -> 3.468773338
A51: 45 | B51: 612.9818 | C51: 6.206434024 | D51: 45 | E51: 606.5859 | F51: 6.570338059 | G51: 45 | H51: 487.022 | I51: 7.54002181 | J51: 45 | K51: 659.9049 | L51: 5.060741549 | M51: 45 | N51: 493.2862 | O51: 9.995310796 | P51: 45 | Q51: 479.7834 | R51: 11.06761178 | S51: 45 | T51: 497.0664 | U51: 10.42104689 | V51: 45 | W51: 530.4261 | X51: 9.071210469 | Y51: 45 | Z51: 589.2222 | AA51: 7.14002181 | AB51: 45 | AC51: 431.0695 | AD51: 13.07306434 | AE51: 45 | AF51: 606.9116 | AG51: 5.170774264 | AH51: 45 | AI51: 600.64 | AJ51: 6.491166848 | AK51: 45 | AL51: 353.5404 | AM51: 16.23402399 | AN51: 45 | AO51: 374.4927 | AP51: 12.77110142 | AQ51: 45 | AR51: 496.2654 | AS51: 10.61461287 | AT51: 45 | AU51: 466.7786 | AV51: 11.99454744 | AW51: 45 | AX51: 466.5805 | AY51: 11.49073064 | BA51: =AW51 -> 45 | BB51: =AVERAGE(B51,E51,H51,K51,N51,Q51,T51,W51,Z51,AC51,AF51,AI51,AL51,AO51,AR51,AU51,AX51) -> 514.8563294 | BC51: =AVERAGE(C51,F51,I51,L51,O51,R51,U51,X51,AA51,AD51,AG51,AJ51,AM51,AP51,AS51,AV51,AY51) -> 9.465456412 | BD51: =STDEV(B51,E51,H51,K51,N51,Q51,T51,W51,Z51,AC51,AF51,AI51,AL51,AO51,AR51,AU51,AX51) -> 87.03698584 | BE51: =STDEV(C51,F51,I51,L51,O51,R51,U51,X51,AA51,AD51,AG51,AJ51,AM51,AP51,AS51,AV51,AY51) -> 3.165246308
A52: 46.25 | B52: 587.9712 | C52: 6.155725191 | D52: 46.25 | E52: 586.4531 | F52: 6.631406761 | G52: 46.25 | H52: 428.8962 | I52: 7.732388222 | J52: 46.25 | K52: 669.0241 | L52: 4.985278081 | M52: 46.25 | N52: 485.7187 | O52: 9.789858233 | P52: 46.25 | Q52: 479.9808 | R52: 11.17633588 | S52: 46.25 | T52: 476.5252 | U52: 9.370119956 | V52: 46.25 | W52: 532.2587 | X52: 8.874482007 | Y52: 46.25 | Z52: 592.0201 | AA52: 6.960959651 | AB52: 46.25 | AC52: 419.8738 | AD52: 13.56008724 | AE52: 46.25 | AF52: 619.1056 | AG52: 5.071428571 | AH52: 46.25 | AI52: 604.2607 | AJ52: 6.623009815 | AK52: 46.25 | AL52: 357.4025 | AM52: 16.97088332 | AN52: 46.25 | AO52: 402.848 | AP52: 11.8044711 | AQ52: 46.25 | AR52: 491.5031 | AS52: 10.60796074 | AT52: 46.25 | AU52: 469.4636 | AV52: 11.96161396 | AW52: 46.25 | AX52: 461.8532 | AY52: 12.01832061 | BA52: =AW52 -> 46.25 | BB52: =AVERAGE(B52,E52,H52,K52,N52,Q52,T52,W52,Z52,AC52,AF52,AI52,AL52,AO52,AR52,AU52,AX52) -> 509.7152118 | BC52: =AVERAGE(C52,F52,I52,L52,O52,R52,U52,X52,AA52,AD52,AG52,AJ52,AM52,AP52,AS52,AV52,AY52) -> 9.429078196 | BD52: =STDEV(B52,E52,H52,K52,N52,Q52,T52,W52,Z52,AC52,AF52,AI52,AL52,AO52,AR52,AU52,AX52) -> 87.18033756 | BE52: =STDEV(C52,F52,I52,L52,O52,R52,U52,X52,AA52,AD52,AG52,AJ52,AM52,AP52,AS52,AV52,AY52) -> 3.27596374
A53: 47.5 | B53: 595.7471 | C53: 5.731733915 | D53: 47.5 | E53: 545.5119 | F53: 7.014176663 | G53: 47.5 | H53: 508.0639 | I53: 9.623773173 | J53: 47.5 | K53: 671.5192 | L53: 4.908505998 | M53: 47.5 | N53: 492.4297 | O53: 10.53882225 | P53: 47.5 | Q53: 481.3637 | R53: 11.35605234 | S53: 47.5 | T53: 498.5446 | U53: 8.778625954 | V53: 47.5 | W53: 532.6788 | X53: 8.244601963 | Y53: 47.5 | Z53: 600.0547 | AA53: 6.737622683 | AB53: 47.5 | AC53: 416.6032 | AD53: 14.3044711 | AE53: 47.5 | AF53: 619.8339 | AG53: 5.094220284 | AH53: 47.5 | AI53: 595.2388 | AJ53: 6.836641221 | AK53: 47.5 | AL53: 355.5653 | AM53: 17.34231189 | AN53: 47.5 | AO53: 430.4461 | AP53: 10.8259542 | AQ53: 47.5 | AR53: 490.2752 | AS53: 10.60501636 | AT53: 47.5 | AU53: 467.6491 | AV53: 11.50250818 | AW53: 47.5 | AX53: 466.0333 | AY53: 12.41254089 | BA53: =AW53 -> 47.5 | BB53: =AVERAGE(B53,E53,H53,K53,N53,Q53,T53,W53,Z53,AC53,AF53,AI53,AL53,AO53,AR53,AU53,AX53) -> 515.7387353 | BC53: =AVERAGE(C53,F53,I53,L53,O53,R53,U53,X53,AA53,AD53,AG53,AJ53,AM53,AP53,AS53,AV53,AY53) -> 9.521034062 | BD53: =STDEV(B53,E53,H53,K53,N53,Q53,T53,W53,Z53,AC53,AF53,AI53,AL53,AO53,AR53,AU53,AX53) -> 81.53867645 | BE53: =STDEV(C53,F53,I53,L53,O53,R53,U53,X53,AA53,AD53,AG53,AJ53,AM53,AP53,AS53,AV53,AY53) -> 3.375289803
A54: 48.75 | B54: 632.115 | C54: 5.390185387 | D54: 48.75 | E54: 555.3508 | F54: 7.716139586 | G54: 48.75 | H54: 491.5934 | I54: 9.852889858 | J54: 48.75 | K54: 673.7181 | L54: 4.820719738 | M54: 48.75 | N54: 465.6597 | O54: 9.875354417 | P54: 48.75 | Q54: 475.7206 | R54: 11.11450382 | S54: 48.75 | T54: 509.4742 | U54: 8.368375136 | V54: 48.75 | W54: 549.2959 | X54: 7.771864776 | Y54: 48.75 | Z54: 600.0648 | AA54: 6.423336968 | AB54: 48.75 | AC54: 414.4178 | AD54: 14.01374046 | AE54: 48.75 | AF54: 626.1609 | AG54: 5.16172301 | AH54: 48.75 | AI54: 586.9127 | AJ54: 7.011668484 | AK54: 48.75 | AL54: 357.6227 | AM54: 17.53522356 | AN54: 48.75 | AO54: 445.3666 | AP54: 11.10414395 | AQ54: 48.75 | AR54: 492.1927 | AS54: 10.39945474 | AT54: 48.75 | AU54: 473.5165 | AV54: 11.47775354 | AW54: 48.75 | AX54: 463.8316 | AY54: 12.28058888 | BA54: =AW54 -> 48.75 | BB54: =AVERAGE(B54,E54,H54,K54,N54,Q54,T54,W54,Z54,AC54,AF54,AI54,AL54,AO54,AR54,AU54,AX54) -> 518.4125882 | BC54: =AVERAGE(C54,F54,I54,L54,O54,R54,U54,X54,AA54,AD54,AG54,AJ54,AM54,AP54,AS54,AV54,AY54) -> 9.430450959 | BD54: =STDEV(B54,E54,H54,K54,N54,Q54,T54,W54,Z54,AC54,AF54,AI54,AL54,AO54,AR54,AU54,AX54) -> 84.93607205 | BE54: =STDEV(C54,F54,I54,L54,O54,R54,U54,X54,AA54,AD54,AG54,AJ54,AM54,AP54,AS54,AV54,AY54) -> 3.386256098
A55: 50 | B55: 640.587 | C55: 5.244929117 | D55: 50 | E55: 554.8458 | F55: 8.027699019 | G55: 50 | H55: 479.5901 | I55: 10.40250818 | J55: 50 | K55: 678.5667 | L55: 4.716030534 | M55: 50 | N55: 408.0764 | O55: 7.650708833 | P55: 50 | Q55: 465.6918 | R55: 11.02671756 | S55: 50 | T55: 488.6139 | U55: 8.469356598 | V55: 50 | W55: 564.6454 | X55: 7.759869138 | Y55: 50 | Z55: 613.2386 | AA55: 5.974700109 | AB55: 50 | AC55: 417.5407 | AD55: 13.82137405 | AE55: 50 | AF55: 621.179 | AG55: 5.287131952 | AH55: 50 | AI55: 576.5678 | AJ55: 7.232061069 | AK55: 50 | AL55: 359.3713 | AM55: 17.13413304 | AN55: 50 | AO55: 413.0847 | AP55: 10.81581243 | AQ55: 50 | AR55: 498.7059 | AS55: 10.34231189 | AT55: 50 | AU55: 468.6597 | AV55: 11.02791712 | AW55: 50 | AX55: 463.8891 | AY55: 12.42868048 | BA55: =AW55 -> 50 | BB55: =AVERAGE(B55,E55,H55,K55,N55,Q55,T55,W55,Z55,AC55,AF55,AI55,AL55,AO55,AR55,AU55,AX55) -> 512.5208176 | BC55: =AVERAGE(C55,F55,I55,L55,O55,R55,U55,X55,AA55,AD55,AG55,AJ55,AM55,AP55,AS55,AV55,AY55) -> 9.256584771 | BD55: =STDEV(B55,E55,H55,K55,N55,Q55,T55,W55,Z55,AC55,AF55,AI55,AL55,AO55,AR55,AU55,AX55) -> 92.24086853 | BE55: =STDEV(C55,F55,I55,L55,O55,R55,U55,X55,AA55,AD55,AG55,AJ55,AM55,AP55,AS55,AV55,AY55) -> 3.339482543
A56: 51.25 | B56: 638.3058 | C56: 5.019847328 | D56: 51.25 | E56: 555.6679 | F56: 7.982988004 | G56: 51.25 | H56: 483.2614 | I56: 10.89432933 | J56: 51.25 | K56: 676.1198 | L56: 4.725081788 | M56: 51.25 | N56: 496.4913 | O56: 7.605452563 | P56: 51.25 | Q56: 470.9078 | R56: 11.86303162 | S56: 51.25 | T56: 488.0943 | U56: 9.347437296 | V56: 51.25 | W56: 560.426 | X56: 7.874700109 | Y56: 51.25 | Z56: 636.5733 | AA56: 5.628789531 | AB56: 51.25 | AC56: 423.3499 | AD56: 13.45321701 | AE56: 51.25 | AF56: 611.2249 | AG56: 5.401635769 | AH56: 51.25 | AI56: 580.3001 | AJ56: 7.481243184 | AK56: 51.25 | AL56: 358.9058 | AM56: 16.69138495 | AN56: 51.25 | AO56: 434.3738 | AP56: 12.86684842 | AQ56: 51.25 | AR56: 500.9796 | AS56: 10.54656489 | AT56: 51.25 | AU56: 468.989 | AV56: 11.0563795 | AW56: 51.25 | AX56: 462.4836 | AY56: 12.42977099 | BA56: =AW56 -> 51.25 | BB56: =AVERAGE(B56,E56,H56,K56,N56,Q56,T56,W56,Z56,AC56,AF56,AI56,AL56,AO56,AR56,AU56,AX56) -> 520.3796647 | BC56: =AVERAGE(C56,F56,I56,L56,O56,R56,U56,X56,AA56,AD56,AG56,AJ56,AM56,AP56,AS56,AV56,AY56) -> 9.462864841 | BD56: =STDEV(B56,E56,H56,K56,N56,Q56,T56,W56,Z56,AC56,AF56,AI56,AL56,AO56,AR56,AU56,AX56) -> 86.97986398 | BE56: =STDEV(C56,F56,I56,L56,O56,R56,U56,X56,AA56,AD56,AG56,AJ56,AM56,AP56,AS56,AV56,AY56) -> 3.40560911
A57: 52.5 | B57: 666.4277 | C57: 4.606761178 | D57: 52.5 | E57: 542.5667 | F57: 7.442202835 | G57: 52.5 | H57: 485.7668 | I57: 10.94896401 | J57: 52.5 | K57: 674.9612 | L57: 4.719956379 | M57: 52.5 | N57: 539.5879 | O57: 7.996946565 | P57: 52.5 | Q57: 464.0001 | R57: 11.86663032 | S57: 52.5 | T57: 486.5197 | U57: 10.06597601 | V57: 52.5 | W57: 552.9748 | X57: 8.091494002 | Y57: 52.5 | Z57: 649.1323 | AA57: 5.450926936 | AB57: 52.5 | AC57: 432.4542 | AD57: 13.1563795 | AE57: 52.5 | AF57: 607.6373 | AG57: 5.427589967 | AH57: 52.5 | AI57: 576.3598 | AJ57: 7.567502726 | AK57: 52.5 | AL57: 359.4522 | AM57: 17.00632497 | AN57: 52.5 | AO57: 437.6632 | AP57: 12.77764449 | AQ57: 52.5 | AR57: 493.1279 | AS57: 10.46237732 | AT57: 52.5 | AU57: 464.4371 | AV57: 11.45398037 | AW57: 52.5 | AX57: 452.5598 | AY57: 12.29182116 | BA57: =AW57 -> 52.5 | BB57: =AVERAGE(B57,E57,H57,K57,N57,Q57,T57,W57,Z57,AC57,AF57,AI57,AL57,AO57,AR57,AU57,AX57) -> 522.6840412 | BC57: =AVERAGE(C57,F57,I57,L57,O57,R57,U57,X57,AA57,AD57,AG57,AJ57,AM57,AP57,AS57,AV57,AY57) -> 9.490204631 | BD57: =STDEV(B57,E57,H57,K57,N57,Q57,T57,W57,Z57,AC57,AF57,AI57,AL57,AO57,AR57,AU57,AX57) -> 89.73896113 | BE57: =STDEV(C57,F57,I57,L57,O57,R57,U57,X57,AA57,AD57,AG57,AJ57,AM57,AP57,AS57,AV57,AY57) -> 3.473100563
A58: 53.75 | B58: 678.599 | C58: 4.509160305 | D58: 53.75 | E58: 568.428 | F58: 7.351690294 | G58: 53.75 | H58: 484.6904 | I58: 10.98571429 | J58: 53.75 | K58: 681.6687 | L58: 4.623664122 | M58: 53.75 | N58: 530.3784 | O58: 7.72955289 | P58: 53.75 | Q58: 458.6778 | R58: 11.49443839 | S58: 53.75 | T58: 494.2603 | U58: 10.72388222 | V58: 53.75 | W58: 512.49 | X58: 7.889203926 | Y58: 53.75 | Z58: 653.9584 | AA58: 5.32082879 | AB58: 53.75 | AC58: 438.269 | AD58: 12.57666303 | AE58: 53.75 | AF58: 609.3667 | AG58: 5.427153762 | AH58: 53.75 | AI58: 573.2959 | AJ58: 7.666194111 | AK58: 53.75 | AL58: 355.4717 | AM58: 17.14209378 | AN58: 53.75 | AO58: 434.8579 | AP58: 12.91243184 | AQ58: 53.75 | AR58: 488.2172 | AS58: 10.51472192 | AT58: 53.75 | AU58: 346.9243 | AV58: 7.782988004 | AW58: 53.75 | AX58: 436.5541 | AY58: 12.14252999 | BA58: =AW58 -> 53.75 | BB58: =AVERAGE(B58,E58,H58,K58,N58,Q58,T58,W58,Z58,AC58,AF58,AI58,AL58,AO58,AR58,AU58,AX58) -> 514.4769294 | BC58: =AVERAGE(C58,F58,I58,L58,O58,R58,U58,X58,AA58,AD58,AG58,AJ58,AM58,AP58,AS58,AV58,AY58) -> 9.223112451 | BD58: =STDEV(B58,E58,H58,K58,N58,Q58,T58,W58,Z58,AC58,AF58,AI58,AL58,AO58,AR58,AU58,AX58) -> 102.0569398 | BE58: =STDEV(C58,F58,I58,L58,O58,R58,U58,X58,AA58,AD58,AG58,AJ58,AM58,AP58,AS58,AV58,AY58) -> 3.475813672
A59: 55 | B59: 672.9916 | C59: 4.628135224 | D59: 55 | E59: 571.0339 | F59: 7.400545256 | G59: 55 | H59: 476.83 | I59: 10.0912759 | J59: 55 | K59: 684.4177 | L59: 4.56608506 | M59: 55 | N59: 557.1336 | O59: 7.209814613 | P59: 55 | Q59: 472.4598 | R59: 11.03009815 | S59: 55 | T59: 488.5658 | U59: 10.20076336 | V59: 55 | W59: 474.8852 | X59: 8.344274809 | Y59: 55 | Z59: 662.7885 | AA59: 5.179498364 | AB59: 55 | AC59: 445.5287 | AD59: 11.71374046 | AE59: 55 | AF59: 600.9668 | AG59: 5.530970556 | AH59: 55 | AI59: 576.4938 | AJ59: 7.758342421 | AK59: 55 | AL59: 350.4544 | AM59: 17.71406761 | AN59: 55 | AO59: 427.0373 | AP59: 13.20207197 | AQ59: 55 | AR59: 491.264 | AS59: 10.7653217 | AT59: 55 | AU59: 359.1202 | AV59: 6.853762268 | AW59: 55 | AX59: 374.4066 | AY59: 9.068266085 | BA59: =AW59 -> 55 | BB59: =AVERAGE(B59,E59,H59,K59,N59,Q59,T59,W59,Z59,AC59,AF59,AI59,AL59,AO59,AR59,AU59,AX59) -> 510.9634059 | BC59: =AVERAGE(C59,F59,I59,L59,O59,R59,U59,X59,AA59,AD59,AG59,AJ59,AM59,AP59,AS59,AV59,AY59) -> 8.897472577 | BD59: =STDEV(B59,E59,H59,K59,N59,Q59,T59,W59,Z59,AC59,AF59,AI59,AL59,AO59,AR59,AU59,AX59) -> 106.4063286 | BE59: =STDEV(C59,F59,I59,L59,O59,R59,U59,X59,AA59,AD59,AG59,AJ59,AM59,AP59,AS59,AV59,AY59) -> 3.431447853
A60: 56.25 | B60: 673.8205 | C60: 4.668047983 | D60: 56.25 | E60: 559.7541 | F60: 7.513740458 | G60: 56.25 | H60: 498.7177 | I60: 9.44002181 | J60: 56.25 | K60: 687.0089 | L60: 4.509051254 | M60: 56.25 | N60: 587.8845 | O60: 6.636750273 | P60: 56.25 | Q60: 472.6031 | R60: 9.996837514 | S60: 56.25 | T60: 500.127 | U60: 10.05049073 | V60: 56.25 | W60: 470.07 | X60: 9.454634678 | Y60: 56.25 | Z60: 662.9564 | AA60: 5.13740458 | AB60: 56.25 | AC60: 448.9824 | AD60: 11.87001091 | AE60: 56.25 | AF60: 605.953 | AG60: 5.49738277 | AH60: 56.25 | AI60: 575.0107 | AJ60: 7.667502726 | AK60: 56.25 | AL60: 349.0671 | AM60: 17.78800436 | AN60: 56.25 | AO60: 424.9661 | AP60: 13.28331516 | AQ60: 56.25 | AR60: 490.9334 | AS60: 10.74078517 | AT60: 56.25 | AU60: 523.5319 | AV60: 6.327262814 | AW60: 56.25 | AX60: 347.184 | AY60: 7.394111232 | BA60: =AW60 -> 56.25 | BB60: =AVERAGE(B60,E60,H60,K60,N60,Q60,T60,W60,Z60,AC60,AF60,AI60,AL60,AO60,AR60,AU60,AX60) -> 522.2688706 | BC60: =AVERAGE(C60,F60,I60,L60,O60,R60,U60,X60,AA60,AD60,AG60,AJ60,AM60,AP60,AS60,AV60,AY60) -> 8.704432613 | BD60: =STDEV(B60,E60,H60,K60,N60,Q60,T60,W60,Z60,AC60,AF60,AI60,AL60,AO60,AR60,AU60,AX60) -> 102.5023113 | BE60: =STDEV(C60,F60,I60,L60,O60,R60,U60,X60,AA60,AD60,AG60,AJ60,AM60,AP60,AS60,AV60,AY60) -> 3.475537545
A61: 57.5 | B61: 669.829 | C61: 4.734023991 | D61: 57.5 | E61: 572.9595 | F61: 7.707633588 | G61: 57.5 | H61: 512.8401 | I61: 8.795965104 | J61: 57.5 | K61: 690.3024 | L61: 4.443184297 | M61: 57.5 | N61: 596.7276 | O61: 6.196401309 | P61: 57.5 | Q61: 490.9615 | R61: 9.334678299 | S61: 57.5 | T61: 485.6049 | U61: 9.199454744 | V61: 57.5 | W61: 465.283 | X61: 9.273718648 | Y61: 57.5 | Z61: 662.1226 | AA61: 5.12606325 | AB61: 57.5 | AC61: 448.1503 | AD61: 12.32889858 | AE61: 57.5 | AF61: 615.6062 | AG61: 5.416575791 | AH61: 57.5 | AI61: 575.7055 | AJ61: 7.374154853 | AK61: 57.5 | AL61: 350.5252 | AM61: 17.94623773 | AN61: 57.5 | AO61: 423.9636 | AP61: 12.14416576 | AQ61: 57.5 | AR61: 486.6958 | AS61: 10.67175573 | AT61: 57.5 | AU61: 593.4584 | AV61: 5.797600872 | AW61: 57.5 | AX61: 481.1128 | AY61: 7.14263904 | BA61: =AW61 -> 57.5 | BB61: =AVERAGE(B61,E61,H61,K61,N61,Q61,T61,W61,Z61,AC61,AF61,AI61,AL61,AO61,AR61,AU61,AX61) -> 536.5793176 | BC61: =AVERAGE(C61,F61,I61,L61,O61,R61,U61,X61,AA61,AD61,AG61,AJ61,AM61,AP61,AS61,AV61,AY61) -> 8.449008917 | BD61: =STDEV(B61,E61,H61,K61,N61,Q61,T61,W61,Z61,AC61,AF61,AI61,AL61,AO61,AR61,AU61,AX61) -> 94.90428303 | BE61: =STDEV(C61,F61,I61,L61,O61,R61,U61,X61,AA61,AD61,AG61,AJ61,AM61,AP61,AS61,AV61,AY61) -> 3.460445323
A62: 58.75 | B62: 660.76 | C62: 4.875136314 | D62: 58.75 | E62: 576.9639 | F62: 7.785605234 | G62: 58.75 | H62: 525.6689 | I62: 8.120174482 | J62: 58.75 | K62: 691.7482 | L62: 4.381243184 | M62: 58.75 | N62: 624.6338 | O62: 5.676117775 | P62: 58.75 | Q62: 488.4592 | R62: 8.405125409 | S62: 58.75 | T62: 494.4957 | U62: 8.608287895 | V62: 58.75 | W62: 362.767 | X62: 6.871755725 | Y62: 58.75 | Z62: 664.491 | AA62: 5.076990185 | AB62: 58.75 | AC62: 406.2677 | AD62: 10.64427481 | AE62: 58.75 | AF62: 602.7109 | AG62: 5.487022901 | AH62: 58.75 | AI62: 584.7707 | AJ62: 7.097055616 | AK62: 58.75 | AL62: 348.2813 | AM62: 18.1176663 | AN62: 58.75 | AO62: 438.6785 | AP62: 12.27033806 | AQ62: 58.75 | AR62: 478.5846 | AS62: 10.75539804 | AT62: 58.75 | AU62: 581.5468 | AV62: 5.649400218 | AW62: 58.75 | AX62: 546.5242 | AY62: 6.346019629 | BA62: =AW62 -> 58.75 | BB62: =AVERAGE(B62,E62,H62,K62,N62,Q62,T62,W62,Z62,AC62,AF62,AI62,AL62,AO62,AR62,AU62,AX62) -> 533.9619059 | BC62: =AVERAGE(C62,F62,I62,L62,O62,R62,U62,X62,AA62,AD62,AG62,AJ62,AM62,AP62,AS62,AV62,AY62) -> 8.009859516 | BD62: =STDEV(B62,E62,H62,K62,N62,Q62,T62,W62,Z62,AC62,AF62,AI62,AL62,AO62,AR62,AU62,AX62) -> 104.2071222 | BE62: =STDEV(C62,F62,I62,L62,O62,R62,U62,X62,AA62,AD62,AG62,AJ62,AM62,AP62,AS62,AV62,AY62) -> 3.439196112
A63: 60 | B63: 654.3369 | C63: 5.05387132 | D63: 60 | E63: 569.6112 | F63: 7.70174482 | G63: 60 | H63: 547.61 | I63: 7.52519084 | J63: 60 | K63: 691.3307 | L63: 4.334569248 | M63: 60 | N63: 645.1243 | O63: 5.379498364 | P63: 60 | Q63: 480.4806 | R63: 7.330534351 | S63: 60 | T63: 511.1073 | U63: 7.890076336 | V63: 60 | W63: 509.3765 | X63: 5.701526718 | Y63: 60 | Z63: 662.1643 | AA63: 5.11308615 | AB63: 60 | AC63: 417.7932 | AD63: 13.16608506 | AE63: 60 | AF63: 587.9339 | AG63: 5.594656489 | AH63: 60 | AI63: 584.503 | AJ63: 6.745692475 | AK63: 60 | AL63: 344.3448 | AM63: 18.56041439 | AN63: 60 | AO63: 446.9377 | AP63: 11.87677208 | AQ63: 60 | AR63: 482.0027 | AS63: 11.39236641 | AT63: 60 | AU63: 600.4467 | AV63: 5.564013086 | AW63: 60 | AX63: 607.2872 | AY63: 6.223991276 | BA63: =AW63 -> 60 | BB63: =AVERAGE(B63,E63,H63,K63,N63,Q63,T63,W63,Z63,AC63,AF63,AI63,AL63,AO63,AR63,AU63,AX63) -> 549.5524118 | BC63: =AVERAGE(C63,F63,I63,L63,O63,R63,U63,X63,AA63,AD63,AG63,AJ63,AM63,AP63,AS63,AV63,AY63) -> 7.950240554 | BD63: =STDEV(B63,E63,H63,K63,N63,Q63,T63,W63,Z63,AC63,AF63,AI63,AL63,AO63,AR63,AU63,AX63) -> 94.98259112 | BE63: =STDEV(C63,F63,I63,L63,O63,R63,U63,X63,AA63,AD63,AG63,AJ63,AM63,AP63,AS63,AV63,AY63) -> 3.746059719
A64: 61.25 | B64: 660.3462 | C64: 5.101853871 | D64: 61.25 | E64: 569.1029 | F64: 7.644601963 | G64: 61.25 | H64: 571.0452 | I64: 7.490294438 | J64: 61.25 | K64: 690.4749 | L64: 4.355725191 | M64: 61.25 | N64: 643.0473 | O64: 5.218756816 | P64: 61.25 | Q64: 551.5945 | R64: 7.513413304 | S64: 61.25 | T64: 537.6501 | U64: 7.748964013 | V64: 61.25 | W64: 569.7867 | X64: 5.025408942 | Y64: 61.25 | Z64: 666.1062 | AA64: 5.128789531 | AB64: 61.25 | AC64: 424.9671 | AD64: 14.46444929 | AE64: 61.25 | AF64: 588.5841 | AG64: 5.653762268 | AH64: 61.25 | AI64: 599.4938 | AJ64: 6.2912759 | AK64: 61.25 | AL64: 343.6232 | AM64: 18.48593239 | AN64: 61.25 | AO64: 454.4685 | AP64: 12.14536532 | AQ64: 61.25 | AR64: 481.9921 | AS64: 11.58964013 | AT64: 61.25 | AU64: 321.7622 | AV64: 5.992584515 | AW64: 61.25 | AX64: 536.8877 | AY64: 6.427371865 | BA64: =AW64 -> 61.25 | BB64: =AVERAGE(B64,E64,H64,K64,N64,Q64,T64,W64,Z64,AC64,AF64,AI64,AL64,AO64,AR64,AU64,AX64) -> 541.8195706 | BC64: =AVERAGE(C64,F64,I64,L64,O64,R64,U64,X64,AA64,AD64,AG64,AJ64,AM64,AP64,AS64,AV64,AY64) -> 8.016364103 | BD64: =STDEV(B64,E64,H64,K64,N64,Q64,T64,W64,Z64,AC64,AF64,AI64,AL64,AO64,AR64,AU64,AX64) -> 106.7834972 | BE64: =STDEV(C64,F64,I64,L64,O64,R64,U64,X64,AA64,AD64,AG64,AJ64,AM64,AP64,AS64,AV64,AY64) -> 3.904561309
A65: 62.5 | B65: 654.8619 | C65: 5.159869138 | D65: 62.5 | E65: 575.1598 | F65: 7.488004362 | G65: 62.5 | H65: 563.7206 | I65: 7.454089422 | J65: 62.5 | K65: 687.9293 | L65: 4.385932388 | M65: 62.5 | N65: 620.6515 | O65: 5.342857143 | P65: 62.5 | Q65: 545.4766 | R65: 7.759323882 | S65: 62.5 | T65: 546.8597 | U65: 7.244601963 | V65: 62.5 | W65: 537.2284 | X65: 5.025627045 | Y65: 62.5 | Z65: 665.8785 | AA65: 5.107742639 | AB65: 62.5 | AC65: 425.873 | AD65: 14.18026172 | AE65: 62.5 | AF65: 590.4578 | AG65: 5.696074155 | AH65: 62.5 | AI65: 626.4316 | AJ65: 6.023664122 | AK65: 62.5 | AL65: 344.0967 | AM65: 18.1959651 | AN65: 62.5 | AO65: 444.675 | AP65: 11.28854962 | AQ65: 62.5 | AR65: 479.8947 | AS65: 11.60414395 | AT65: 62.5 | AU65: 222.3437 | AV65: 6.223882225 | AW65: 62.5 | AX65: 493.5484 | AY65: 7.128789531 | BA65: =AW65 -> 62.5 | BB65: =AVERAGE(B65,E65,H65,K65,N65,Q65,T65,W65,Z65,AC65,AF65,AI65,AL65,AO65,AR65,AU65,AX65) -> 530.8874824 | BC65: =AVERAGE(C65,F65,I65,L65,O65,R65,U65,X65,AA65,AD65,AG65,AJ65,AM65,AP65,AS65,AV65,AY65) -> 7.9593752 | BD65: =STDEV(B65,E65,H65,K65,N65,Q65,T65,W65,Z65,AC65,AF65,AI65,AL65,AO65,AR65,AU65,AX65) -> 121.2127838 | BE65: =STDEV(C65,F65,I65,L65,O65,R65,U65,X65,AA65,AD65,AG65,AJ65,AM65,AP65,AS65,AV65,AY65) -> 3.7553817
A66: 63.75 | B66: 649.3432 | C66: 5.244165758 | D66: 63.75 | E66: 586.8868 | F66: 7.348854962 | G66: 63.75 | H66: 526.3404 | I66: 7.274045802 | J66: 63.75 | K66: 692.4006 | L66: 4.271210469 | M66: 63.75 | N66: 625.6392 | O66: 5.553217012 | P66: 63.75 | Q66: 535.9538 | R66: 8.264994547 | S66: 63.75 | T66: 562.2489 | U66: 6.794547437 | V66: 63.75 | W66: 567.3123 | X66: 4.99912759 | Y66: 63.75 | Z66: 660.8592 | AA66: 5.159869138 | AB66: 63.75 | AC66: 349.1715 | AD66: 8.513522356 | AE66: 63.75 | AF66: 597.2256 | AG66: 5.805343511 | AH66: 63.75 | AI66: 635.7073 | AJ66: 5.918538713 | AK66: 63.75 | AL66: 346.2466 | AM66: 18.17459106 | AN66: 63.75 | AO66: 312.933 | AP66: 7.147110142 | AQ66: 63.75 | AR66: 465.4708 | AS66: 11.21177754 | AT66: 63.75 | AU66: 540.925 | AV66: 7.968920393 | AW66: 63.75 | AX66: 520.8953 | AY66: 8.162486369 | BA66: =AW66 -> 63.75 | BB66: =AVERAGE(B66,E66,H66,K66,N66,Q66,T66,W66,Z66,AC66,AF66,AI66,AL66,AO66,AR66,AU66,AX66) -> 539.7387941 | BC66: =AVERAGE(C66,F66,I66,L66,O66,R66,U66,X66,AA66,AD66,AG66,AJ66,AM66,AP66,AS66,AV66,AY66) -> 7.518371929 | BD66: =STDEV(B66,E66,H66,K66,N66,Q66,T66,W66,Z66,AC66,AF66,AI66,AL66,AO66,AR66,AU66,AX66) -> 113.0913522 | BE66: =STDEV(C66,F66,I66,L66,O66,R66,U66,X66,AA66,AD66,AG66,AJ66,AM66,AP66,AS66,AV66,AY66) -> 3.231611941
A67: 65 | B67: 638.2886 | C67: 5.399563795 | D67: 65 | E67: 586.7423 | F67: 7.222355507 | G67: 65 | H67: 367.4147 | I67: 6.836641221 | J67: 65 | K67: 696.0545 | L67: 4.226717557 | M67: 65 | N67: 646.907 | O67: 5.450708833 | P67: 65 | Q67: 537.3996 | R67: 8.736205016 | S67: 65 | T67: 595.8965 | U67: 6.58865867 | V67: 65 | W67: 666.2677 | X67: 4.397164667 | Y67: 65 | Z67: 659.8319 | AA67: 5.231188659 | AB67: 65 | AC67: 442.5446 | AD67: 8.51046892 | AE67: 65 | AF67: 598.4791 | AG67: 5.844820065 | AH67: 65 | AI67: 631.8512 | AJ67: 5.920283533 | AK67: 65 | AL67: 348.5032 | AM67: 18.68462377 | AN67: 65 | AO67: 280.0654 | AP67: 6.131733915 | AQ67: 65 | AR67: 455.0912 | AS67: 11.62431843 | AT67: 65 | AU67: 539.9254 | AV67: 8.245038168 | AW67: 65 | AX67: 537.9713 | AY67: 8.890730643 | BA67: =AW67 -> 65 | BB67: =AVERAGE(B67,E67,H67,K67,N67,Q67,T67,W67,Z67,AC67,AF67,AI67,AL67,AO67,AR67,AU67,AX67) -> 542.8961294 | BC67: =AVERAGE(C67,F67,I67,L67,O67,R67,U67,X67,AA67,AD67,AG67,AJ67,AM67,AP67,AS67,AV67,AY67) -> 7.525954198 | BD67: =STDEV(B67,E67,H67,K67,N67,Q67,T67,W67,Z67,AC67,AF67,AI67,AL67,AO67,AR67,AU67,AX67) -> 123.3667674 | BE67: =STDEV(C67,F67,I67,L67,O67,R67,U67,X67,AA67,AD67,AG67,AJ67,AM67,AP67,AS67,AV67,AY67) -> 3.443187762
A68: 66.25 | B68: 633.512 | C68: 5.57742639 | D68: 66.25 | E68: 588.914 | F68: 7.203380589 | G68: 66.25 | H68: 432.6163 | I68: 8.800545256 | J68: 66.25 | K68: 697.3266 | L68: 4.24351145 | M68: 66.25 | N68: 652.7713 | O68: 5.280916031 | P68: 66.25 | Q68: 540.0579 | R68: 8.940567067 | S68: 66.25 | T68: 608.0288 | U68: 6.365648855 | V68: 66.25 | W68: 675.2148 | X68: 4.225845147 | Y68: 66.25 | Z68: 650.8837 | AA68: 5.372410033 | AB68: 66.25 | AC68: 494.9497 | AD68: 7.811014177 | AE68: 66.25 | AF68: 591.6311 | AG68: 5.80348964 | AH68: 66.25 | AI68: 615.0082 | AJ68: 6.018320611 | AK68: 66.25 | AL68: 347.6194 | AM68: 17.43304253 | AN68: 66.25 | AO68: 565.7672 | AP68: 5.46434024 | AQ68: 66.25 | AR68: 447.9388 | AS68: 12.10632497 | AT68: 66.25 | AU68: 519.9697 | AV68: 8.053544166 | AW68: 66.25 | AX68: 539.2933 | AY68: 9.120174482 | BA68: =AW68 -> 66.25 | BB68: =AVERAGE(B68,E68,H68,K68,N68,Q68,T68,W68,Z68,AC68,AF68,AI68,AL68,AO68,AR68,AU68,AX68) -> 564.7942824 | BC68: =AVERAGE(C68,F68,I68,L68,O68,R68,U68,X68,AA68,AD68,AG68,AJ68,AM68,AP68,AS68,AV68,AY68) -> 7.518853037 | BD68: =STDEV(B68,E68,H68,K68,N68,Q68,T68,W68,Z68,AC68,AF68,AI68,AL68,AO68,AR68,AU68,AX68) -> 94.12936815 | BE68: =STDEV(C68,F68,I68,L68,O68,R68,U68,X68,AA68,AD68,AG68,AJ68,AM68,AP68,AS68,AV68,AY68) -> 3.276206993
A69: 67.5 | B69: 632.486 | C69: 5.678625954 | D69: 67.5 | E69: 585.8412 | F69: 7.19476554 | G69: 67.5 | H69: 463.4006 | I69: 11.01755725 | J69: 67.5 | K69: 696.862 | L69: 4.197709924 | M69: 67.5 | N69: 656.6313 | O69: 5.08778626 | P69: 67.5 | Q69: 543.2657 | R69: 8.741657579 | S69: 67.5 | T69: 620.8111 | U69: 6.17044711 | V69: 67.5 | W69: 683.7616 | X69: 4.189422028 | Y69: 67.5 | Z69: 645.9035 | AA69: 5.505888768 | AB69: 67.5 | AC69: 546.5767 | AD69: 6.966630316 | AE69: 67.5 | AF69: 598.8076 | AG69: 5.704580153 | AH69: 67.5 | AI69: 582.815 | AJ69: 6.416030534 | AK69: 67.5 | AL69: 351.2755 | AM69: 16.42780807 | AN69: 67.5 | AO69: 565.1087 | AP69: 5.018647764 | AQ69: 67.5 | AR69: 383.3137 | AS69: 9.317884406 | AT69: 67.5 | AU69: 480.2141 | AV69: 7.980479826 | AW69: 67.5 | AX69: 524.5976 | AY69: 9.157797165 | BA69: =AW69 -> 67.5 | BB69: =AVERAGE(B69,E69,H69,K69,N69,Q69,T69,W69,Z69,AC69,AF69,AI69,AL69,AO69,AR69,AU69,AX69) -> 562.4512882 | BC69: =AVERAGE(C69,F69,I69,L69,O69,R69,U69,X69,AA69,AD69,AG69,AJ69,AM69,AP69,AS69,AV69,AY69) -> 7.339630509 | BD69: =STDEV(B69,E69,H69,K69,N69,Q69,T69,W69,Z69,AC69,AF69,AI69,AL69,AO69,AR69,AU69,AX69) -> 98.27588462 | BE69: =STDEV(C69,F69,I69,L69,O69,R69,U69,X69,AA69,AD69,AG69,AJ69,AM69,AP69,AS69,AV69,AY69) -> 3.03259399
A70: 68.75 | B70: 631.7836 | C70: 5.700981461 | D70: 68.75 | E70: 588.7134 | F70: 7.040785169 | G70: 68.75 | H70: 451.1299 | I70: 11.46019629 | J70: 68.75 | K70: 705.4144 | L70: 4.036859324 | M70: 68.75 | N70: 626.4764 | O70: 5.192039258 | P70: 68.75 | Q70: 542.9193 | R70: 8.520610687 | S70: 68.75 | T70: 625.9293 | U70: 5.968266085 | V70: 68.75 | W70: 677.577 | X70: 4.19040349 | Y70: 68.75 | Z70: 641.3113 | AA70: 5.575463468 | AB70: 68.75 | AC70: 585.9205 | AD70: 6.288331516 | AE70: 68.75 | AF70: 597.0666 | AG70: 5.583642312 | AH70: 68.75 | AI70: 601.4454 | AJ70: 6.719629226 | AK70: 68.75 | AL70: 354.7076 | AM70: 16.29563795 | AN70: 68.75 | AO70: 531.8613 | AP70: 5.197273719 | AQ70: 68.75 | AR70: 359.5707 | AS70: 7.705561614 | AT70: 68.75 | AU70: 411.6525 | AV70: 8.096074155 | AW70: 68.75 | AX70: 528.0527 | AY70: 9.470010905 | BA70: =AW70 -> 68.75 | BB70: =AVERAGE(B70,E70,H70,K70,N70,Q70,T70,W70,Z70,AC70,AF70,AI70,AL70,AO70,AR70,AU70,AX70) -> 556.5607 | BC70: =AVERAGE(C70,F70,I70,L70,O70,R70,U70,X70,AA70,AD70,AG70,AJ70,AM70,AP70,AS70,AV70,AY70) -> 7.237750978 | BD70: =STDEV(B70,E70,H70,K70,N70,Q70,T70,W70,Z70,AC70,AF70,AI70,AL70,AO70,AR70,AU70,AX70) -> 105.5247341 | BE70: =STDEV(C70,F70,I70,L70,O70,R70,U70,X70,AA70,AD70,AG70,AJ70,AM70,AP70,AS70,AV70,AY70) -> 3.020971785
A71: 70 | B71: 633.0106 | C71: 5.586368593 | D71: 70 | E71: 598.7445 | F71: 6.901526718 | G71: 70 | H71: 454.7392 | I71: 12.38625954 | J71: 70 | K71: 708.8119 | L71: 3.953435115 | M71: 70 | N71: 611.1705 | O71: 5.482333697 | P71: 70 | Q71: 544.9893 | R71: 8.164776445 | S71: 70 | T71: 513.9971 | U71: 6.1 | V71: 70 | W71: 686.6212 | X71: 4.089094875 | Y71: 70 | Z71: 640.2866 | AA71: 5.629116685 | AB71: 70 | AC71: 625.4525 | AD71: 5.931079607 | AE71: 70 | AF71: 608.6825 | AG71: 5.352126499 | AH71: 70 | AI71: 597.7689 | AJ71: 6.809705562 | AK71: 70 | AL71: 359.2357 | AM71: 16.50905125 | AN71: 70 | AO71: 528.3354 | AP71: 5.712431843 | AQ71: 70 | AR71: 419.7922 | AS71: 7.23653217 | AT71: 70 | AU71: 418.643 | AV71: 10.16314068 | AW71: 70 | AX71: 522.6936 | AY71: 9.054307525 | BA71: =AW71 -> 70 | BB71: =AVERAGE(B71,E71,H71,K71,N71,Q71,T71,W71,Z71,AC71,AF71,AI71,AL71,AO71,AR71,AU71,AX71) -> 557.2338059 | BC71: =AVERAGE(C71,F71,I71,L71,O71,R71,U71,X71,AA71,AD71,AG71,AJ71,AM71,AP71,AS71,AV71,AY71) -> 7.356546283 | BD71: =STDEV(B71,E71,H71,K71,N71,Q71,T71,W71,Z71,AC71,AF71,AI71,AL71,AO71,AR71,AU71,AX71) -> 99.30588711 | BE71: =STDEV(C71,F71,I71,L71,O71,R71,U71,X71,AA71,AD71,AG71,AJ71,AM71,AP71,AS71,AV71,AY71) -> 3.193927236
A72: 71.25 | B72: 639.4878 | C72: 5.3912759 | D72: 71.25 | E72: 596.9347 | F72: 6.79738277 | G72: 71.25 | H72: 444.0692 | I72: 12.14601963 | J72: 71.25 | K72: 710.9629 | L72: 3.879825518 | M72: 71.25 | N72: 611.6605 | O72: 5.809814613 | P72: 71.25 | Q72: 545.0329 | R72: 7.646892039 | S72: 71.25 | T72: 496.6036 | U72: 6.915594329 | V72: 71.25 | W72: 674.0658 | X72: 4.246346783 | Y72: 71.25 | Z72: 642.904 | AA72: 5.681461287 | AB72: 71.25 | AC72: 626.5241 | AD72: 5.90348964 | AE72: 71.25 | AF72: 608.0016 | AG72: 5.236314068 | AH72: 71.25 | AI72: 572.4255 | AJ72: 6.852235551 | AK72: 71.25 | AL72: 362.256 | AM72: 16.56990185 | AN72: 71.25 | AO72: 626.7624 | AP72: 5.566521265 | AQ72: 71.25 | AR72: 534.1783 | AS72: 6.571537623 | AT72: 71.25 | AU72: 413.5944 | AV72: 11.94972737 | AW72: 71.25 | AX72: 528.9137 | AY72: 8.466848419 | BA72: =AW72 -> 71.25 | BB72: =AVERAGE(B72,E72,H72,K72,N72,Q72,T72,W72,Z72,AC72,AF72,AI72,AL72,AO72,AR72,AU72,AX72) -> 566.7280824 | BC72: =AVERAGE(C72,F72,I72,L72,O72,R72,U72,X72,AA72,AD72,AG72,AJ72,AM72,AP72,AS72,AV72,AY72) -> 7.390069921 | BD72: =STDEV(B72,E72,H72,K72,N72,Q72,T72,W72,Z72,AC72,AF72,AI72,AL72,AO72,AR72,AU72,AX72) -> 94.68709069 | BE72: =STDEV(C72,F72,I72,L72,O72,R72,U72,X72,AA72,AD72,AG72,AJ72,AM72,AP72,AS72,AV72,AY72) -> 3.280914291
A73: 72.5 | B73: 652.2881 | C73: 5.231515812 | D73: 72.5 | E73: 596.7985 | F73: 6.579062159 | G73: 72.5 | H73: 420.8234 | I73: 12.03947655 | J73: 72.5 | K73: 715.9162 | L73: 3.797273719 | M73: 72.5 | N73: 604.162 | O73: 6.066739368 | P73: 72.5 | Q73: 547.7099 | R73: 7.004143948 | S73: 72.5 | T73: 545.7141 | U73: 7.549836423 | V73: 72.5 | W73: 666.5144 | X73: 4.326281352 | Y73: 72.5 | Z73: 642.0731 | AA73: 5.633805889 | AB73: 72.5 | AC73: 601.8893 | AD73: 6.179934569 | AE73: 72.5 | AF73: 605.8604 | AG73: 5.23217012 | AH73: 72.5 | AI73: 546.0691 | AJ73: 7.273718648 | AK73: 72.5 | AL73: 365.15 | AM73: 16.00316249 | AN73: 72.5 | AO73: 643.0136 | AP73: 5.376008724 | AQ73: 72.5 | AR73: 582.3848 | AS73: 6.478844057 | AT73: 72.5 | AU73: 408.4749 | AV73: 12.77611778 | AW73: 72.5 | AX73: 545.0871 | AY73: 8.062486369 | BA73: =AW73 -> 72.5 | BB73: =AVERAGE(B73,E73,H73,K73,N73,Q73,T73,W73,Z73,AC73,AF73,AI73,AL73,AO73,AR73,AU73,AX73) -> 569.9958176 | BC73: =AVERAGE(C73,F73,I73,L73,O73,R73,U73,X73,AA73,AD73,AG73,AJ73,AM73,AP73,AS73,AV73,AY73) -> 7.388857528 | BD73: =STDEV(B73,E73,H73,K73,N73,Q73,T73,W73,Z73,AC73,AF73,AI73,AL73,AO73,AR73,AU73,AX73) -> 95.14213998 | BE73: =STDEV(C73,F73,I73,L73,O73,R73,U73,X73,AA73,AD73,AG73,AJ73,AM73,AP73,AS73,AV73,AY73) -> 3.249110007
A74: 73.75 | B74: 643.5618 | C74: 5.154525627 | D74: 73.75 | E74: 613.9065 | F74: 6.327917121 | G74: 73.75 | H74: 407.4446 | I74: 12.64405671 | J74: 73.75 | K74: 716.8721 | L74: 3.800763359 | M74: 73.75 | N74: 586.6475 | O74: 6.371537623 | P74: 73.75 | Q74: 579.1975 | R74: 6.356161396 | S74: 73.75 | T74: 550.9404 | U74: 8.201853871 | V74: 73.75 | W74: 680.7932 | X74: 4.298582334 | Y74: 73.75 | Z74: 642.9498 | AA74: 5.575136314 | AB74: 73.75 | AC74: 614.3998 | AD74: 6.228353326 | AE74: 73.75 | AF74: 617.6745 | AG74: 5.254961832 | AH74: 73.75 | AI74: 568.0068 | AJ74: 7.800218103 | AK74: 73.75 | AL74: 371.436 | AM74: 15.73816794 | AN74: 73.75 | AO74: 635.7968 | AP74: 5.27393675 | AQ74: 73.75 | AR74: 493.5266 | AS74: 6.649400218 | AT74: 73.75 | AU74: 386.2454 | AV74: 13.63140676 | AW74: 73.75 | AX74: 552.3095 | AY74: 7.794656489 | BA74: =AW74 -> 73.75 | BB74: =AVERAGE(B74,E74,H74,K74,N74,Q74,T74,W74,Z74,AC74,AF74,AI74,AL74,AO74,AR74,AU74,AX74) -> 568.3358118 | BC74: =AVERAGE(C74,F74,I74,L74,O74,R74,U74,X74,AA74,AD74,AG74,AJ74,AM74,AP74,AS74,AV74,AY74) -> 7.47656681 | BD74: =STDEV(B74,E74,H74,K74,N74,Q74,T74,W74,Z74,AC74,AF74,AI74,AL74,AO74,AR74,AU74,AX74) -> 100.4805513 | BE74: =STDEV(C74,F74,I74,L74,O74,R74,U74,X74,AA74,AD74,AG74,AJ74,AM74,AP74,AS74,AV74,AY74) -> 3.372819714
A75: 75 | B75: 645.5774 | C75: 4.983097056 | D75: 75 | E75: 620.0144 | F75: 6.141439477 | G75: 75 | H75: 393.9252 | I75: 13.52988004 | J75: 75 | K75: 717.1614 | L75: 3.792584515 | M75: 75 | N75: 586.0348 | O75: 6.645910578 | P75: 75 | Q75: 619.1108 | R75: 6.033696838 | S75: 75 | T75: 557.831 | U75: 8.446892039 | V75: 75 | W75: 694.9393 | X75: 4.215158124 | Y75: 75 | Z75: 632.6812 | AA75: 5.669356598 | AB75: 75 | AC75: 620.5114 | AD75: 6.092366412 | AE75: 75 | AF75: 615.871 | AG75: 5.309705562 | AH75: 75 | AI75: 554.0117 | AJ75: 8.027699019 | AK75: 75 | AL75: 370.7438 | AM75: 15.30501636 | AN75: 75 | AO75: 623.0088 | AP75: 5.275790622 | AQ75: 75 | AR75: 349.3816 | AS75: 6.96346783 | AT75: 75 | AU75: 373.9207 | AV75: 14.51003272 | AW75: 75 | AX75: 553.1251 | AY75: 7.917993457 | BA75: =AW75 -> 75 | BB75: =AVERAGE(B75,E75,H75,K75,N75,Q75,T75,W75,Z75,AC75,AF75,AI75,AL75,AO75,AR75,AU75,AX75) -> 560.4617412 | BC75: =AVERAGE(C75,F75,I75,L75,O75,R75,U75,X75,AA75,AD75,AG75,AJ75,AM75,AP75,AS75,AV75,AY75) -> 7.580005132 | BD75: =STDEV(B75,E75,H75,K75,N75,Q75,T75,W75,Z75,AC75,AF75,AI75,AL75,AO75,AR75,AU75,AX75) -> 116.3265528 | BE75: =STDEV(C75,F75,I75,L75,O75,R75,U75,X75,AA75,AD75,AG75,AJ75,AM75,AP75,AS75,AV75,AY75) -> 3.523310195
A76: 76.25 | B76: 647.2385 | C76: 4.870774264 | D76: 76.25 | E76: 634.277 | F76: 5.9304253 | G76: 76.25 | H76: 386.5074 | I76: 14.53195202 | J76: 76.25 | K76: 707.4754 | L76: 3.8608506 | M76: 76.25 | N76: 566.5876 | O76: 7.065103599 | P76: 76.25 | Q76: 629.8611 | R76: 5.906870229 | S76: 76.25 | T76: 555.8245 | U76: 8.387241003 | V76: 76.25 | W76: 666.6638 | X76: 4.501962923 | Y76: 76.25 | Z76: 627.1199 | AA76: 5.774591058 | AB76: 76.25 | AC76: 614.4012 | AD76: 5.899890949 | AE76: 76.25 | AF76: 614.5622 | AG76: 5.309814613 | AH76: 76.25 | AI76: 554.6343 | AJ76: 8.345583424 | AK76: 76.25 | AL76: 370.1423 | AM76: 15.44667394 | AN76: 76.25 | AO76: 633.8152 | AP76: 5.161504907 | AQ76: 76.25 | AR76: 499.7313 | AS76: 9.464231189 | AT76: 76.25 | AU76: 362.7528 | AV76: 15.62889858 | AW76: 76.25 | AX76: 537.8603 | AY76: 7.987241003 | BA76: =AW76 -> 76.25 | BB76: =AVERAGE(B76,E76,H76,K76,N76,Q76,T76,W76,Z76,AC76,AF76,AI76,AL76,AO76,AR76,AU76,AX76) -> 565.2620471 | BC76: =AVERAGE(C76,F76,I76,L76,O76,R76,U76,X76,AA76,AD76,AG76,AJ76,AM76,AP76,AS76,AV76,AY76) -> 7.886682917 | BD76: =STDEV(B76,E76,H76,K76,N76,Q76,T76,W76,Z76,AC76,AF76,AI76,AL76,AO76,AR76,AU76,AX76) -> 104.8266802 | BE76: =STDEV(C76,F76,I76,L76,O76,R76,U76,X76,AA76,AD76,AG76,AJ76,AM76,AP76,AS76,AV76,AY76) -> 3.806827439
A77: 77.5 | B77: 630.0848 | C77: 4.961504907 | D77: 77.5 | E77: 638.931 | F77: 5.829880044 | G77: 77.5 | H77: 379.8635 | I77: 15.26226827 | J77: 77.5 | K77: 695.7005 | L77: 4.038058888 | M77: 77.5 | N77: 555.0888 | O77: 7.534569248 | P77: 77.5 | Q77: 631.5211 | R77: 5.851472192 | S77: 77.5 | T77: 545.5232 | U77: 8.103271538 | V77: 77.5 | W77: 650.035 | X77: 4.772410033 | Y77: 77.5 | Z77: 627.466 | AA77: 5.901853871 | AB77: 77.5 | AC77: 605.7213 | AD77: 5.868375136 | AE77: 77.5 | AF77: 617.9281 | AG77: 5.224645583 | AH77: 77.5 | AI77: 553.1762 | AJ77: 8.400981461 | AK77: 77.5 | AL77: 374.3711 | AM77: 16.67339149 | AN77: 77.5 | AO77: 651.0234 | AP77: 4.999781897 | AQ77: 77.5 | AR77: 463.2064 | AS77: 9.828571429 | AT77: 77.5 | AU77: 355.8161 | AV77: 16.48178844 | AW77: 77.5 | AX77: 528.1567 | AY77: 8.342311887 | BA77: =AW77 -> 77.5 | BB77: =AVERAGE(B77,E77,H77,K77,N77,Q77,T77,W77,Z77,AC77,AF77,AI77,AL77,AO77,AR77,AU77,AX77) -> 559.0360706 | BC77: =AVERAGE(C77,F77,I77,L77,O77,R77,U77,X77,AA77,AD77,AG77,AJ77,AM77,AP77,AS77,AV77,AY77) -> 8.122066842 | BD77: =STDEV(B77,E77,H77,K77,N77,Q77,T77,W77,Z77,AC77,AF77,AI77,AL77,AO77,AR77,AU77,AX77) -> 106.1564218 | BE77: =STDEV(C77,F77,I77,L77,O77,R77,U77,X77,AA77,AD77,AG77,AJ77,AM77,AP77,AS77,AV77,AY77) -> 4.136929113
A78: 78.75 | B78: 601.7993 | C78: 5.212431843 | D78: 78.75 | E78: 635.2345 | F78: 5.787895311 | G78: 78.75 | H78: 383.5402 | I78: 16.51145038 | J78: 78.75 | K78: 702.749 | L78: 4.056161396 | M78: 78.75 | N78: 542.966 | O78: 7.905997819 | P78: 78.75 | Q78: 631.3203 | R78: 5.871210469 | S78: 78.75 | T78: 547.0629 | U78: 7.646673937 | V78: 78.75 | W78: 665.323 | X78: 4.674154853 | Y78: 78.75 | Z78: 632.7387 | AA78: 5.936314068 | AB78: 78.75 | AC78: 601.4773 | AD78: 6.199018539 | AE78: 78.75 | AF78: 620.813 | AG78: 5.158560523 | AH78: 78.75 | AI78: 552.3145 | AJ78: 8.310577972 | AK78: 78.75 | AL78: 374.6696 | AM78: 16.99236641 | AN78: 78.75 | AO78: 643.2507 | AP78: 4.999563795 | AQ78: 78.75 | AR78: 442.8293 | AS78: 10.41984733 | AT78: 78.75 | AU78: 347.6749 | AV78: 17.86902944 | AW78: 78.75 | AX78: 519.5748 | AY78: 8.621592148 | BA78: =AW78 -> 78.75 | BB78: =AVERAGE(B78,E78,H78,K78,N78,Q78,T78,W78,Z78,AC78,AF78,AI78,AL78,AO78,AR78,AU78,AX78) -> 555.6081176 | BC78: =AVERAGE(C78,F78,I78,L78,O78,R78,U78,X78,AA78,AD78,AG78,AJ78,AM78,AP78,AS78,AV78,AY78) -> 8.363108602 | BD78: =STDEV(B78,E78,H78,K78,N78,Q78,T78,W78,Z78,AC78,AF78,AI78,AL78,AO78,AR78,AU78,AX78) -> 108.3177083 | BE78: =STDEV(C78,F78,I78,L78,O78,R78,U78,X78,AA78,AD78,AG78,AJ78,AM78,AP78,AS78,AV78,AY78) -> 4.495313316
A79: 80 | B79: 599.157 | C79: 5.385496183 | D79: 80 | E79: 636.6124 | F79: 5.738495093 | G79: 80 | H79: 383.9724 | I79: 16.51559433 | J79: 80 | K79: 704.7308 | L79: 4.036205016 | M79: 80 | N79: 546.2219 | O79: 8.321264995 | P79: 80 | Q79: 634.6452 | R79: 5.932061069 | S79: 80 | T79: 554.2433 | U79: 7.192584515 | V79: 80 | W79: 669.7862 | X79: 4.652562704 | Y79: 80 | Z79: 630.603 | AA79: 5.947219193 | AB79: 80 | AC79: 621.8205 | AD79: 6.184405671 | AE79: 80 | AF79: 618.0238 | AG79: 5.132279171 | AH79: 80 | AI79: 554.8883 | AJ79: 8.19651036 | AK79: 80 | AL79: 376.1037 | AM79: 16.44907306 | AN79: 80 | AO79: 658.4107 | AP79: 4.878625954 | AQ79: 80 | AR79: 417.5679 | AS79: 11.52399128 | AT79: 80 | AU79: 351.1033 | AV79: 17.96630316 | AW79: 80 | AX79: 532.3509 | AY79: 9.045692475 | BA79: =AW79 -> 80 | BB79: =AVERAGE(B79,E79,H79,K79,N79,Q79,T79,W79,Z79,AC79,AF79,AI79,AL79,AO79,AR79,AU79,AX79) -> 558.2494882 | BC79: =AVERAGE(C79,F79,I79,L79,O79,R79,U79,X79,AA79,AD79,AG79,AJ79,AM79,AP79,AS79,AV79,AY79) -> 8.417550837 | BD79: =STDEV(B79,E79,H79,K79,N79,Q79,T79,W79,Z79,AC79,AF79,AI79,AL79,AO79,AR79,AU79,AX79) -> 111.1087362 | BE79: =STDEV(C79,F79,I79,L79,O79,R79,U79,X79,AA79,AD79,AG79,AJ79,AM79,AP79,AS79,AV79,AY79) -> 4.494383241
A80: 81.25 | B80: 604.2495 | C80: 5.469138495 | D80: 81.25 | E80: 643.1489 | F80: 5.682660851 | G80: 81.25 | H80: 377.9073 | I80: 16.06586696 | J80: 81.25 | K80: 703.9668 | L80: 4.032715376 | M80: 81.25 | N80: 549.697 | O80: 8.625299891 | P80: 81.25 | Q80: 633.3465 | R80: 5.931188659 | S80: 81.25 | T80: 531.8434 | U80: 6.796183206 | V80: 81.25 | W80: 661.658 | X80: 4.794547437 | Y80: 81.25 | Z80: 631.0249 | AA80: 5.927371865 | AB80: 81.25 | AC80: 619.0983 | AD80: 6.196619411 | AE80: 81.25 | AF80: 614.9166 | AG80: 5.079389313 | AH80: 81.25 | AI80: 559.4731 | AJ80: 8.058887677 | AK80: 81.25 | AL80: 378.4533 | AM80: 16.50152672 | AN80: 81.25 | AO80: 650.4356 | AP80: 5.007306434 | AQ80: 81.25 | AR80: 428.5022 | AS80: 13.74056707 | AT80: 81.25 | AU80: 359.0818 | AV80: 18.05768811 | AW80: 81.25 | AX80: 495.3397 | AY80: 8.335986914 | BA80: =AW80 -> 81.25 | BB80: =AVERAGE(B80,E80,H80,K80,N80,Q80,T80,W80,Z80,AC80,AF80,AI80,AL80,AO80,AR80,AU80,AX80) -> 555.4201706 | BC80: =AVERAGE(C80,F80,I80,L80,O80,R80,U80,X80,AA80,AD80,AG80,AJ80,AM80,AP80,AS80,AV80,AY80) -> 8.488408493 | BD80: =STDEV(B80,E80,H80,K80,N80,Q80,T80,W80,Z80,AC80,AF80,AI80,AL80,AO80,AR80,AU80,AX80) -> 109.984143 | BE80: =STDEV(C80,F80,I80,L80,O80,R80,U80,X80,AA80,AD80,AG80,AJ80,AM80,AP80,AS80,AV80,AY80) -> 4.585646035
A81: 82.5 | B81: 615.9738 | C81: 5.456161396 | D81: 82.5 | E81: 643.5394 | F81: 5.585278081 | G81: 82.5 | H81: 375.1758 | I81: 16.43238822 | J81: 82.5 | K81: 649.5031 | L81: 4.613958561 | M81: 82.5 | N81: 541.7409 | O81: 8.592911668 | P81: 82.5 | Q81: 406.3313 | R81: 6.077317339 | S81: 82.5 | T81: 488.1945 | U81: 7.2 | V81: 82.5 | W81: 658.539 | X81: 4.85561614 | Y81: 82.5 | Z81: 637.7701 | AA81: 5.841330425 | AB81: 82.5 | AC81: 609.9485 | AD81: 6.371101418 | AE81: 82.5 | AF81: 619.7493 | AG81: 5.06434024 | AH81: 82.5 | AI81: 550.6757 | AJ81: 7.606652126 | AK81: 82.5 | AL81: 377.7733 | AM81: 15.75408942 | AN81: 82.5 | AO81: 658.1227 | AP81: 5.023227917 | AQ81: 82.5 | AR81: 423.3905 | AS81: 13.9438386 | AT81: 82.5 | AU81: 363.478 | AV81: 16.65376227 | AW81: 82.5 | AX81: 396.4691 | AY81: 8.011450382 | BA81: =AW81 -> 82.5 | BB81: =AVERAGE(B81,E81,H81,K81,N81,Q81,T81,W81,Z81,AC81,AF81,AI81,AL81,AO81,AR81,AU81,AX81) -> 530.375 | BC81: =AVERAGE(C81,F81,I81,L81,O81,R81,U81,X81,AA81,AD81,AG81,AJ81,AM81,AP81,AS81,AV81,AY81) -> 8.416672012 | BD81: =STDEV(B81,E81,H81,K81,N81,Q81,T81,W81,Z81,AC81,AF81,AI81,AL81,AO81,AR81,AU81,AX81) -> 115.9838969 | BE81: =STDEV(C81,F81,I81,L81,O81,R81,U81,X81,AA81,AD81,AG81,AJ81,AM81,AP81,AS81,AV81,AY81) -> 4.343000065
A82: 83.75 | B82: 625.1834 | C82: 5.393675027 | D82: 83.75 | E82: 649.1692 | F82: 5.450272628 | G82: 83.75 | H82: 377.5179 | I82: 16.92846238 | J82: 83.75 | K82: 643.8769 | L82: 5.004471101 | M82: 83.75 | N82: 536.8343 | O82: 8.640348964 | P82: 83.75 | Q82: 336.1508 | R82: 6.537077426 | S82: 83.75 | T82: 535.545 | U82: 8.258560523 | V82: 83.75 | W82: 663.187 | X82: 4.80087241 | Y82: 83.75 | Z82: 641.4562 | AA82: 5.800109051 | AB82: 83.75 | AC82: 607.7269 | AD82: 6.334351145 | AE82: 83.75 | AF82: 625.8603 | AG82: 5.016139586 | AH82: 83.75 | AI82: 574.4478 | AJ82: 7.299563795 | AK82: 83.75 | AL82: 379.183 | AM82: 15.70436205 | AN82: 83.75 | AO82: 638.65 | AP82: 5.198800436 | AQ82: 83.75 | AR82: 419.3085 | AS82: 13.32998909 | AT82: 83.75 | AU82: 372.7869 | AV82: 14.96782988 | AW82: 83.75 | AX82: 477.0435 | AY82: 10.3608506 | BA82: =AW82 -> 83.75 | BB82: =AVERAGE(B82,E82,H82,K82,N82,Q82,T82,W82,Z82,AC82,AF82,AI82,AL82,AO82,AR82,AU82,AX82) -> 535.5251529 | BC82: =AVERAGE(C82,F82,I82,L82,O82,R82,U82,X82,AA82,AD82,AG82,AJ82,AM82,AP82,AS82,AV82,AY82) -> 8.530925653 | BD82: =STDEV(B82,E82,H82,K82,N82,Q82,T82,W82,Z82,AC82,AF82,AI82,AL82,AO82,AR82,AU82,AX82) -> 116.8083377 | BE82: =STDEV(C82,F82,I82,L82,O82,R82,U82,X82,AA82,AD82,AG82,AJ82,AM82,AP82,AS82,AV82,AY82) -> 4.15924456
A83: 85 | B83: 615.613 | C83: 5.412649945 | D83: 85 | E83: 648.1886 | F83: 5.33217012 | G83: 85 | H83: 377.7074 | I83: 16.63740458 | J83: 85 | K83: 652.3779 | L83: 5.171755725 | M83: 85 | N83: 541.0764 | O83: 8.558996728 | P83: 85 | Q83: 547.3088 | R83: 8.196837514 | S83: 85 | T83: 506.0516 | U83: 8.764994547 | V83: 85 | W83: 651.1867 | X83: 4.949073064 | Y83: 85 | Z83: 640.8908 | AA83: 5.761832061 | AB83: 85 | AC83: 618.2418 | AD83: 6.240567067 | AE83: 85 | AF83: 633.3042 | AG83: 4.942966194 | AH83: 85 | AI83: 562.1664 | AJ83: 6.894438386 | AK83: 85 | AL83: 382.52 | AM83: 15.81254089 | AN83: 85 | AO83: 639.1991 | AP83: 5.224972737 | AQ83: 85 | AR83: 425.3212 | AS83: 12.48418757 | AT83: 85 | AU83: 390.1411 | AV83: 15.09749182 | AW83: 85 | AX83: 487.8328 | AY83: 9.978189749 | BA83: =AW83 -> 85 | BB83: =AVERAGE(B83,E83,H83,K83,N83,Q83,T83,W83,Z83,AC83,AF83,AI83,AL83,AO83,AR83,AU83,AX83) -> 548.1839882 | BC83: =AVERAGE(C83,F83,I83,L83,O83,R83,U83,X83,AA83,AD83,AG83,AJ83,AM83,AP83,AS83,AV83,AY83) -> 8.556533453 | BD83: =STDEV(B83,E83,H83,K83,N83,Q83,T83,W83,Z83,AC83,AF83,AI83,AL83,AO83,AR83,AU83,AX83) -> 102.2525103 | BE83: =STDEV(C83,F83,I83,L83,O83,R83,U83,X83,AA83,AD83,AG83,AJ83,AM83,AP83,AS83,AV83,AY83) -> 4.055855872
A84: 86.25 | B84: 610.7364 | C84: 5.484296619 | D84: 86.25 | E84: 659.331 | F84: 5.198146129 | G84: 86.25 | H84: 379.7234 | I84: 16.10076336 | J84: 86.25 | K84: 657.6285 | L84: 5.182878953 | M84: 86.25 | N84: 548.5452 | O84: 8.480261723 | P84: 86.25 | Q84: 537.0928 | R84: 8.623227917 | S84: 86.25 | T84: 508.7745 | U84: 9.683860414 | V84: 86.25 | W84: 648.7523 | X84: 5.132824427 | Y84: 86.25 | Z84: 643.2985 | AA84: 5.70436205 | AB84: 86.25 | AC84: 622.9724 | AD84: 6.218320611 | AE84: 86.25 | AF84: 620.797 | AG84: 5.062704471 | AH84: 86.25 | AI84: 565.6579 | AJ84: 6.825627045 | AK84: 86.25 | AL84: 383.9914 | AM84: 15.6997819 | AN84: 86.25 | AO84: 500.5258 | AP84: 5.713958561 | AQ84: 86.25 | AR84: 440.2559 | AS84: 11.98898582 | AT84: 86.25 | AU84: 397.6786 | AV84: 14.94711014 | AW84: 86.25 | AX84: 497.5185 | AY84: 10.20752454 | BA84: =AW84 -> 86.25 | BB84: =AVERAGE(B84,E84,H84,K84,N84,Q84,T84,W84,Z84,AC84,AF84,AI84,AL84,AO84,AR84,AU84,AX84) -> 542.5458882 | BC84: =AVERAGE(C84,F84,I84,L84,O84,R84,U84,X84,AA84,AD84,AG84,AJ84,AM84,AP84,AS84,AV84,AY84) -> 8.603213805 | BD84: =STDEV(B84,E84,H84,K84,N84,Q84,T84,W84,Z84,AC84,AF84,AI84,AL84,AO84,AR84,AU84,AX84) -> 98.16735748 | BE84: =STDEV(C84,F84,I84,L84,O84,R84,U84,X84,AA84,AD84,AG84,AJ84,AM84,AP84,AS84,AV84,AY84) -> 3.915022556
A85: 87.5 | B85: 616.1961 | C85: 5.575790622 | D85: 87.5 | E85: 660.016 | F85: 5.129225736 | G85: 87.5 | H85: 381.4832 | I85: 15.50959651 | J85: 87.5 | K85: 655.5283 | L85: 5.166848419 | M85: 87.5 | N85: 549.2371 | O85: 8.530970556 | P85: 87.5 | Q85: 518.5702 | R85: 8.840239913 | S85: 87.5 | T85: 513.4474 | U85: 9.942093784 | V85: 87.5 | W85: 637.143 | X85: 5.344165758 | Y85: 87.5 | Z85: 644.8521 | AA85: 5.645038168 | AB85: 87.5 | AC85: 623.2224 | AD85: 6.090948746 | AE85: 87.5 | AF85: 606.8649 | AG85: 5.172846238 | AH85: 87.5 | AI85: 576.8948 | AJ85: 7.140348964 | AK85: 87.5 | AL85: 316.5987 | AM85: 8.681243184 | AN85: 87.5 | AO85: 387.9467 | AP85: 6.517993457 | AQ85: 87.5 | AR85: 443.133 | AS85: 11.04133043 | AT85: 87.5 | AU85: 402.9047 | AV85: 14.35158124 | AW85: 87.5 | AX85: 494.7743 | AY85: 10.40436205 | BA85: =AW85 -> 87.5 | BB85: =AVERAGE(B85,E85,H85,K85,N85,Q85,T85,W85,Z85,AC85,AF85,AI85,AL85,AO85,AR85,AU85,AX85) -> 531.1066412 | BC85: =AVERAGE(C85,F85,I85,L85,O85,R85,U85,X85,AA85,AD85,AG85,AJ85,AM85,AP85,AS85,AV85,AY85) -> 8.181448457 | BD85: =STDEV(B85,E85,H85,K85,N85,Q85,T85,W85,Z85,AC85,AF85,AI85,AL85,AO85,AR85,AU85,AX85) -> 110.4054946 | BE85: =STDEV(C85,F85,I85,L85,O85,R85,U85,X85,AA85,AD85,AG85,AJ85,AM85,AP85,AS85,AV85,AY85) -> 3.21858012
A86: 88.75 | B86: 615.9956 | C86: 5.65648855 | D86: 88.75 | E86: 664.6881 | F86: 4.981025082 | G86: 88.75 | H86: 387.2116 | I86: 15.40174482 | J86: 88.75 | K86: 654.8198 | L86: 5.202181025 | M86: 88.75 | N86: 551.9458 | O86: 8.568593239 | P86: 88.75 | Q86: 508.1018 | R86: 9.464449291 | S86: 88.75 | T86: 502.7769 | U86: 9.111559433 | V86: 88.75 | W86: 640.3244 | X86: 5.426717557 | Y86: 88.75 | Z86: 647.9147 | AA86: 5.557033806 | AB86: 88.75 | AC86: 629.5408 | AD86: 5.965757906 | AE86: 88.75 | AF86: 617.0451 | AG86: 5.135441658 | AH86: 88.75 | AI86: 558.7389 | AJ86: 7.509269357 | AK86: 88.75 | AL86: 361.702 | AM86: 8.648745911 | AN86: 88.75 | AO86: 541.8195 | AP86: 7.726281352 | AQ86: 88.75 | AR86: 452.2139 | AS86: 9.639040349 | AT86: 88.75 | AU86: 410.504 | AV86: 13.56423119 | AW86: 88.75 | AX86: 490.8797 | AY86: 10.7474373 | BA86: =AW86 -> 88.75 | BB86: =AVERAGE(B86,E86,H86,K86,N86,Q86,T86,W86,Z86,AC86,AF86,AI86,AL86,AO86,AR86,AU86,AX86) -> 543.3072118 | BC86: =AVERAGE(C86,F86,I86,L86,O86,R86,U86,X86,AA86,AD86,AG86,AJ86,AM86,AP86,AS86,AV86,AY86) -> 8.135646931 | BD86: =STDEV(B86,E86,H86,K86,N86,Q86,T86,W86,Z86,AC86,AF86,AI86,AL86,AO86,AR86,AU86,AX86) -> 98.39565304 | BE86: =STDEV(C86,F86,I86,L86,O86,R86,U86,X86,AA86,AD86,AG86,AJ86,AM86,AP86,AS86,AV86,AY86) -> 3.035996447
A87: 90 | B87: 610.8798 | C87: 5.731733915 | D87: 90 | E87: 671.5981 | F87: 4.844274809 | G87: 90 | H87: 387.6902 | I87: 15.41995638 | J87: 90 | K87: 654.9205 | L87: 5.156270447 | M87: 90 | N87: 550.1957 | O87: 8.536423119 | P87: 90 | Q87: 507.958 | R87: 9.840458015 | S87: 90 | T87: 506.568 | U87: 8.184078517 | V87: 90 | W87: 619.495 | X87: 5.517884406 | Y87: 90 | Z87: 638.1579 | AA87: 5.56608506 | AB87: 90 | AC87: 627.1868 | AD87: 5.991712105 | AE87: 90 | AF87: 627.4373 | AG87: 5.122900763 | AH87: 90 | AI87: 566.0067 | AJ87: 7.90785169 | AK87: 90 | AL87: 426.3089 | AM87: 8.315703381 | AN87: 90 | AO87: 458.7413 | AP87: 7.583751363 | AQ87: 90 | AR87: 484.1106 | AS87: 8.874482007 | AT87: 90 | AU87: 421.5014 | AV87: 12.95517993 | AW87: 90 | AX87: 470.7696 | AY87: 10.46281352 | BA87: =AW87 -> 90 | BB87: =AVERAGE(B87,E87,H87,K87,N87,Q87,T87,W87,Z87,AC87,AF87,AI87,AL87,AO87,AR87,AU87,AX87) -> 542.9132824 | BC87: =AVERAGE(C87,F87,I87,L87,O87,R87,U87,X87,AA87,AD87,AG87,AJ87,AM87,AP87,AS87,AV87,AY87) -> 8.000679967 | BD87: =STDEV(B87,E87,H87,K87,N87,Q87,T87,W87,Z87,AC87,AF87,AI87,AL87,AO87,AR87,AU87,AX87) -> 91.58864931 | BE87: =STDEV(C87,F87,I87,L87,O87,R87,U87,X87,AA87,AD87,AG87,AJ87,AM87,AP87,AS87,AV87,AY87) -> 2.937007999
A88: 91.25 | B88: 604.5365 | C88: 5.800763359 | D88: 91.25 | E88: 678.6506 | F88: 4.692039258 | G88: 91.25 | H88: 387.0109 | I88: 15.59225736 | J88: 91.25 | K88: 663.2577 | L88: 4.999890949 | M88: 91.25 | N88: 547.871 | O88: 8.378080698 | P88: 91.25 | Q88: 507.0107 | R88: 9.97306434 | S88: 91.25 | T88: 535.2211 | U88: 7.735114504 | V88: 91.25 | W88: 611.7317 | X88: 5.611559433 | Y88: 91.25 | Z88: 623.7924 | AA88: 5.741984733 | AB88: 91.25 | AC88: 607.4377 | AD88: 6.205997819 | AE88: 91.25 | AF88: 616.5977 | AG88: 5.199454744 | AH88: 91.25 | AI88: 566.7177 | AJ88: 8 | AK88: 91.25 | AL88: 480.5334 | AM88: 8.065430752 | AN88: 91.25 | AO88: 415.9158 | AP88: 8.746237732 | AQ88: 91.25 | AR88: 511.3992 | AS88: 8.584841876 | AT88: 91.25 | AU88: 425.6277 | AV88: 11.57873501 | AW88: 91.25 | AX88: 451.8302 | AY88: 10.77153762 | BA88: =AW88 -> 91.25 | BB88: =AVERAGE(B88,E88,H88,K88,N88,Q88,T88,W88,Z88,AC88,AF88,AI88,AL88,AO88,AR88,AU88,AX88) -> 543.2436471 | BC88: =AVERAGE(C88,F88,I88,L88,O88,R88,U88,X88,AA88,AD88,AG88,AJ88,AM88,AP88,AS88,AV88,AY88) -> 7.980999423 | BD88: =STDEV(B88,E88,H88,K88,N88,Q88,T88,W88,Z88,AC88,AF88,AI88,AL88,AO88,AR88,AU88,AX88) -> 89.05156319 | BE88: =STDEV(C88,F88,I88,L88,O88,R88,U88,X88,AA88,AD88,AG88,AJ88,AM88,AP88,AS88,AV88,AY88) -> 2.848014253
A89: 92.5 | B89: 601.2602 | C89: 5.772628135 | D89: 92.5 | E89: 686.0542 | F89: 4.540567067 | G89: 92.5 | H89: 384.7242 | I89: 15.44678299 | J89: 92.5 | K89: 641.0131 | L89: 5.198909487 | M89: 92.5 | N89: 544.8496 | O89: 8.034242094 | P89: 92.5 | Q89: 510.8662 | R89: 9.890294438 | S89: 92.5 | T89: 543.3783 | U89: 7.624863686 | V89: 92.5 | W89: 621.8232 | X89: 5.660523446 | Y89: 92.5 | Z89: 619.5472 | AA89: 6.0087241 | AB89: 92.5 | AC89: 609.5227 | AD89: 6.4608506 | AE89: 92.5 | AF89: 613.0273 | AG89: 5.235005453 | AH89: 92.5 | AI89: 567.1672 | AJ89: 7.961504907 | AK89: 92.5 | AL89: 519.2479 | AM89: 8.061613959 | AN89: 92.5 | AO89: 424.8381 | AP89: 10.3910578 | AQ89: 92.5 | AR89: 527.6988 | AS89: 8.047437296 | AT89: 92.5 | AU89: 437.251 | AV89: 10.62442748 | AW89: 92.5 | AX89: 419.426 | AY89: 10.77546347 | BA89: =AW89 -> 92.5 | BB89: =AVERAGE(B89,E89,H89,K89,N89,Q89,T89,W89,Z89,AC89,AF89,AI89,AL89,AO89,AR89,AU89,AX89) -> 545.3938353 | BC89: =AVERAGE(C89,F89,I89,L89,O89,R89,U89,X89,AA89,AD89,AG89,AJ89,AM89,AP89,AS89,AV89,AY89) -> 7.984405671 | BD89: =STDEV(B89,E89,H89,K89,N89,Q89,T89,W89,Z89,AC89,AF89,AI89,AL89,AO89,AR89,AU89,AX89) -> 87.55530537 | BE89: =STDEV(C89,F89,I89,L89,O89,R89,U89,X89,AA89,AD89,AG89,AJ89,AM89,AP89,AS89,AV89,AY89) -> 2.780608456
A90: 93.75 | B90: 608.3611 | C90: 5.74612868 | D90: 93.75 | E90: 685.1866 | F90: 4.543729553 | G90: 93.75 | H90: 382.8311 | I90: 15.54154853 | J90: 93.75 | K90: 642.4548 | L90: 5.425299891 | M90: 93.75 | N90: 557.5805 | O90: 7.625408942 | P90: 93.75 | Q90: 509.4526 | R90: 9.710796074 | S90: 93.75 | T90: 508.8311 | U90: 7.803707743 | V90: 93.75 | W90: 622.5978 | X90: 5.690185387 | Y90: 93.75 | Z90: 626.3106 | AA90: 6.172737186 | AB90: 93.75 | AC90: 610.2507 | AD90: 6.563031625 | AE90: 93.75 | AF90: 619.1681 | AG90: 5.264885496 | AH90: 93.75 | AI90: 558.5562 | AJ90: 7.591494002 | AK90: 93.75 | AL90: 532.2036 | AM90: 8.301635769 | AN90: 93.75 | AO90: 425.2028 | AP90: 11.49869138 | AQ90: 93.75 | AR90: 532.2534 | AS90: 7.961395856 | AT90: 93.75 | AU90: 447.4706 | AV90: 11.36117775 | AW90: 93.75 | AX90: 426.9721 | AY90: 13.02420938 | BA90: =AW90 -> 93.75 | BB90: =AVERAGE(B90,E90,H90,K90,N90,Q90,T90,W90,Z90,AC90,AF90,AI90,AL90,AO90,AR90,AU90,AX90) -> 546.8049235 | BC90: =AVERAGE(C90,F90,I90,L90,O90,R90,U90,X90,AA90,AD90,AG90,AJ90,AM90,AP90,AS90,AV90,AY90) -> 8.225062544 | BD90: =STDEV(B90,E90,H90,K90,N90,Q90,T90,W90,Z90,AC90,AF90,AI90,AL90,AO90,AR90,AU90,AX90) -> 87.61889128 | BE90: =STDEV(C90,F90,I90,L90,O90,R90,U90,X90,AA90,AD90,AG90,AJ90,AM90,AP90,AS90,AV90,AY90) -> 3.062215253
A91: 95 | B91: 615.495 | C91: 5.789094875 | D91: 95 | E91: 665.5227 | F91: 4.795092694 | G91: 95 | H91: 384.1137 | I91: 15.48135224 | J91: 95 | K91: 645.3806 | L91: 5.452344602 | M91: 95 | N91: 568.5396 | O91: 7.345147219 | P91: 95 | Q91: 506.4826 | R91: 9.285932388 | S91: 95 | T91: 502.2514 | U91: 8.359323882 | V91: 95 | W91: 624.4306 | X91: 5.657142857 | Y91: 95 | Z91: 622.8061 | AA91: 6.241112323 | AB91: 95 | AC91: 604.0084 | AD91: 6.666412214 | AE91: 95 | AF91: 616.5957 | AG91: 5.228462377 | AH91: 95 | AI91: 544.8738 | AJ91: 7.30436205 | AK91: 95 | AL91: 531.4151 | AM91: 8.672628135 | AN91: 95 | AO91: 420.3493 | AP91: 11.38822246 | AQ91: 95 | AR91: 249.5951 | AS91: 6.393347874 | AT91: 95 | AU91: 450.5694 | AV91: 12.32628135 | AW91: 95 | AX91: 420.5326 | AY91: 13.74285714 | BA91: =AW91 -> 95 | BB91: =AVERAGE(B91,E91,H91,K91,N91,Q91,T91,W91,Z91,AC91,AF91,AI91,AL91,AO91,AR91,AU91,AX91) -> 527.8212765 | BC91: =AVERAGE(C91,F91,I91,L91,O91,R91,U91,X91,AA91,AD91,AG91,AJ91,AM91,AP91,AS91,AV91,AY91) -> 8.242889217 | BD91: =STDEV(B91,E91,H91,K91,N91,Q91,T91,W91,Z91,AC91,AF91,AI91,AL91,AO91,AR91,AU91,AX91) -> 112.5474531 | BE91: =STDEV(C91,F91,I91,L91,O91,R91,U91,X91,AA91,AD91,AG91,AJ91,AM91,AP91,AS91,AV91,AY91) -> 3.197330391
A92: 96.25 | B92: 609.9979 | C92: 5.737077426 | D92: 96.25 | E92: 649.8425 | F92: 5.104689204 | G92: 96.25 | H92: 386.3102 | I92: 15.68876772 | J92: 96.25 | K92: 643.836 | L92: 5.478953108 | M92: 96.25 | N92: 576.3519 | O92: 6.944492912 | P92: 96.25 | Q92: 517.9694 | R92: 8.929661941 | S92: 96.25 | T92: 457.9047 | U92: 8.800218103 | V92: 96.25 | W92: 624.7838 | X92: 5.642966194 | Y92: 96.25 | Z92: 618.545 | AA92: 6.337513631 | AB92: 96.25 | AC92: 601.357 | AD92: 6.736205016 | AE92: 96.25 | AF92: 624.0315 | AG92: 5.16346783 | AH92: 96.25 | AI92: 535.7578 | AJ92: 7.642420938 | AK92: 96.25 | AL92: 531.4119 | AM92: 8.874045802 | AN92: 96.25 | AO92: 410.6052 | AP92: 11.9695747 | AQ92: 96.25 | AR92: 382.2375 | AS92: 9.190512541 | AT92: 96.25 | AU92: 441.4274 | AV92: 12.22922574 | AW92: 96.25 | AX92: 423.7131 | AY92: 14.77099237 | BA92: =AW92 -> 96.25 | BB92: =AVERAGE(B92,E92,H92,K92,N92,Q92,T92,W92,Z92,AC92,AF92,AI92,AL92,AO92,AR92,AU92,AX92) -> 531.5342824 | BC92: =AVERAGE(C92,F92,I92,L92,O92,R92,U92,X92,AA92,AD92,AG92,AJ92,AM92,AP92,AS92,AV92,AY92) -> 8.543575598 | BD92: =STDEV(B92,E92,H92,K92,N92,Q92,T92,W92,Z92,AC92,AF92,AI92,AL92,AO92,AR92,AU92,AX92) -> 96.12563114 | BE92: =STDEV(C92,F92,I92,L92,O92,R92,U92,X92,AA92,AD92,AG92,AJ92,AM92,AP92,AS92,AV92,AY92) -> 3.319770624
A93: 97.5 | B93: 604.7578 | C93: 5.686804798 | D93: 97.5 | E93: 655.406 | F93: 5.16782988 | G93: 97.5 | H93: 384.7225 | I93: 15.68669575 | J93: 97.5 | K93: 617.7764 | L93: 5.585278081 | M93: 97.5 | N93: 590.8733 | O93: 6.826281352 | P93: 97.5 | Q93: 515.7773 | R93: 8.0608506 | S93: 97.5 | T93: 483.1385 | U93: 10.38887677 | V93: 97.5 | W93: 626.3243 | X93: 5.664667394 | Y93: 97.5 | Z93: 613.6222 | AA93: 6.467720829 | AB93: 97.5 | AC93: 604.4664 | AD93: 6.765648855 | AE93: 97.5 | AF93: 611.0559 | AG93: 5.21134133 | AH93: 97.5 | AI93: 548.8665 | AJ93: 8.178189749 | AK93: 97.5 | AL93: 531.0855 | AM93: 8.932606325 | AN93: 97.5 | AO93: 395.6432 | AP93: 12.29716467 | AQ93: 97.5 | AR93: 410.8712 | AS93: 12.22377317 | AT93: 97.5 | AU93: 432.8581 | AV93: 12.51515812 | AW93: 97.5 | AX93: 422.1178 | AY93: 14.63249727 | BA93: =AW93 -> 97.5 | BB93: =AVERAGE(B93,E93,H93,K93,N93,Q93,T93,W93,Z93,AC93,AF93,AI93,AL93,AO93,AR93,AU93,AX93) -> 532.3154647 | BC93: =AVERAGE(C93,F93,I93,L93,O93,R93,U93,X93,AA93,AD93,AG93,AJ93,AM93,AP93,AS93,AV93,AY93) -> 8.840669703 | BD93: =STDEV(B93,E93,H93,K93,N93,Q93,T93,W93,Z93,AC93,AF93,AI93,AL93,AO93,AR93,AU93,AX93) -> 92.93826947 | BE93: =STDEV(C93,F93,I93,L93,O93,R93,U93,X93,AA93,AD93,AG93,AJ93,AM93,AP93,AS93,AV93,AY93) -> 3.46453379
A94: 98.75 | B94: 600.1641 | C94: 5.751581243 | D94: 98.75 | E94: 607.5309 | F94: 5.583315158 | G94: 98.75 | H94: 383.4714 | I94: 14.51821156 | J94: 98.75 | K94: 586.1263 | L94: 5.907742639 | M94: 98.75 | N94: 537.2067 | O94: 6.685605234 | P94: 98.75 | Q94: 487.8309 | R94: 7.561941112 | S94: 98.75 | T94: 468.907 | U94: 10.76782988 | V94: 98.75 | W94: 622.9123 | X94: 5.653762268 | Y94: 98.75 | Z94: 612.6103 | AA94: 6.57044711 | AB94: 98.75 | AC94: 590.7072 | AD94: 6.783533261 | AE94: 98.75 | AF94: 621.1252 | AG94: 5.005888768 | AH94: 98.75 | AI94: 542.146 | AJ94: 8.409051254 | AK94: 98.75 | AL94: 524.9827 | AM94: 8.776008724 | AN94: 98.75 | AO94: 390.6709 | AP94: 13.45267176 | AQ94: 98.75 | AR94: 421.9394 | AS94: 14.26521265 | AT94: 98.75 | AU94: 427.7981 | AV94: 13.05092694 | AW94: 98.75 | AX94: 422.6584 | AY94: 14.48844057 | BA94: =AW94 -> 98.75 | BB94: =AVERAGE(B94,E94,H94,K94,N94,Q94,T94,W94,Z94,AC94,AF94,AI94,AL94,AO94,AR94,AU94,AX94) -> 520.5169294 | BC94: =AVERAGE(C94,F94,I94,L94,O94,R94,U94,X94,AA94,AD94,AG94,AJ94,AM94,AP94,AS94,AV94,AY94) -> 9.013657066 | BD94: =STDEV(B94,E94,H94,K94,N94,Q94,T94,W94,Z94,AC94,AF94,AI94,AL94,AO94,AR94,AU94,AX94) -> 86.69801463 | BE94: =STDEV(C94,F94,I94,L94,O94,R94,U94,X94,AA94,AD94,AG94,AJ94,AM94,AP94,AS94,AV94,AY94) -> 3.581479943
A95: 100 | B95: 600.3932 | C95: 5.702399128 | D95: 100 | E95: 638.3788 | F95: 5.720501636 | G95: 100 | H95: 391.9211 | I95: 14.25179935 | J95: 100 | K95: 604.4947 | L95: 6.07480916 | M95: 100 | N95: 500.1448 | O95: 7.181570338 | P95: 100 | Q95: 435.4027 | R95: 8.115376227 | S95: 100 | T95: 435.5377 | U95: 10.33740458 | V95: 100 | W95: 627.8452 | X95: 5.626281352 | Y95: 100 | Z95: 603.0728 | AA95: 6.669356598 | AB95: 100 | AC95: 584.9391 | AD95: 6.905125409 | AE95: 100 | AF95: 617.0018 | AG95: 5.023664122 | AH95: 100 | AI95: 549.0688 | AJ95: 8.45474373 | AK95: 100 | AL95: 527.98 | AM95: 8.63129771 | AN95: 100 | AO95: 389.74 | AP95: 13.97938931 | AQ95: 100 | AR95: 415.3378 | AS95: 14.26172301 | AT95: 100 | AU95: 424.0048 | AV95: 13.4612868 | AW95: 100 | AX95: 421.9587 | AY95: 13.95354417 | BA95: =AW95 -> 100 | BB95: =AVERAGE(B95,E95,H95,K95,N95,Q95,T95,W95,Z95,AC95,AF95,AI95,AL95,AO95,AR95,AU95,AX95) -> 515.7189412 | BC95: =AVERAGE(C95,F95,I95,L95,O95,R95,U95,X95,AA95,AD95,AG95,AJ95,AM95,AP95,AS95,AV95,AY95) -> 9.079427802 | BD95: =STDEV(B95,E95,H95,K95,N95,Q95,T95,W95,Z95,AC95,AF95,AI95,AL95,AO95,AR95,AU95,AX95) -> 92.94125112 | BE95: =STDEV(C95,F95,I95,L95,O95,R95,U95,X95,AA95,AD95,AG95,AJ95,AM95,AP95,AS95,AV95,AY95) -> 3.516973678
A96: 101.25 | B96: 564.8727 | C96: 5.830643402 | D96: 101.25 | E96: 640.1054 | F96: 5.715921483 | G96: 101.25 | H96: 398.1336 | I96: 14.29912759 | J96: 101.25 | K96: 600.8943 | L96: 6.347219193 | M96: 101.25 | N96: 487.9105 | O96: 7.69738277 | P96: 101.25 | Q96: 491.0109 | R96: 10.1648855 | S96: 101.25 | T96: 443.2701 | U96: 12.54329335 | V96: 101.25 | W96: 632.9139 | X96: 5.609705562 | Y96: 101.25 | Z96: 601.2747 | AA96: 6.731624864 | AB96: 101.25 | AC96: 595.8979 | AD96: 6.799672846 | AE96: 101.25 | AF96: 623.9189 | AG96: 5.1217012 | AH96: 101.25 | AI96: 556.1138 | AJ96: 8.437077426 | AK96: 101.25 | AL96: 531.9684 | AM96: 8.676990185 | AN96: 101.25 | AO96: 388.6586 | AP96: 13.63315158 | AQ96: 101.25 | AR96: 406.5151 | AS96: 14.1568157 | AT96: 101.25 | AU96: 413.523 | AV96: 13.59411123 | AW96: 101.25 | AX96: 425.3345 | AY96: 13.29203926 | BA96: =AW96 -> 101.25 | BB96: =AVERAGE(B96,E96,H96,K96,N96,Q96,T96,W96,Z96,AC96,AF96,AI96,AL96,AO96,AR96,AU96,AX96) -> 517.7833118 | BC96: =AVERAGE(C96,F96,I96,L96,O96,R96,U96,X96,AA96,AD96,AG96,AJ96,AM96,AP96,AS96,AV96,AY96) -> 9.332433126 | BD96: =STDEV(B96,E96,H96,K96,N96,Q96,T96,W96,Z96,AC96,AF96,AI96,AL96,AO96,AR96,AU96,AX96) -> 91.27524313 | BE96: =STDEV(C96,F96,I96,L96,O96,R96,U96,X96,AA96,AD96,AG96,AJ96,AM96,AP96,AS96,AV96,AY96) -> 3.483961204
A97: 102.5 | B97: 554.1501 | C97: 6.223773173 | D97: 102.5 | E97: 633.2062 | F97: 5.740348964 | G97: 102.5 | H97: 397.7689 | I97: 14.34732824 | J97: 102.5 | K97: 609.3948 | L97: 6.484841876 | M97: 102.5 | N97: 322.0658 | O97: 7.189422028 | P97: 102.5 | Q97: 477.315 | R97: 10.35594329 | S97: 102.5 | T97: 443.1214 | U97: 12.86892039 | V97: 102.5 | W97: 626.9934 | X97: 5.637840785 | Y97: 102.5 | Z97: 605.6731 | AA97: 6.679280262 | AB97: 102.5 | AC97: 608.8833 | AD97: 6.687350055 | AE97: 102.5 | AF97: 609.6151 | AG97: 5.285059978 | AH97: 102.5 | AI97: 555.296 | AJ97: 8.324100327 | AK97: 102.5 | AL97: 526.9642 | AM97: 8.580697928 | AN97: 102.5 | AO97: 391.4084 | AP97: 13.21395856 | AQ97: 102.5 | AR97: 390.5831 | AS97: 13.70981461 | AT97: 102.5 | AU97: 413.7243 | AV97: 14.5304253 | AW97: 102.5 | AX97: 433.1602 | AY97: 13.00916031 | BA97: =AW97 -> 102.5 | BB97: =AVERAGE(B97,E97,H97,K97,N97,Q97,T97,W97,Z97,AC97,AF97,AI97,AL97,AO97,AR97,AU97,AX97) -> 505.8425471 | BC97: =AVERAGE(C97,F97,I97,L97,O97,R97,U97,X97,AA97,AD97,AG97,AJ97,AM97,AP97,AS97,AV97,AY97) -> 9.345192123 | BD97: =STDEV(B97,E97,H97,K97,N97,Q97,T97,W97,Z97,AC97,AF97,AI97,AL97,AO97,AR97,AU97,AX97) -> 102.6370253 | BE97: =STDEV(C97,F97,I97,L97,O97,R97,U97,X97,AA97,AD97,AG97,AJ97,AM97,AP97,AS97,AV97,AY97) -> 3.485530356
A98: 103.75 | B98: 455.9617 | C98: 6.208287895 | D98: 103.75 | E98: 633.9362 | F98: 5.770992366 | G98: 103.75 | H98: 397.7983 | I98: 14.35169029 | J98: 103.75 | K98: 604.7225 | L98: 6.438931298 | M98: 103.75 | N98: 419.5153 | O98: 10.30436205 | P98: 103.75 | Q98: 469.9059 | R98: 10.95158124 | S98: 103.75 | T98: 440.6909 | U98: 13.19073064 | V98: 103.75 | W98: 625.2887 | X98: 5.588331516 | Y98: 103.75 | Z98: 609.3614 | AA98: 6.629880044 | AB98: 103.75 | AC98: 612.4035 | AD98: 6.659323882 | AE98: 103.75 | AF98: 609.4194 | AG98: 5.339040349 | AH98: 103.75 | AI98: 554.2581 | AJ98: 7.851254089 | AK98: 103.75 | AL98: 526.8146 | AM98: 8.609051254 | AN98: 103.75 | AO98: 395.668 | AP98: 13.25921483 | AQ98: 103.75 | AR98: 381.5133 | AS98: 14.4393675 | AT98: 103.75 | AU98: 414.3579 | AV98: 14.62257361 | AW98: 103.75 | AX98: 438.8186 | AY98: 12.28157034 | BA98: =AW98 -> 103.75 | BB98: =AVERAGE(B98,E98,H98,K98,N98,Q98,T98,W98,Z98,AC98,AF98,AI98,AL98,AO98,AR98,AU98,AX98) -> 505.3196647 | BC98: =AVERAGE(C98,F98,I98,L98,O98,R98,U98,X98,AA98,AD98,AG98,AJ98,AM98,AP98,AS98,AV98,AY98) -> 9.558599012 | BD98: =STDEV(B98,E98,H98,K98,N98,Q98,T98,W98,Z98,AC98,AF98,AI98,AL98,AO98,AR98,AU98,AX98) -> 94.74950051 | BE98: =STDEV(C98,F98,I98,L98,O98,R98,U98,X98,AA98,AD98,AG98,AJ98,AM98,AP98,AS98,AV98,AY98) -> 3.525868418
A99: 105 | B99: 278.6839 | C99: 6.04438386 | D99: 105 | E99: 618.966 | F99: 5.816575791 | G99: 105 | H99: 400.6515 | I99: 14.41973828 | J99: 105 | K99: 603.243 | L99: 6.147437296 | M99: 105 | N99: 453.1981 | O99: 9.791930207 | P99: 105 | Q99: 472.582 | R99: 11.32377317 | S99: 105 | T99: 442.9984 | U99: 13.53784079 | V99: 105 | W99: 634.1449 | X99: 5.475245365 | Y99: 105 | Z99: 611.6953 | AA99: 6.552453653 | AB99: 105 | AC99: 612.5174 | AD99: 6.56434024 | AE99: 105 | AF99: 621.2935 | AG99: 5.192911668 | AH99: 105 | AI99: 561.8225 | AJ99: 7.40959651 | AK99: 105 | AL99: 524.9929 | AM99: 8.421264995 | AN99: 105 | AO99: 398.6562 | AP99: 13.16095965 | AQ99: 105 | AR99: 362.4519 | AS99: 13.48593239 | AT99: 105 | AU99: 416.9887 | AV99: 14.31395856 | AW99: 105 | AX99: 430.9015 | AY99: 10.95267176 | BA99: =AW99 -> 105 | BB99: =AVERAGE(B99,E99,H99,K99,N99,Q99,T99,W99,Z99,AC99,AF99,AI99,AL99,AO99,AR99,AU99,AX99) -> 496.8110412 | BC99: =AVERAGE(C99,F99,I99,L99,O99,R99,U99,X99,AA99,AD99,AG99,AJ99,AM99,AP99,AS99,AV99,AY99) -> 9.330059657 | BD99: =STDEV(B99,E99,H99,K99,N99,Q99,T99,W99,Z99,AC99,AF99,AI99,AL99,AO99,AR99,AU99,AX99) -> 109.7800632 | BE99: =STDEV(C99,F99,I99,L99,O99,R99,U99,X99,AA99,AD99,AG99,AJ99,AM99,AP99,AS99,AV99,AY99) -> 3.467176006
A100: 106.25 | B100: 127.3395 | C100: 5.919956379 | D100: 106.25 | E100: 609.3464 | F100: 5.94612868 | G100: 106.25 | H100: 401.0009 | I100: 14.27066521 | J100: 106.25 | K100: 605.6272 | L100: 5.745801527 | M100: 106.25 | N100: 367.9187 | O100: 7.273718648 | P100: 106.25 | Q100: 472.1356 | R100: 11.01308615 | S100: 106.25 | T100: 442.8865 | U100: 13.14416576 | V100: 106.25 | W100: 635.9095 | X100: 5.474154853 | Y100: 106.25 | Z100: 616.0412 | AA100: 6.485059978 | AB100: 106.25 | AC100: 613.7479 | AD100: 6.387350055 | AE100: 106.25 | AF100: 631.4559 | AG100: 5.071428571 | AH100: 106.25 | AI100: 580.7041 | AJ100: 7.313631407 | AK100: 106.25 | AL100: 515.9561 | AM100: 8.116466739 | AN100: 106.25 | AO100: 402.4285 | AP100: 12.67295529 | AQ100: 106.25 | AR100: 356.148 | AS100: 14.81090513 | AT100: 106.25 | AU100: 415.0098 | AV100: 12.791494 | AW100: 106.25 | AX100: 419.5761 | AY100: 11.13293348 | BA100: =AW100 -> 106.25 | BB100: =AVERAGE(B100,E100,H100,K100,N100,Q100,T100,W100,Z100,AC100,AF100,AI100,AL100,AO100,AR100,AU100,AX100) -> 483.1312882 | BC100: =AVERAGE(C100,F100,I100,L100,O100,R100,U100,X100,AA100,AD100,AG100,AJ100,AM100,AP100,AS100,AV100,AY100) -> 9.033523638 | BD100: =STDEV(B100,E100,H100,K100,N100,Q100,T100,W100,Z100,AC100,AF100,AI100,AL100,AO100,AR100,AU100,AX100) -> 137.2191954 | BE100: =STDEV(C100,F100,I100,L100,O100,R100,U100,X100,AA100,AD100,AG100,AJ100,AM100,AP100,AS100,AV100,AY100) -> 3.465839793
A101: 107.5 | B101: 452.205 | C101: 9.244274809 | D101: 107.5 | E101: 611.6699 | F101: 6.133805889 | G101: 107.5 | H101: 326.7662 | I101: 8.455398037 | J101: 107.5 | K101: 635.0626 | L101: 5.15387132 | M101: 107.5 | N101: 477.7397 | O101: 6.665976009 | P101: 107.5 | Q101: 481.4854 | R101: 10.93609597 | S101: 107.5 | T101: 442.8539 | U101: 12.2434024 | V101: 107.5 | W101: 635.3851 | X101: 5.446673937 | Y101: 107.5 | Z101: 617.2598 | AA101: 6.413522356 | AB101: 107.5 | AC101: 623.7774 | AD101: 6.232279171 | AE101: 107.5 | AF101: 609.6012 | AG101: 5.2695747 | AH101: 107.5 | AI101: 568.1142 | AJ101: 7.457579062 | AK101: 107.5 | AL101: 486.3511 | AM101: 8.234023991 | AN101: 107.5 | AO101: 405.4509 | AP101: 12.67895311 | AQ101: 107.5 | AR101: 366.3242 | AS101: 14.65321701 | AT101: 107.5 | AU101: 429.051 | AV101: 12.07317339 | AW101: 107.5 | AX101: 427.1278 | AY101: 12.82377317 | BA101: =AW101 -> 107.5 | BB101: =AVERAGE(B101,E101,H101,K101,N101,Q101,T101,W101,Z101,AC101,AF101,AI101,AL101,AO101,AR101,AU101,AX101) -> 505.6603176 | BC101: =AVERAGE(C101,F101,I101,L101,O101,R101,U101,X101,AA101,AD101,AG101,AJ101,AM101,AP101,AS101,AV101,AY101) -> 8.830329078 | BD101: =STDEV(B101,E101,H101,K101,N101,Q101,T101,W101,Z101,AC101,AF101,AI101,AL101,AO101,AR101,AU101,AX101) -> 102.4562914 | BE101: =STDEV(C101,F101,I101,L101,O101,R101,U101,X101,AA101,AD101,AG101,AJ101,AM101,AP101,AS101,AV101,AY101) -> 3.122576573
A102: 108.75 | B102: 457.061 | C102: 9.827044711 | D102: 108.75 | E102: 621.0931 | F102: 6.175027263 | G102: 108.75 | H102: 333.2809 | I102: 7.33304253 | J102: 108.75 | K102: 657.8387 | L102: 4.891603053 | M102: 108.75 | N102: 558.3685 | O102: 6.379825518 | P102: 108.75 | Q102: 482.7289 | R102: 10.29291167 | S102: 108.75 | T102: 443.2677 | U102: 10.79760087 | V102: 108.75 | W102: 618.2574 | X102: 5.262377317 | Y102: 108.75 | Z102: 616.4252 | AA102: 6.343838604 | AB102: 108.75 | AC102: 623.8808 | AD102: 6.241221374 | AE102: 108.75 | AF102: 611.3959 | AG102: 5.415921483 | AH102: 108.75 | AI102: 567.5331 | AJ102: 7.722791712 | AK102: 108.75 | AL102: 476.9817 | AM102: 9.041221374 | AN102: 108.75 | AO102: 410.1683 | AP102: 12.46401309 | AQ102: 108.75 | AR102: 381.0378 | AS102: 14.74994547 | AT102: 108.75 | AU102: 442.4586 | AV102: 11.495747 | AW102: 108.75 | AX102: 421.167 | AY102: 13.57219193 | BA102: =AW102 -> 108.75 | BB102: =AVERAGE(B102,E102,H102,K102,N102,Q102,T102,W102,Z102,AC102,AF102,AI102,AL102,AO102,AR102,AU102,AX102) -> 513.1143882 | BC102: =AVERAGE(C102,F102,I102,L102,O102,R102,U102,X102,AA102,AD102,AG102,AJ102,AM102,AP102,AS102,AV102,AY102) -> 8.70625441 | BD102: =STDEV(B102,E102,H102,K102,N102,Q102,T102,W102,Z102,AC102,AF102,AI102,AL102,AO102,AR102,AU102,AX102) -> 101.6577128 | BE102: =STDEV(C102,F102,I102,L102,O102,R102,U102,X102,AA102,AD102,AG102,AJ102,AM102,AP102,AS102,AV102,AY102) -> 3.101743334
A103: 110 | B103: 469.2734 | C103: 9.524536532 | D103: 110 | E103: 628.446 | F103: 5.971101418 | G103: 110 | H103: 454.408 | I103: 7.237840785 | J103: 110 | K103: 649.4264 | L103: 5.059541985 | M103: 110 | N103: 514.4263 | O103: 6.399345692 | P103: 110 | Q103: 492.3907 | R103: 9.705452563 | S103: 110 | T103: 463.7925 | U103: 10.01112323 | V103: 110 | W103: 658.1534 | X103: 4.904907306 | Y103: 110 | Z103: 620.6397 | AA103: 6.3 | AB103: 110 | AC103: 621.4185 | AD103: 6.179716467 | AE103: 110 | AF103: 600.8987 | AG103: 5.490512541 | AH103: 110 | AI103: 565.7387 | AJ103: 7.811777535 | AK103: 110 | AL103: 474.0895 | AM103: 9.494111232 | AN103: 110 | AO103: 423.1915 | AP103: 12.61014177 | AQ103: 110 | AR103: 383.3828 | AS103: 15.41352236 | AT103: 110 | AU103: 459.4704 | AV103: 12.1480916 | AW103: 110 | AX103: 416.4844 | AY103: 14.33162486 | BA103: =AW103 -> 110 | BB103: =AVERAGE(B103,E103,H103,K103,N103,Q103,T103,W103,Z103,AC103,AF103,AI103,AL103,AO103,AR103,AU103,AX103) -> 523.2724059 | BC103: =AVERAGE(C103,F103,I103,L103,O103,R103,U103,X103,AA103,AD103,AG103,AJ103,AM103,AP103,AS103,AV103,AY103) -> 8.740785169 | BD103: =STDEV(B103,E103,H103,K103,N103,Q103,T103,W103,Z103,AC103,AF103,AI103,AL103,AO103,AR103,AU103,AX103) -> 90.76690086 | BE103: =STDEV(C103,F103,I103,L103,O103,R103,U103,X103,AA103,AD103,AG103,AJ103,AM103,AP103,AS103,AV103,AY103) -> 3.294999503
A104: 111.25 | B104: 475.4304 | C104: 8.634351145 | D104: 111.25 | E104: 633.6689 | F104: 5.79389313 | G104: 111.25 | H104: 501.4584 | I104: 6.709923664 | J104: 111.25 | K104: 662.0987 | L104: 5.044274809 | M104: 111.25 | N104: 497.8352 | O104: 6.864667394 | P104: 111.25 | Q104: 497.3389 | R104: 8.895092694 | S104: 111.25 | T104: 486.7145 | U104: 9.517775354 | V104: 111.25 | W104: 664.2106 | X104: 4.760196292 | Y104: 111.25 | Z104: 621.9336 | AA104: 6.283315158 | AB104: 111.25 | AC104: 621.032 | AD104: 5.979716467 | AE104: 111.25 | AF104: 596.5815 | AG104: 5.376335878 | AH104: 111.25 | AI104: 565.8294 | AJ104: 7.93129771 | AK104: 111.25 | AL104: 489.8016 | AM104: 9.750381679 | AN104: 111.25 | AO104: 422.9814 | AP104: 12.30501636 | AQ104: 111.25 | AR104: 385.9769 | AS104: 15.86728462 | AT104: 111.25 | AU104: 463.0551 | AV104: 12.17121047 | AW104: 111.25 | AX104: 417.5317 | AY104: 14.90207197 | BA104: =AW104 -> 111.25 | BB104: =AVERAGE(B104,E104,H104,K104,N104,Q104,T104,W104,Z104,AC104,AF104,AI104,AL104,AO104,AR104,AU104,AX104) -> 529.6164 | BC104: =AVERAGE(C104,F104,I104,L104,O104,R104,U104,X104,AA104,AD104,AG104,AJ104,AM104,AP104,AS104,AV104,AY104) -> 8.634517929 | BD104: =STDEV(B104,E104,H104,K104,N104,Q104,T104,W104,Z104,AC104,AF104,AI104,AL104,AO104,AR104,AU104,AX104) -> 89.22319238 | BE104: =STDEV(C104,F104,I104,L104,O104,R104,U104,X104,AA104,AD104,AG104,AJ104,AM104,AP104,AS104,AV104,AY104) -> 3.411023368
A105: 112.5 | B105: 476.3406 | C105: 8.442420938 | D105: 112.5 | E105: 634.6576 | F105: 5.575899673 | G105: 112.5 | H105: 557.3148 | I105: 6.422246456 | J105: 112.5 | K105: 668.9573 | L105: 4.966739368 | M105: 112.5 | N105: 542.5263 | O105: 6.816684842 | P105: 112.5 | Q105: 512.299 | R105: 7.982660851 | S105: 112.5 | T105: 489.1234 | U105: 8.813522356 | V105: 112.5 | W105: 676.5735 | X105: 4.625627045 | Y105: 112.5 | Z105: 620.2611 | AA105: 6.323773173 | AB105: 112.5 | AC105: 631.6129 | AD105: 5.65997819 | AE105: 112.5 | AF105: 613.6554 | AG105: 5.179716467 | AH105: 112.5 | AI105: 567.8961 | AJ105: 7.935986914 | AK105: 112.5 | AL105: 495.3678 | AM105: 9.293238822 | AN105: 112.5 | AO105: 425.5867 | AP105: 12.41363141 | AQ105: 112.5 | AR105: 390.3274 | AS105: 14.86804798 | AT105: 112.5 | AU105: 447.2289 | AV105: 10.73391494 | AW105: 112.5 | AX105: 415.7373 | AY105: 13.82606325 | BA105: =AW105 -> 112.5 | BB105: =AVERAGE(B105,E105,H105,K105,N105,Q105,T105,W105,Z105,AC105,AF105,AI105,AL105,AO105,AR105,AU105,AX105) -> 539.1450647 | BC105: =AVERAGE(C105,F105,I105,L105,O105,R105,U105,X105,AA105,AD105,AG105,AJ105,AM105,AP105,AS105,AV105,AY105) -> 8.228244275 | BD105: =STDEV(B105,E105,H105,K105,N105,Q105,T105,W105,Z105,AC105,AF105,AI105,AL105,AO105,AR105,AU105,AX105) -> 91.69055179 | BE105: =STDEV(C105,F105,I105,L105,O105,R105,U105,X105,AA105,AD105,AG105,AJ105,AM105,AP105,AS105,AV105,AY105) -> 3.125586249
A106: 113.75 | B106: 466.1414 | C106: 9.277862595 | D106: 113.75 | E106: 650.7681 | F106: 5.267611778 | G106: 113.75 | H106: 601.1978 | I106: 6.122682661 | J106: 113.75 | K106: 666.3014 | L106: 4.925627045 | M106: 113.75 | N106: 583.7035 | O106: 6.482551799 | P106: 113.75 | Q106: 518.4869 | R106: 7.26259542 | S106: 113.75 | T106: 488.8571 | U106: 7.915703381 | V106: 113.75 | W106: 658.5841 | X106: 4.845365322 | Y106: 113.75 | Z106: 615.7962 | AA106: 6.305016358 | AB106: 113.75 | AC106: 644.8644 | AD106: 5.438167939 | AE106: 113.75 | AF106: 621.7636 | AG106: 5.014067612 | AH106: 113.75 | AI106: 568.1078 | AJ106: 7.715703381 | AK106: 113.75 | AL106: 501.8509 | AM106: 8.921155943 | AN106: 113.75 | AO106: 432.6242 | AP106: 12.54056707 | AQ106: 113.75 | AR106: 390.058 | AS106: 13.12922574 | AT106: 113.75 | AU106: 465.4833 | AV106: 10.15976009 | AW106: 113.75 | AX106: 417.6921 | AY106: 12.72028353 | BA106: =AW106 -> 113.75 | BB106: =AVERAGE(B106,E106,H106,K106,N106,Q106,T106,W106,Z106,AC106,AF106,AI106,AL106,AO106,AR106,AU106,AX106) -> 546.6047529 | BC106: =AVERAGE(C106,F106,I106,L106,O106,R106,U106,X106,AA106,AD106,AG106,AJ106,AM106,AP106,AS106,AV106,AY106) -> 7.884938097 | BD106: =STDEV(B106,E106,H106,K106,N106,Q106,T106,W106,Z106,AC106,AF106,AI106,AL106,AO106,AR106,AU106,AX106) -> 92.17080212 | BE106: =STDEV(C106,F106,I106,L106,O106,R106,U106,X106,AA106,AD106,AG106,AJ106,AM106,AP106,AS106,AV106,AY106) -> 2.826300423
A107: 115 | B107: 457.4466 | C107: 10.05147219 | D107: 115 | E107: 665.2899 | F107: 5.072300981 | G107: 115 | H107: 608.6598 | I107: 5.839803708 | J107: 115 | K107: 670.3253 | L107: 4.781025082 | M107: 115 | N107: 579.7042 | O107: 6.219411123 | P107: 115 | Q107: 565.1634 | R107: 6.562159215 | S107: 115 | T107: 530.2454 | U107: 7.415703381 | V107: 115 | W107: 662.2307 | X107: 4.913413304 | Y107: 115 | Z107: 625.8776 | AA107: 6.105343511 | AB107: 115 | AC107: 647.3146 | AD107: 5.265103599 | AE107: 115 | AF107: 626.721 | AG107: 4.951690294 | AH107: 115 | AI107: 577.0914 | AJ107: 7.520937841 | AK107: 115 | AL107: 481.4961 | AM107: 7.874372955 | AN107: 115 | AO107: 431.2141 | AP107: 12.02300981 | AQ107: 115 | AR107: 403.9851 | AS107: 11.7 | AT107: 115 | AU107: 487.894 | AV107: 10.85768811 | AW107: 115 | AX107: 427.1446 | AY107: 12.387241 | BA107: =AW107 -> 115 | BB107: =AVERAGE(B107,E107,H107,K107,N107,Q107,T107,W107,Z107,AC107,AF107,AI107,AL107,AO107,AR107,AU107,AX107) -> 555.7531647 | BC107: =AVERAGE(C107,F107,I107,L107,O107,R107,U107,X107,AA107,AD107,AG107,AJ107,AM107,AP107,AS107,AV107,AY107) -> 7.620039772 | BD107: =STDEV(B107,E107,H107,K107,N107,Q107,T107,W107,Z107,AC107,AF107,AI107,AL107,AO107,AR107,AU107,AX107) -> 91.59490679 | BE107: =STDEV(C107,F107,I107,L107,O107,R107,U107,X107,AA107,AD107,AG107,AJ107,AM107,AP107,AS107,AV107,AY107) -> 2.719788056
A108: 116.25 | B108: 440.4242 | C108: 10.49541985 | D108: 116.25 | E108: 665.6201 | F108: 4.992257361 | G108: 116.25 | H108: 621.7979 | I108: 5.49563795 | J108: 116.25 | K108: 676.5032 | L108: 4.607742639 | M108: 116.25 | N108: 596.5419 | O108: 5.863904035 | P108: 116.25 | Q108: 608.8034 | R108: 6.330207197 | S108: 116.25 | T108: 568.2803 | U108: 7.612868048 | V108: 116.25 | W108: 655.7344 | X108: 4.944601963 | Y108: 116.25 | Z108: 634.244 | AA108: 6.014176663 | AB108: 116.25 | AC108: 654.7379 | AD108: 5.023555071 | AE108: 116.25 | AF108: 626.4927 | AG108: 4.968593239 | AH108: 116.25 | AI108: 573.6657 | AJ108: 7.257688113 | AK108: 116.25 | AL108: 513.3193 | AM108: 6.862050164 | AN108: 116.25 | AO108: 431.753 | AP108: 11.59378408 | AQ108: 116.25 | AR108: 430.2128 | AS108: 12.0046892 | AT108: 116.25 | AU108: 479.6513 | AV108: 10.79683751 | AW108: 116.25 | AX108: 438.1382 | AY108: 12.01515812 | BA108: =AW108 -> 116.25 | BB108: =AVERAGE(B108,E108,H108,K108,N108,Q108,T108,W108,Z108,AC108,AF108,AI108,AL108,AO108,AR108,AU108,AX108) -> 565.6423706 | BC108: =AVERAGE(C108,F108,I108,L108,O108,R108,U108,X108,AA108,AD108,AG108,AJ108,AM108,AP108,AS108,AV108,AY108) -> 7.463480659 | BD108: =STDEV(B108,E108,H108,K108,N108,Q108,T108,W108,Z108,AC108,AF108,AI108,AL108,AO108,AR108,AU108,AX108) -> 90.52908315 | BE108: =STDEV(C108,F108,I108,L108,O108,R108,U108,X108,AA108,AD108,AG108,AJ108,AM108,AP108,AS108,AV108,AY108) -> 2.758289024
A109: 117.5 | B109: 439.4621 | C109: 11.06314068 | D109: 117.5 | E109: 659.5519 | F109: 4.946673937 | G109: 117.5 | H109: 625.859 | I109: 5.228026172 | J109: 117.5 | K109: 662.4329 | L109: 4.766303162 | M109: 117.5 | N109: 622.985 | O109: 5.653217012 | P109: 117.5 | Q109: 624.6506 | R109: 6.203707743 | S109: 117.5 | T109: 558.8159 | U109: 7.430316249 | V109: 117.5 | W109: 650.6246 | X109: 5.019629226 | Y109: 117.5 | Z109: 629.7013 | AA109: 6.056052345 | AB109: 117.5 | AC109: 613.88 | AD109: 5.094002181 | AE109: 117.5 | AF109: 632.5091 | AG109: 4.980588877 | AH109: 117.5 | AI109: 576.9051 | AJ109: 6.876990185 | AK109: 117.5 | AL109: 553.6993 | AM109: 6.183860414 | AN109: 117.5 | AO109: 437.2101 | AP109: 11.60272628 | AQ109: 117.5 | AR109: 447.8219 | AS109: 12.24569248 | AT109: 117.5 | AU109: 477.8048 | AV109: 11.18189749 | AW109: 117.5 | AX109: 423.6622 | AY109: 10.99083969 | BA109: =AW109 -> 117.5 | BB109: =AVERAGE(B109,E109,H109,K109,N109,Q109,T109,W109,Z109,AC109,AF109,AI109,AL109,AO109,AR109,AU109,AX109) -> 566.9162235 | BC109: =AVERAGE(C109,F109,I109,L109,O109,R109,U109,X109,AA109,AD109,AG109,AJ109,AM109,AP109,AS109,AV109,AY109) -> 7.383744948 | BD109: =STDEV(B109,E109,H109,K109,N109,Q109,T109,W109,Z109,AC109,AF109,AI109,AL109,AO109,AR109,AU109,AX109) -> 87.0227814 | BE109: =STDEV(C109,F109,I109,L109,O109,R109,U109,X109,AA109,AD109,AG109,AJ109,AM109,AP109,AS109,AV109,AY109) -> 2.787322015
A110: 118.75 | B110: 436.7751 | C110: 11.29989095 | D110: 118.75 | E110: 647.2155 | F110: 5.100218103 | G110: 118.75 | H110: 647.9727 | I110: 4.787241003 | J110: 118.75 | K110: 584.7497 | L110: 5.348636859 | M110: 118.75 | N110: 609.9805 | O110: 5.505343511 | P110: 118.75 | Q110: 630.5983 | R110: 6.060196292 | S110: 118.75 | T110: 566.9893 | U110: 7.199236641 | V110: 118.75 | W110: 646.1319 | X110: 5.108833152 | Y110: 118.75 | Z110: 624.9046 | AA110: 6.159214831 | AB110: 118.75 | AC110: 589.3923 | AD110: 5.351908397 | AE110: 118.75 | AF110: 625.3906 | AG110: 5.030970556 | AH110: 118.75 | AI110: 594.7709 | AJ110: 6.723009815 | AK110: 118.75 | AL110: 593.6227 | AM110: 5.511995638 | AN110: 118.75 | AO110: 440.1374 | AP110: 11.46728462 | AQ110: 118.75 | AR110: 454.6347 | AS110: 12.69814613 | AT110: 118.75 | AU110: 483.3095 | AV110: 11.49236641 | AW110: 118.75 | AX110: 398.4234 | AY110: 11.45976009 | BA110: =AW110 -> 118.75 | BB110: =AVERAGE(B110,E110,H110,K110,N110,Q110,T110,W110,Z110,AC110,AF110,AI110,AL110,AO110,AR110,AU110,AX110) -> 563.2352412 | BC110: =AVERAGE(C110,F110,I110,L110,O110,R110,U110,X110,AA110,AD110,AG110,AJ110,AM110,AP110,AS110,AV110,AY110) -> 7.429661941 | BD110: =STDEV(B110,E110,H110,K110,N110,Q110,T110,W110,Z110,AC110,AF110,AI110,AL110,AO110,AR110,AU110,AX110) -> 84.80260856 | BE110: =STDEV(C110,F110,I110,L110,O110,R110,U110,X110,AA110,AD110,AG110,AJ110,AM110,AP110,AS110,AV110,AY110) -> 2.909080752
A111: 120 | B111: 422.389 | C111: 11.44198473 | D111: 120 | E111: 643.0103 | F111: 5.30174482 | G111: 120 | H111: 671.7778 | I111: 4.542420938 | J111: 120 | K111: 548.7265 | L111: 6.062704471 | M111: 120 | N111: 613.8586 | O111: 5.40523446 | P111: 120 | Q111: 635.4977 | R111: 5.96695747 | S111: 120 | T111: 587.858 | U111: 7.115049073 | V111: 120 | W111: 649.9013 | X111: 5.103707743 | Y111: 120 | Z111: 622.8563 | AA111: 6.213522356 | AB111: 120 | AC111: 594.2896 | AD111: 5.442857143 | AE111: 120 | AF111: 624.1713 | AG111: 4.955507088 | AH111: 120 | AI111: 600.4723 | AJ111: 6.679934569 | AK111: 120 | AL111: 637.3729 | AM111: 5.021919302 | AN111: 120 | AO111: 448.2172 | AP111: 11.7521265 | AQ111: 120 | AR111: 452.9039 | AS111: 12.47306434 | AT111: 120 | AU111: 478.2685 | AV111: 11.18451472 | AW111: 120 | AX111: 406.7465 | AY111: 14.1436205 | BA111: =AW111 -> 120 | BB111: =AVERAGE(B111,E111,H111,K111,N111,Q111,T111,W111,Z111,AC111,AF111,AI111,AL111,AO111,AR111,AU111,AX111) -> 566.9598647 | BC111: =AVERAGE(C111,F111,I111,L111,O111,R111,U111,X111,AA111,AD111,AG111,AJ111,AM111,AP111,AS111,AV111,AY111) -> 7.576874719 | BD111: =STDEV(B111,E111,H111,K111,N111,Q111,T111,W111,Z111,AC111,AF111,AI111,AL111,AO111,AR111,AU111,AX111) -> 88.7712002 | BE111: =STDEV(C111,F111,I111,L111,O111,R111,U111,X111,AA111,AD111,AG111,AJ111,AM111,AP111,AS111,AV111,AY111) -> 3.195825892
A112: 121.25 | B112: 404.168 | C112: 11.52998909 | D112: 121.25 | E112: 642.1035 | F112: 5.506215921 | G112: 121.25 | H112: 667.7144 | I112: 4.623118866 | J112: 121.25 | K112: 592.6817 | L112: 6.384078517 | M112: 121.25 | N112: 599.4503 | O112: 5.563249727 | P112: 121.25 | Q112: 632.8073 | R112: 5.98778626 | S112: 121.25 | T112: 596.512 | U112: 7.098364231 | V112: 121.25 | W112: 665.3947 | X112: 4.960196292 | Y112: 121.25 | Z112: 616.7921 | AA112: 6.32431843 | AB112: 121.25 | AC112: 554.3916 | AD112: 5.765976009 | AE112: 121.25 | AF112: 632.3378 | AG112: 4.875790622 | AH112: 121.25 | AI112: 601.4664 | AJ112: 6.604798255 | AK112: 121.25 | AL112: 659.9504 | AM112: 4.751035987 | AN112: 121.25 | AO112: 436.6311 | AP112: 11.50076336 | AQ112: 121.25 | AR112: 451.607 | AS112: 12.00577972 | AT112: 121.25 | AU112: 475.8669 | AV112: 11.22410033 | AW112: 121.25 | AX112: 403.2901 | AY112: 15.23729553 | BA112: =AW112 -> 121.25 | BB112: =AVERAGE(B112,E112,H112,K112,N112,Q112,T112,W112,Z112,AC112,AF112,AI112,AL112,AO112,AR112,AU112,AX112) -> 566.6567824 | BC112: =AVERAGE(C112,F112,I112,L112,O112,R112,U112,X112,AA112,AD112,AG112,AJ112,AM112,AP112,AS112,AV112,AY112) -> 7.643697479 | BD112: =STDEV(B112,E112,H112,K112,N112,Q112,T112,W112,Z112,AC112,AF112,AI112,AL112,AO112,AR112,AU112,AX112) -> 93.88974976 | BE112: =STDEV(C112,F112,I112,L112,O112,R112,U112,X112,AA112,AD112,AG112,AJ112,AM112,AP112,AS112,AV112,AY112) -> 3.275982112
A113: 122.5 | B113: 400.2711 | C113: 12.00817884 | D113: 122.5 | E113: 646.8065 | F113: 5.495856052 | G113: 122.5 | H113: 667.5552 | I113: 4.664449291 | J113: 122.5 | K113: 596.1017 | L113: 6.763685932 | M113: 122.5 | N113: 624.6881 | O113: 5.526499455 | P113: 122.5 | Q113: 633.0881 | R113: 6.00697928 | S113: 122.5 | T113: 581.4637 | U113: 6.859869138 | V113: 122.5 | W113: 666.9349 | X113: 4.910796074 | Y113: 122.5 | Z113: 617.8657 | AA113: 6.385496183 | AB113: 122.5 | AC113: 624.1334 | AD113: 5.618211559 | AE113: 122.5 | AF113: 632.7313 | AG113: 4.840348964 | AH113: 122.5 | AI113: 603.5089 | AJ113: 6.549836423 | AK113: 122.5 | AL113: 673.1002 | AM113: 4.591603053 | AN113: 122.5 | AO113: 426.8583 | AP113: 11.79138495 | AQ113: 122.5 | AR113: 455.1059 | AS113: 12.26521265 | AT113: 122.5 | AU113: 479.2402 | AV113: 11.08211559 | AW113: 122.5 | AX113: 403.0897 | AY113: 16.22758997 | BA113: =AW113 -> 122.5 | BB113: =AVERAGE(B113,E113,H113,K113,N113,Q113,T113,W113,Z113,AC113,AF113,AI113,AL113,AO113,AR113,AU113,AX113) -> 572.5025235 | BC113: =AVERAGE(C113,F113,I113,L113,O113,R113,U113,X113,AA113,AD113,AG113,AJ113,AM113,AP113,AS113,AV113,AY113) -> 7.74047726 | BD113: =STDEV(B113,E113,H113,K113,N113,Q113,T113,W113,Z113,AC113,AF113,AI113,AL113,AO113,AR113,AU113,AX113) -> 97.46586932 | BE113: =STDEV(C113,F113,I113,L113,O113,R113,U113,X113,AA113,AD113,AG113,AJ113,AM113,AP113,AS113,AV113,AY113) -> 3.504652497
A114: 123.75 | B114: 405.6137 | C114: 11.48080698 | D114: 123.75 | E114: 648.5298 | F114: 5.395747001 | G114: 123.75 | H114: 665.1947 | I114: 4.656379498 | J114: 123.75 | K114: 587.868 | L114: 6.952453653 | M114: 123.75 | N114: 633.4031 | O114: 5.518320611 | P114: 123.75 | Q114: 634.9044 | R114: 5.946455834 | S114: 123.75 | T114: 594.2775 | U114: 6.584078517 | V114: 123.75 | W114: 661.1422 | X114: 4.955179935 | Y114: 123.75 | Z114: 620.3311 | AA114: 6.3087241 | AB114: 123.75 | AC114: 634.0801 | AD114: 5.281679389 | AE114: 123.75 | AF114: 644.4077 | AG114: 4.680479826 | AH114: 123.75 | AI114: 614.967 | AJ114: 6.361068702 | AK114: 123.75 | AL114: 675.6071 | AM114: 4.498691385 | AN114: 123.75 | AO114: 428.8738 | AP114: 12.16139586 | AQ114: 123.75 | AR114: 455.1687 | AS114: 12.28844057 | AT114: 123.75 | AU114: 479.9733 | AV114: 11.04547437 | AW114: 123.75 | AX114: 394.5745 | AY114: 15.36401309 | BA114: =AW114 -> 123.75 | BB114: =AVERAGE(B114,E114,H114,K114,N114,Q114,T114,W114,Z114,AC114,AF114,AI114,AL114,AO114,AR114,AU114,AX114) -> 575.2303941 | BC114: =AVERAGE(C114,F114,I114,L114,O114,R114,U114,X114,AA114,AD114,AG114,AJ114,AM114,AP114,AS114,AV114,AY114) -> 7.616434665 | BD114: =STDEV(B114,E114,H114,K114,N114,Q114,T114,W114,Z114,AC114,AF114,AI114,AL114,AO114,AR114,AU114,AX114) -> 98.9215168 | BE114: =STDEV(C114,F114,I114,L114,O114,R114,U114,X114,AA114,AD114,AG114,AJ114,AM114,AP114,AS114,AV114,AY114) -> 3.407266639
A115: 125 | B115: 413.7139 | C115: 11.36237732 | D115: 125 | E115: 643.4113 | F115: 5.445147219 | G115: 125 | H115: 674.0776 | I115: 4.523336968 | J115: 125 | K115: 577.832 | L115: 7.169247546 | M115: 125 | N115: 596.2594 | O115: 5.83653217 | P115: 125 | Q115: 633.7043 | R115: 5.829880044 | S115: 125 | T115: 603.4812 | U115: 6.359651036 | V115: 125 | W115: 648.2429 | X115: 5.010250818 | Y115: 125 | Z115: 618.4496 | AA115: 6.317230098 | AB115: 125 | AC115: 644.6783 | AD115: 4.829661941 | AE115: 125 | AF115: 644.1889 | AG115: 4.688440567 | AH115: 125 | AI115: 611.8547 | AJ115: 6.276881134 | AK115: 125 | AL115: 671.1189 | AM115: 4.534896401 | AN115: 125 | AO115: 430.3052 | AP115: 11.89694656 | AQ115: 125 | AR115: 455.9636 | AS115: 11.9306434 | AT115: 125 | AU115: 471.6894 | AV115: 10.95790622 | AW115: 125 | AX115: 395.5073 | AY115: 15.75747001 | BA115: =AW115 -> 125 | BB115: =AVERAGE(B115,E115,H115,K115,N115,Q115,T115,W115,Z115,AC115,AF115,AI115,AL115,AO115,AR115,AU115,AX115) -> 572.6163824 | BC115: =AVERAGE(C115,F115,I115,L115,O115,R115,U115,X115,AA115,AD115,AG115,AJ115,AM115,AP115,AS115,AV115,AY115) -> 7.572147027 | BD115: =STDEV(B115,E115,H115,K115,N115,Q115,T115,W115,Z115,AC115,AF115,AI115,AL115,AO115,AR115,AU115,AX115) -> 97.0241856 | BE115: =STDEV(C115,F115,I115,L115,O115,R115,U115,X115,AA115,AD115,AG115,AJ115,AM115,AP115,AS115,AV115,AY115) -> 3.417844028
A116: 126.25 | B116: 411.2541 | C116: 11.58735005 | D116: 126.25 | E116: 646.6891 | F116: 5.461068702 | G116: 126.25 | H116: 682.0697 | I116: 4.426499455 | J116: 126.25 | K116: 575.6841 | L116: 7.1912759 | M116: 126.25 | N116: 614.6462 | O116: 5.978625954 | P116: 126.25 | Q116: 641.6598 | R116: 5.616902944 | S116: 126.25 | T116: 613.6371 | U116: 6.14263904 | V116: 126.25 | W116: 653.7293 | X116: 4.959869138 | Y116: 126.25 | Z116: 610.3138 | AA116: 6.432388222 | AB116: 126.25 | AC116: 687.5808 | AD116: 4.351799346 | AE116: 126.25 | AF116: 643.3994 | AG116: 4.764994547 | AH116: 126.25 | AI116: 585.1473 | AJ116: 6.562704471 | AK116: 126.25 | AL116: 661.0995 | AM116: 4.653980371 | AN116: 126.25 | AO116: 429.0266 | AP116: 12.05125409 | AQ116: 126.25 | AR116: 461.0893 | AS116: 11.917012 | AT116: 126.25 | AU116: 470.1103 | AV116: 10.3912759 | AW116: 126.25 | AX116: 395.1962 | AY116: 15.27459106 | BA116: =AW116 -> 126.25 | BB116: =AVERAGE(B116,E116,H116,K116,N116,Q116,T116,W116,Z116,AC116,AF116,AI116,AL116,AO116,AR116,AU116,AX116) -> 575.4313294 | BC116: =AVERAGE(C116,F116,I116,L116,O116,R116,U116,X116,AA116,AD116,AG116,AJ116,AM116,AP116,AS116,AV116,AY116) -> 7.515543011 | BD116: =STDEV(B116,E116,H116,K116,N116,Q116,T116,W116,Z116,AC116,AF116,AI116,AL116,AO116,AR116,AU116,AX116) -> 100.2655718 | BE116: =STDEV(C116,F116,I116,L116,O116,R116,U116,X116,AA116,AD116,AG116,AJ116,AM116,AP116,AS116,AV116,AY116) -> 3.364277658
A117: 127.5 | B117: 408.2437 | C117: 11.67699019 | D117: 127.5 | E117: 630.6244 | F117: 5.580697928 | G117: 127.5 | H117: 678.9736 | I117: 4.470119956 | J117: 127.5 | K117: 583.2465 | L117: 6.959214831 | M117: 127.5 | N117: 601.014 | O117: 6.147437296 | P117: 127.5 | Q117: 651.3899 | R117: 5.451145038 | S117: 127.5 | T117: 629.1243 | U117: 6.00348964 | V117: 127.5 | W117: 668.4765 | X117: 4.852671756 | Y117: 127.5 | Z117: 613.8911 | AA117: 6.478407852 | AB117: 127.5 | AC117: 702.2521 | AD117: 4.153107961 | AE117: 127.5 | AF117: 642.7277 | AG117: 4.760741549 | AH117: 127.5 | AI117: 593.1345 | AJ117: 6.856379498 | AK117: 127.5 | AL117: 651.7495 | AM117: 4.678189749 | AN117: 127.5 | AO117: 425.4128 | AP117: 12.37568157 | AQ117: 127.5 | AR117: 456.2383 | AS117: 11.16804798 | AT117: 127.5 | AU117: 484.3208 | AV117: 9.93217012 | AW117: 127.5 | AX117: 398.5773 | AY117: 15.0389313 | BA117: =AW117 -> 127.5 | BB117: =AVERAGE(B117,E117,H117,K117,N117,Q117,T117,W117,Z117,AC117,AF117,AI117,AL117,AO117,AR117,AU117,AX117) -> 577.6115882 | BC117: =AVERAGE(C117,F117,I117,L117,O117,R117,U117,X117,AA117,AD117,AG117,AJ117,AM117,AP117,AS117,AV117,AY117) -> 7.446083777 | BD117: =STDEV(B117,E117,H117,K117,N117,Q117,T117,W117,Z117,AC117,AF117,AI117,AL117,AO117,AR117,AU117,AX117) -> 101.2990949 | BE117: =STDEV(C117,F117,I117,L117,O117,R117,U117,X117,AA117,AD117,AG117,AJ117,AM117,AP117,AS117,AV117,AY117) -> 3.29708973
A118: 128.75 | B118: 402.9164 | C118: 11.28833152 | D118: 128.75 | E118: 620.6606 | F118: 5.808178844 | G118: 128.75 | H118: 673.6437 | I118: 4.508178844 | J118: 128.75 | K118: 582.286 | L118: 6.518756816 | M118: 128.75 | N118: 587.9745 | O118: 6.462268266 | P118: 128.75 | Q118: 654.1039 | R118: 5.280152672 | S118: 128.75 | T118: 633.0229 | U118: 5.986368593 | V118: 128.75 | W118: 671.9524 | X118: 4.785932388 | Y118: 128.75 | Z118: 612.93 | AA118: 6.408396947 | AB118: 128.75 | AC118: 658.6365 | AD118: 4.452453653 | AE118: 128.75 | AF118: 638.7326 | AG118: 4.690185387 | AH118: 128.75 | AI118: 598.0238 | AJ118: 6.918211559 | AK118: 128.75 | AL118: 648.8555 | AM118: 4.769247546 | AN118: 128.75 | AO118: 421.8675 | AP118: 12.05986914 | AQ118: 128.75 | AR118: 464.9607 | AS118: 10.82769902 | AT118: 128.75 | AU118: 502.1769 | AV118: 9.755725191 | AW118: 128.75 | AX118: 395.3846 | AY118: 13.46423119 | BA118: =AW118 -> 128.75 | BB118: =AVERAGE(B118,E118,H118,K118,N118,Q118,T118,W118,Z118,AC118,AF118,AI118,AL118,AO118,AR118,AU118,AX118) -> 574.5957941 | BC118: =AVERAGE(C118,F118,I118,L118,O118,R118,U118,X118,AA118,AD118,AG118,AJ118,AM118,AP118,AS118,AV118,AY118) -> 7.293187504 | BD118: =STDEV(B118,E118,H118,K118,N118,Q118,T118,W118,Z118,AC118,AF118,AI118,AL118,AO118,AR118,AU118,AX118) -> 97.55580536 | BE118: =STDEV(C118,F118,I118,L118,O118,R118,U118,X118,AA118,AD118,AG118,AJ118,AM118,AP118,AS118,AV118,AY118) -> 2.96604011
A119: 130 | B119: 401.1154 | C119: 10.90087241 | D119: 130 | E119: 585.9111 | F119: 6.239476554 | G119: 130 | H119: 679.2055 | I119: 4.412540894 | J119: 130 | K119: 607.5857 | L119: 5.946346783 | M119: 130 | N119: 592.8944 | O119: 6.620174482 | P119: 130 | Q119: 660.2277 | R119: 5.119302072 | S119: 130 | T119: 631.339 | U119: 6.007197383 | V119: 130 | W119: 677.1252 | X119: 4.713195202 | Y119: 130 | Z119: 611.2068 | AA119: 6.200981461 | AB119: 130 | AC119: 635.8386 | AD119: 4.738822246 | AE119: 130 | AF119: 665.7674 | AG119: 4.434678299 | AH119: 130 | AI119: 594.2721 | AJ119: 6.911450382 | AK119: 130 | AL119: 642.7272 | AM119: 4.939694656 | AN119: 130 | AO119: 421.7231 | AP119: 11.23762268 | AQ119: 130 | AR119: 468.1975 | AS119: 10.02486369 | AT119: 130 | AU119: 499.6455 | AV119: 9.451581243 | AW119: 130 | AX119: 411.3927 | AY119: 13.45114504 | BA119: =AW119 -> 130 | BB119: =AVERAGE(B119,E119,H119,K119,N119,Q119,T119,W119,Z119,AC119,AF119,AI119,AL119,AO119,AR119,AU119,AX119) -> 575.6573471 | BC119: =AVERAGE(C119,F119,I119,L119,O119,R119,U119,X119,AA119,AD119,AG119,AJ119,AM119,AP119,AS119,AV119,AY119) -> 7.138232087 | BD119: =STDEV(B119,E119,H119,K119,N119,Q119,T119,W119,Z119,AC119,AF119,AI119,AL119,AO119,AR119,AU119,AX119) -> 96.50498421 | BE119: =STDEV(C119,F119,I119,L119,O119,R119,U119,X119,AA119,AD119,AG119,AJ119,AM119,AP119,AS119,AV119,AY119) -> 2.789395296
A120: 131.25 | B120: 408.9414 | C120: 10.38909487 | D120: 131.25 | E120: 576.9464 | F120: 6.819629226 | G120: 131.25 | H120: 671.3266 | I120: 4.483860414 | J120: 131.25 | K120: 640.2943 | L120: 5.60174482 | M120: 131.25 | N120: 576.3041 | O120: 6.762159215 | P120: 131.25 | Q120: 655.07 | R120: 5.03565976 | S120: 131.25 | T120: 632.9071 | U120: 5.989094875 | V120: 131.25 | W120: 669.0643 | X120: 4.797600872 | Y120: 131.25 | Z120: 610.5442 | AA120: 6.092584515 | AB120: 131.25 | AC120: 675.3699 | AD120: 4.593238822 | AE120: 131.25 | AF120: 664.4673 | AG120: 4.414285714 | AH120: 131.25 | AI120: 597.4362 | AJ120: 6.826172301 | AK120: 131.25 | AL120: 641.9828 | AM120: 5.030534351 | AN120: 131.25 | AO120: 424.7471 | AP120: 10.31439477 | AQ120: 131.25 | AR120: 488.3166 | AS120: 9.969029444 | AT120: 131.25 | AU120: 477.6962 | AV120: 9.302944384 | AW120: 131.25 | AX120: 412.6479 | AY120: 12.43227917 | BA120: =AW120 -> 131.25 | BB120: =AVERAGE(B120,E120,H120,K120,N120,Q120,T120,W120,Z120,AC120,AF120,AI120,AL120,AO120,AR120,AU120,AX120) -> 577.8860235 | BC120: =AVERAGE(C120,F120,I120,L120,O120,R120,U120,X120,AA120,AD120,AG120,AJ120,AM120,AP120,AS120,AV120,AY120) -> 6.991429854 | BD120: =STDEV(B120,E120,H120,K120,N120,Q120,T120,W120,Z120,AC120,AF120,AI120,AL120,AO120,AR120,AU120,AX120) -> 96.77364203 | BE120: =STDEV(C120,F120,I120,L120,O120,R120,U120,X120,AA120,AD120,AG120,AJ120,AM120,AP120,AS120,AV120,AY120) -> 2.51763042
A121: 132.5 | B121: 416.757 | C121: 10.4521265 | D121: 132.5 | E121: 592.8839 | F121: 7.085169029 | G121: 132.5 | H121: 653.4938 | I121: 4.698473282 | J121: 132.5 | K121: 632.9464 | L121: 5.478080698 | M121: 132.5 | N121: 578.4666 | O121: 6.95997819 | P121: 132.5 | Q121: 669.9393 | R121: 4.915376227 | S121: 132.5 | T121: 636.08 | U121: 5.940130862 | V121: 132.5 | W121: 652.7773 | X121: 4.981679389 | Y121: 132.5 | Z121: 603.7859 | AA121: 6.336205016 | AB121: 132.5 | AC121: 646.2215 | AD121: 4.877099237 | AE121: 132.5 | AF121: 667.6974 | AG121: 4.340676118 | AH121: 132.5 | AI121: 592.8804 | AJ121: 6.732497274 | AK121: 132.5 | AL121: 649.1729 | AM121: 4.954525627 | AN121: 132.5 | AO121: 433.8547 | AP121: 10.33816794 | AQ121: 132.5 | AR121: 494.4107 | AS121: 10.18800436 | AT121: 132.5 | AU121: 451.23 | AV121: 9.925954198 | AW121: 132.5 | AX121: 424.0292 | AY121: 11.84536532 | BA121: =AW121 -> 132.5 | BB121: =AVERAGE(B121,E121,H121,K121,N121,Q121,T121,W121,Z121,AC121,AF121,AI121,AL121,AO121,AR121,AU121,AX121) -> 576.2721765 | BC121: =AVERAGE(C121,F121,I121,L121,O121,R121,U121,X121,AA121,AD121,AG121,AJ121,AM121,AP121,AS121,AV121,AY121) -> 7.061735839 | BD121: =STDEV(B121,E121,H121,K121,N121,Q121,T121,W121,Z121,AC121,AF121,AI121,AL121,AO121,AR121,AU121,AX121) -> 93.03926741 | BE121: =STDEV(C121,F121,I121,L121,O121,R121,U121,X121,AA121,AD121,AG121,AJ121,AM121,AP121,AS121,AV121,AY121) -> 2.482909951
A122: 133.75 | B122: 424.8732 | C122: 10.84667394 | D122: 133.75 | E122: 575.7541 | F122: 7.276008724 | G122: 133.75 | H122: 656.627 | I122: 4.737840785 | J122: 133.75 | K122: 645.4257 | L122: 5.133260632 | M122: 133.75 | N122: 575.3268 | O122: 7.021155943 | P122: 133.75 | Q122: 519.9676 | R122: 5.523555071 | S122: 133.75 | T122: 630.4627 | U122: 5.947982552 | V122: 133.75 | W122: 620.0266 | X122: 5.346782988 | Y122: 133.75 | Z122: 618.3464 | AA122: 6.386259542 | AB122: 133.75 | AC122: 608.2435 | AD122: 5.435441658 | AE122: 133.75 | AF122: 664.7606 | AG122: 4.36608506 | AH122: 133.75 | AI122: 593.8792 | AJ122: 6.797709924 | AK122: 133.75 | AL122: 658.3141 | AM122: 4.80785169 | AN122: 133.75 | AO122: 431.0628 | AP122: 9.885714286 | AQ122: 133.75 | AR122: 471.0079 | AS122: 9.619738277 | AT122: 133.75 | AU122: 462.8655 | AV122: 11.53293348 | AW122: 133.75 | AX122: 437.1615 | AY122: 12.82846238 | BA122: =AW122 -> 133.75 | BB122: =AVERAGE(B122,E122,H122,K122,N122,Q122,T122,W122,Z122,AC122,AF122,AI122,AL122,AO122,AR122,AU122,AX122) -> 564.3591294 | BC122: =AVERAGE(C122,F122,I122,L122,O122,R122,U122,X122,AA122,AD122,AG122,AJ122,AM122,AP122,AS122,AV122,AY122) -> 7.264320996 | BD122: =STDEV(B122,E122,H122,K122,N122,Q122,T122,W122,Z122,AC122,AF122,AI122,AL122,AO122,AR122,AU122,AX122) -> 87.25437404 | BE122: =STDEV(C122,F122,I122,L122,O122,R122,U122,X122,AA122,AD122,AG122,AJ122,AM122,AP122,AS122,AV122,AY122) -> 2.653122565
A123: 135 | B123: 429.6332 | C123: 11.23685932 | D123: 135 | E123: 579.7787 | F123: 7.506761178 | G123: 135 | H123: 670.2746 | I123: 4.678407852 | J123: 135 | K123: 665.6583 | L123: 4.887677208 | M123: 135 | N123: 574.2041 | O123: 6.931406761 | P123: 135 | Q123: 427.7221 | R123: 6.083533261 | S123: 135 | T123: 621.7539 | U123: 5.97480916 | V123: 135 | W123: 629.8127 | X123: 5.490076336 | Y123: 135 | Z123: 620.9613 | AA123: 6.341657579 | AB123: 135 | AC123: 633.134 | AD123: 5.6 | AE123: 135 | AF123: 652.9368 | AG123: 4.422900763 | AH123: 135 | AI123: 585.6489 | AJ123: 6.894983642 | AK123: 135 | AL123: 670.6416 | AM123: 4.665430752 | AN123: 135 | AO123: 439.118 | AP123: 9.409160305 | AQ123: 135 | AR123: 455.0588 | AS123: 9.982115594 | AT123: 135 | AU123: 463.375 | AV123: 12.31679389 | AW123: 135 | AX123: 440.1182 | AY123: 12.85757906 | BA123: =AW123 -> 135 | BB123: =AVERAGE(B123,E123,H123,K123,N123,Q123,T123,W123,Z123,AC123,AF123,AI123,AL123,AO123,AR123,AU123,AX123) -> 562.3429529 | BC123: =AVERAGE(C123,F123,I123,L123,O123,R123,U123,X123,AA123,AD123,AG123,AJ123,AM123,AP123,AS123,AV123,AY123) -> 7.369420745 | BD123: =STDEV(B123,E123,H123,K123,N123,Q123,T123,W123,Z123,AC123,AF123,AI123,AL123,AO123,AR123,AU123,AX123) -> 95.8314895 | BE123: =STDEV(C123,F123,I123,L123,O123,R123,U123,X123,AA123,AD123,AG123,AJ123,AM123,AP123,AS123,AV123,AY123) -> 2.757803232
A124: 136.25 | B124: 421.6022 | C124: 11.15387132 | D124: 136.25 | E124: 580.9764 | F124: 7.34612868 | G124: 136.25 | H124: 667.1973 | I124: 4.739476554 | J124: 136.25 | K124: 649.2092 | L124: 4.997818975 | M124: 136.25 | N124: 583.5593 | O124: 6.67655398 | P124: 136.25 | Q124: 625.6429 | R124: 6.082333697 | S124: 136.25 | T124: 604.1739 | U124: 5.949618321 | V124: 136.25 | W124: 639.8326 | X124: 5.316575791 | Y124: 136.25 | Z124: 615.8586 | AA124: 6.443184297 | AB124: 136.25 | AC124: 611.042 | AD124: 5.968920393 | AE124: 136.25 | AF124: 654.7409 | AG124: 4.408615049 | AH124: 136.25 | AI124: 574.7788 | AJ124: 7.150381679 | AK124: 136.25 | AL124: 672.9297 | AM124: 4.585387132 | AN124: 136.25 | AO124: 470.8437 | AP124: 9.573609597 | AQ124: 136.25 | AR124: 436.8625 | AS124: 10.44820065 | AT124: 136.25 | AU124: 462.6419 | AV124: 12.5174482 | AW124: 136.25 | AX124: 446.8774 | AY124: 12.8346783 | BA124: =AW124 -> 136.25 | BB124: =AVERAGE(B124,E124,H124,K124,N124,Q124,T124,W124,Z124,AC124,AF124,AI124,AL124,AO124,AR124,AU124,AX124) -> 571.6923118 | BC124: =AVERAGE(C124,F124,I124,L124,O124,R124,U124,X124,AA124,AD124,AG124,AJ124,AM124,AP124,AS124,AV124,AY124) -> 7.423106036 | BD124: =STDEV(B124,E124,H124,K124,N124,Q124,T124,W124,Z124,AC124,AF124,AI124,AL124,AO124,AR124,AU124,AX124) -> 87.66694354 | BE124: =STDEV(C124,F124,I124,L124,O124,R124,U124,X124,AA124,AD124,AG124,AJ124,AM124,AP124,AS124,AV124,AY124) -> 2.798151743
A125: 137.5 | B125: 415.5417 | C125: 10.90348964 | D125: 137.5 | E125: 585.0016 | F125: 7.118211559 | G125: 137.5 | H125: 650.7389 | I125: 4.919629226 | J125: 137.5 | K125: 643.9139 | L125: 5.212322792 | M125: 137.5 | N125: 587.226 | O125: 6.389094875 | P125: 137.5 | Q125: 537.2007 | R125: 5.969792803 | S125: 137.5 | T125: 583.1111 | U125: 6.209487459 | V125: 137.5 | W125: 656.4356 | X125: 5.055398037 | Y125: 137.5 | Z125: 615.8574 | AA125: 6.532279171 | AB125: 137.5 | AC125: 616.9702 | AD125: 6.250490731 | AE125: 137.5 | AF125: 668.5893 | AG125: 4.318756816 | AH125: 137.5 | AI125: 580.0226 | AJ125: 7.423009815 | AK125: 137.5 | AL125: 677.4776 | AM125: 4.503380589 | AN125: 137.5 | AO125: 438.3401 | AP125: 8.033587786 | AQ125: 137.5 | AR125: 442.8396 | AS125: 12.05321701 | AT125: 137.5 | AU125: 460.915 | AV125: 12.05016358 | AW125: 137.5 | AX125: 447.0054 | AY125: 12.16434024 | BA125: =AW125 -> 137.5 | BB125: =AVERAGE(B125,E125,H125,K125,N125,Q125,T125,W125,Z125,AC125,AF125,AI125,AL125,AO125,AR125,AU125,AX125) -> 565.1286294 | BC125: =AVERAGE(C125,F125,I125,L125,O125,R125,U125,X125,AA125,AD125,AG125,AJ125,AM125,AP125,AS125,AV125,AY125) -> 7.359214831 | BD125: =STDEV(B125,E125,H125,K125,N125,Q125,T125,W125,Z125,AC125,AF125,AI125,AL125,AO125,AR125,AU125,AX125) -> 90.44636572 | BE125: =STDEV(C125,F125,I125,L125,O125,R125,U125,X125,AA125,AD125,AG125,AJ125,AM125,AP125,AS125,AV125,AY125) -> 2.73383616
A126: 138.75 | B126: 413.7651 | C126: 10.84143948 | D126: 138.75 | E126: 582.2134 | F126: 6.718320611 | G126: 138.75 | H126: 658.5177 | I126: 4.84438386 | J126: 138.75 | K126: 651.1452 | L126: 5.352998909 | M126: 138.75 | N126: 590.9165 | O126: 6.313849509 | P126: 138.75 | Q126: 493.8914 | R126: 5.678953108 | S126: 138.75 | T126: 589.415 | U126: 6.482551799 | V126: 138.75 | W126: 659.2886 | X126: 4.914394766 | Y126: 138.75 | Z126: 612.4844 | AA126: 6.576008724 | AB126: 138.75 | AC126: 616.6729 | AD126: 6.362813522 | AE126: 138.75 | AF126: 639.6486 | AG126: 4.552671756 | AH126: 138.75 | AI126: 582.416 | AJ126: 7.550599782 | AK126: 138.75 | AL126: 640.1209 | AM126: 4.742420938 | AN126: 138.75 | AO126: 381.1039 | AP126: 6.490730643 | AQ126: 138.75 | AR126: 435.5053 | AS126: 12.6782988 | AT126: 138.75 | AU126: 453.0203 | AV126: 10.7563795 | AW126: 138.75 | AX126: 447.6301 | AY126: 11.20861505 | BA126: =AW126 -> 138.75 | BB126: =AVERAGE(B126,E126,H126,K126,N126,Q126,T126,W126,Z126,AC126,AF126,AI126,AL126,AO126,AR126,AU126,AX126) -> 555.7503118 | BC126: =AVERAGE(C126,F126,I126,L126,O126,R126,U126,X126,AA126,AD126,AG126,AJ126,AM126,AP126,AS126,AV126,AY126) -> 7.180319456 | BD126: =STDEV(B126,E126,H126,K126,N126,Q126,T126,W126,Z126,AC126,AF126,AI126,AL126,AO126,AR126,AU126,AX126) -> 95.66884753 | BE126: =STDEV(C126,F126,I126,L126,O126,R126,U126,X126,AA126,AD126,AG126,AJ126,AM126,AP126,AS126,AV126,AY126) -> 2.55900714
A127: 140 | B127: 416.368 | C127: 10.62115594 | D127: 140 | E127: 601.2042 | F127: 6.134351145 | G127: 140 | H127: 660.9667 | I127: 4.799672846 | J127: 140 | K127: 613.911 | L127: 5.395092694 | M127: 140 | N127: 600.2041 | O127: 6.442857143 | P127: 140 | Q127: 546.9341 | R127: 5.380043621 | S127: 140 | T127: 604.3348 | U127: 6.474700109 | V127: 140 | W127: 623.6229 | X127: 5.07306434 | Y127: 140 | Z127: 608.7402 | AA127: 6.622900763 | AB127: 140 | AC127: 610.8174 | AD127: 6.464449291 | AE127: 140 | AF127: 640.4385 | AG127: 4.653107961 | AH127: 140 | AI127: 581.5704 | AJ127: 7.499563795 | AK127: 140 | AL127: 632.1359 | AM127: 4.920065431 | AN127: 140 | AO127: 452.0764 | AP127: 5.913304253 | AQ127: 140 | AR127: 437.2099 | AS127: 13.56695747 | AT127: 140 | AU127: 470.0019 | AV127: 10.22355507 | AW127: 140 | AX127: 459.6081 | AY127: 10.217012 | BA127: =AW127 -> 140 | BB127: =AVERAGE(B127,E127,H127,K127,N127,Q127,T127,W127,Z127,AC127,AF127,AI127,AL127,AO127,AR127,AU127,AX127) -> 562.3614412 | BC127: =AVERAGE(C127,F127,I127,L127,O127,R127,U127,X127,AA127,AD127,AG127,AJ127,AM127,AP127,AS127,AV127,AY127) -> 7.082461992 | BD127: =STDEV(B127,E127,H127,K127,N127,Q127,T127,W127,Z127,AC127,AF127,AI127,AL127,AO127,AR127,AU127,AX127) -> 81.06119826 | BE127: =STDEV(C127,F127,I127,L127,O127,R127,U127,X127,AA127,AD127,AG127,AJ127,AM127,AP127,AS127,AV127,AY127) -> 2.545170641
A128: 141.25 | B128: 400.8187 | C128: 10.19901854 | D128: 141.25 | E128: 632.3788 | F128: 5.78953108 | G128: 141.25 | H128: 658.8726 | I128: 4.830207197 | J128: 141.25 | K128: 650.8407 | L128: 4.760959651 | M128: 141.25 | N128: 598.8698 | O128: 6.417011996 | P128: 141.25 | Q128: 597.5056 | R128: 5.266194111 | S128: 141.25 | T128: 620.6909 | U128: 6.383097056 | V128: 141.25 | W128: 605.2082 | X128: 5.270010905 | Y128: 141.25 | Z128: 607.4085 | AA128: 6.706434024 | AB128: 141.25 | AC128: 610.4168 | AD128: 6.520501636 | AE128: 141.25 | AF128: 619.582 | AG128: 4.921155943 | AH128: 141.25 | AI128: 566.6848 | AJ128: 7.514940022 | AK128: 141.25 | AL128: 625.6296 | AM128: 5.127480916 | AN128: 141.25 | AO128: 544.0614 | AP128: 5.742202835 | AQ128: 141.25 | AR128: 431.0538 | AS128: 13.12671756 | AT128: 141.25 | AU128: 486.2061 | AV128: 10.28691385 | AW128: 141.25 | AX128: 490.0822 | AY128: 10.65714286 | BA128: =AW128 -> 141.25 | BB128: =AVERAGE(B128,E128,H128,K128,N128,Q128,T128,W128,Z128,AC128,AF128,AI128,AL128,AO128,AR128,AU128,AX128) -> 573.3123824 | BC128: =AVERAGE(C128,F128,I128,L128,O128,R128,U128,X128,AA128,AD128,AG128,AJ128,AM128,AP128,AS128,AV128,AY128) -> 7.03056001 | BD128: =STDEV(B128,E128,H128,K128,N128,Q128,T128,W128,Z128,AC128,AF128,AI128,AL128,AO128,AR128,AU128,AX128) -> 76.7071265 | BE128: =STDEV(C128,F128,I128,L128,O128,R128,U128,X128,AA128,AD128,AG128,AJ128,AM128,AP128,AS128,AV128,AY128) -> 2.497876241
A129: 142.5 | B129: 404.4519 | C129: 11.1651036 | D129: 142.5 | E129: 633.7525 | F129: 5.813740458 | G129: 142.5 | H129: 660.1456 | I129: 4.79563795 | J129: 142.5 | K129: 689.4399 | L129: 4.37306434 | M129: 142.5 | N129: 603.445 | O129: 6.330316249 | P129: 142.5 | Q129: 600.3202 | R129: 5.243729553 | S129: 142.5 | T129: 495.4381 | U129: 6.377208288 | V129: 142.5 | W129: 646.1073 | X129: 5.005888768 | Y129: 142.5 | Z129: 607.83 | AA129: 6.762486369 | AB129: 142.5 | AC129: 605.1259 | AD129: 6.553107961 | AE129: 142.5 | AF129: 619.0965 | AG129: 5.153980371 | AH129: 142.5 | AI129: 556.7936 | AJ129: 7.678189749 | AK129: 142.5 | AL129: 636.3708 | AM129: 5.335550709 | AN129: 142.5 | AO129: 610.9453 | AP129: 5.505125409 | AQ129: 142.5 | AR129: 431.7282 | AS129: 12.92355507 | AT129: 142.5 | AU129: 489.4517 | AV129: 9.64612868 | AW129: 142.5 | AX129: 492.4382 | AY129: 10.02442748 | BA129: =AW129 -> 142.5 | BB129: =AVERAGE(B129,E129,H129,K129,N129,Q129,T129,W129,Z129,AC129,AF129,AI129,AL129,AO129,AR129,AU129,AX129) -> 575.4635706 | BC129: =AVERAGE(C129,F129,I129,L129,O129,R129,U129,X129,AA129,AD129,AG129,AJ129,AM129,AP129,AS129,AV129,AY129) -> 6.981602412 | BD129: =STDEV(B129,E129,H129,K129,N129,Q129,T129,W129,Z129,AC129,AF129,AI129,AL129,AO129,AR129,AU129,AX129) -> 82.80219645 | BE129: =STDEV(C129,F129,I129,L129,O129,R129,U129,X129,AA129,AD129,AG129,AJ129,AM129,AP129,AS129,AV129,AY129) -> 2.484620441
A130: 143.75 | B130: 416.2462 | C130: 11.57491821 | D130: 143.75 | E130: 635.1527 | F130: 5.866630316 | G130: 143.75 | H130: 643.815 | I130: 4.894220284 | J130: 143.75 | K130: 699.6552 | L130: 4.290839695 | M130: 143.75 | N130: 607.8639 | O130: 6.329770992 | P130: 143.75 | Q130: 648.1412 | R130: 4.703598691 | S130: 143.75 | T130: 556.7883 | U130: 7.385823337 | V130: 143.75 | W130: 651.8216 | X130: 4.943729553 | Y130: 143.75 | Z130: 608.1345 | AA130: 6.802071974 | AB130: 143.75 | AC130: 590.6905 | AD130: 6.513413304 | AE130: 143.75 | AF130: 624.1186 | AG130: 5.233805889 | AH130: 143.75 | AI130: 550.3415 | AJ130: 7.927262814 | AK130: 143.75 | AL130: 631.7664 | AM130: 5.348854962 | AN130: 143.75 | AO130: 630.665 | AP130: 5.341112323 | AQ130: 143.75 | AR130: 425.4272 | AS130: 12.26466739 | AT130: 143.75 | AU130: 512.1286 | AV130: 9.551690294 | AW130: 143.75 | AX130: 512.405 | AY130: 10.1348964 | BA130: =AW130 -> 143.75 | BB130: =AVERAGE(B130,E130,H130,K130,N130,Q130,T130,W130,Z130,AC130,AF130,AI130,AL130,AO130,AR130,AU130,AX130) -> 585.0094941 | BC130: =AVERAGE(C130,F130,I130,L130,O130,R130,U130,X130,AA130,AD130,AG130,AJ130,AM130,AP130,AS130,AV130,AY130) -> 7.006312143 | BD130: =STDEV(B130,E130,H130,K130,N130,Q130,T130,W130,Z130,AC130,AF130,AI130,AL130,AO130,AR130,AU130,AX130) -> 79.44493236 | BE130: =STDEV(C130,F130,I130,L130,O130,R130,U130,X130,AA130,AD130,AG130,AJ130,AM130,AP130,AS130,AV130,AY130) -> 2.473309619
A131: 145 | B131: 417.4979 | C131: 11.43162486 | D131: 145 | E131: 636.2174 | F131: 5.759651036 | G131: 145 | H131: 632.8959 | I131: 5.020392585 | J131: 145 | K131: 695.1787 | L131: 4.275790622 | M131: 145 | N131: 605.9619 | O131: 6.195201745 | P131: 145 | Q131: 672.7305 | R131: 4.333696838 | S131: 145 | T131: 575.4812 | U131: 7.198037077 | V131: 145 | W131: 643.0821 | X131: 5.124754635 | Y131: 145 | Z131: 607.6873 | AA131: 6.813958561 | AB131: 145 | AC131: 581.613 | AD131: 6.477208288 | AE131: 145 | AF131: 607.0593 | AG131: 5.402726281 | AH131: 145 | AI131: 555.1235 | AJ131: 7.943293348 | AK131: 145 | AL131: 637.947 | AM131: 5.292257361 | AN131: 145 | AO131: 631.9877 | AP131: 5.200109051 | AQ131: 145 | AR131: 410.8946 | AS131: 11.97099237 | AT131: 145 | AU131: 461.2026 | AV131: 8.42868048 | AW131: 145 | AX131: 511.4846 | AY131: 9.887241003 | BA131: =AW131 -> 145 | BB131: =AVERAGE(B131,E131,H131,K131,N131,Q131,T131,W131,Z131,AC131,AF131,AI131,AL131,AO131,AR131,AU131,AX131) -> 581.4144235 | BC131: =AVERAGE(C131,F131,I131,L131,O131,R131,U131,X131,AA131,AD131,AG131,AJ131,AM131,AP131,AS131,AV131,AY131) -> 6.86797742 | BD131: =STDEV(B131,E131,H131,K131,N131,Q131,T131,W131,Z131,AC131,AF131,AI131,AL131,AO131,AR131,AU131,AX131) -> 84.5779201 | BE131: =STDEV(C131,F131,I131,L131,O131,R131,U131,X131,AA131,AD131,AG131,AJ131,AM131,AP131,AS131,AV131,AY131) -> 2.352223792
A132: 146.25 | B132: 413.0982 | C132: 11.12475463 | D132: 146.25 | E132: 637.6125 | F132: 5.549836423 | G132: 146.25 | H132: 641.8877 | I132: 4.955398037 | J132: 146.25 | K132: 690.5334 | L132: 4.197928026 | M132: 146.25 | N132: 603.2693 | O132: 6.114503817 | P132: 146.25 | Q132: 697.9588 | R132: 3.99738277 | S132: 146.25 | T132: 575.7755 | U132: 6.880370774 | V132: 146.25 | W132: 661.8224 | X132: 5.040130862 | Y132: 146.25 | Z132: 605.6246 | AA132: 6.69476554 | AB132: 146.25 | AC132: 356.1578 | AD132: 6.235441658 | AE132: 146.25 | AF132: 618.3646 | AG132: 5.525954198 | AH132: 146.25 | AI132: 564.5366 | AJ132: 7.786041439 | AK132: 146.25 | AL132: 638.1153 | AM132: 5.214394766 | AN132: 146.25 | AO132: 638.3455 | AP132: 4.86870229 | AQ132: 146.25 | AR132: 422.0962 | AS132: 14.16466739 | AT132: 146.25 | AU132: 456.9432 | AV132: 9.137731734 | AW132: 146.25 | AX132: 509.7335 | AY132: 9.708505998 | BA132: =AW132 -> 146.25 | BB132: =AVERAGE(B132,E132,H132,K132,N132,Q132,T132,W132,Z132,AC132,AF132,AI132,AL132,AO132,AR132,AU132,AX132) -> 572.4632412 | BC132: =AVERAGE(C132,F132,I132,L132,O132,R132,U132,X132,AA132,AD132,AG132,AJ132,AM132,AP132,AS132,AV132,AY132) -> 6.893912374 | BD132: =STDEV(B132,E132,H132,K132,N132,Q132,T132,W132,Z132,AC132,AF132,AI132,AL132,AO132,AR132,AU132,AX132) -> 103.5900687 | BE132: =STDEV(C132,F132,I132,L132,O132,R132,U132,X132,AA132,AD132,AG132,AJ132,AM132,AP132,AS132,AV132,AY132) -> 2.727751248
A133: 147.5 | B133: 404.5455 | C133: 10.73762268 | D133: 147.5 | E133: 652.6982 | F133: 5.257797165 | G133: 147.5 | H133: 646.2735 | I133: 4.834678299 | J133: 147.5 | K133: 705.5062 | L133: 3.897928026 | M133: 147.5 | N133: 599.5074 | O133: 6.253326063 | P133: 147.5 | Q133: 701.1863 | R133: 3.920392585 | S133: 147.5 | T133: 598.4086 | U133: 6.418647764 | V133: 147.5 | W133: 656.4121 | X133: 5.10523446 | Y133: 147.5 | Z133: 612.0525 | AA133: 6.584732824 | AB133: 147.5 | AC133: 221.136 | AD133: 6.250817884 | AE133: 147.5 | AF133: 613.0026 | AG133: 5.620937841 | AH133: 147.5 | AI133: 575.0337 | AJ133: 7.500109051 | AK133: 147.5 | AL133: 645.2243 | AM133: 5.127589967 | AN133: 147.5 | AO133: 664.5483 | AP133: 4.469138495 | AQ133: 147.5 | AR133: 423.3342 | AS133: 14.67121047 | AT133: 147.5 | AU133: 496.141 | AV133: 10.16194111 | AW133: 147.5 | AX133: 514.5344 | AY133: 9.666848419 | BA133: =AW133 -> 147.5 | BB133: =AVERAGE(B133,E133,H133,K133,N133,Q133,T133,W133,Z133,AC133,AF133,AI133,AL133,AO133,AR133,AU133,AX133) -> 572.3261647 | BC133: =AVERAGE(C133,F133,I133,L133,O133,R133,U133,X133,AA133,AD133,AG133,AJ133,AM133,AP133,AS133,AV133,AY133) -> 6.851703124 | BD133: =STDEV(B133,E133,H133,K133,N133,Q133,T133,W133,Z133,AC133,AF133,AI133,AL133,AO133,AR133,AU133,AX133) -> 126.1561502 | BE133: =STDEV(C133,F133,I133,L133,O133,R133,U133,X133,AA133,AD133,AG133,AJ133,AM133,AP133,AS133,AV133,AY133) -> 2.89035631
A134: 148.75 | B134: 402.3632 | C134: 10.65332606 | D134: 148.75 | E134: 664.4926 | F134: 5.129007634 | G134: 148.75 | H134: 649.5585 | I134: 4.748418757 | J134: 148.75 | K134: 720.4865 | L134: 3.68691385 | M134: 148.75 | N134: 610.2571 | O134: 6.19040349 | P134: 148.75 | Q134: 713.5418 | R134: 3.794438386 | S134: 148.75 | T134: 532.0026 | U134: 6.272737186 | V134: 148.75 | W134: 645.0673 | X134: 5.242966194 | Y134: 148.75 | Z134: 614.9811 | AA134: 6.523336968 | AB134: 148.75 | AC134: 514.6566 | AD134: 9.079062159 | AE134: 148.75 | AF134: 599.2422 | AG134: 5.751363141 | AH134: 148.75 | AI134: 573.2542 | AJ134: 7.221046892 | AK134: 148.75 | AL134: 631.5082 | AM134: 5.157579062 | AN134: 148.75 | AO134: 683.2082 | AP134: 4.17655398 | AQ134: 148.75 | AR134: 422.8406 | AS134: 14.87579062 | AT134: 148.75 | AU134: 466.4124 | AV134: 9.235877863 | AW134: 148.75 | AX134: 503.3665 | AY134: 9.299236641 | BA134: =AW134 -> 148.75 | BB134: =AVERAGE(B134,E134,H134,K134,N134,Q134,T134,W134,Z134,AC134,AF134,AI134,AL134,AO134,AR134,AU134,AX134) -> 585.1317412 | BC134: =AVERAGE(C134,F134,I134,L134,O134,R134,U134,X134,AA134,AD134,AG134,AJ134,AM134,AP134,AS134,AV134,AY134) -> 6.884591699 | BD134: =STDEV(B134,E134,H134,K134,N134,Q134,T134,W134,Z134,AC134,AF134,AI134,AL134,AO134,AR134,AU134,AX134) -> 97.08100255 | BE134: =STDEV(C134,F134,I134,L134,O134,R134,U134,X134,AA134,AD134,AG134,AJ134,AM134,AP134,AS134,AV134,AY134) -> 2.92673058
A135: 150 | B135: 415.2413 | C135: 10.95670665 | D135: 150 | E135: 649.4889 | F135: 5.150817884 | G135: 150 | H135: 645.799 | I135: 4.829443839 | J135: 150 | K135: 624.6148 | L135: 4.589858233 | M135: 150 | N135: 624.5352 | O135: 6.078189749 | P135: 150 | Q135: 707.9653 | R135: 3.838931298 | S135: 150 | T135: 434.834 | U135: 6.67219193 | V135: 150 | W135: 640.0075 | X135: 5.223009815 | Y135: 150 | Z135: 618.6156 | AA135: 6.454307525 | AB135: 150 | AC135: 513.7355 | AD135: 9.064994547 | AE135: 150 | AF135: 612.0706 | AG135: 5.789312977 | AH135: 150 | AI135: 578.0313 | AJ135: 6.712868048 | AK135: 150 | AL135: 641.948 | AM135: 5.063685932 | AN135: 150 | AO135: 691.6637 | AP135: 3.97131952 | AQ135: 150 | AR135: 419.591 | AS135: 14.32551799 | AT135: 150 | AU135: 458.2164 | AV135: 9.911014177 | AW135: 150 | AX135: 506.6487 | AY135: 9.52344602 | BA135: =AW135 -> 150 | BB135: =AVERAGE(B135,E135,H135,K135,N135,Q135,T135,W135,Z135,AC135,AF135,AI135,AL135,AO135,AR135,AU135,AX135) -> 575.4709882 | BC135: =AVERAGE(C135,F135,I135,L135,O135,R135,U135,X135,AA135,AD135,AG135,AJ135,AM135,AP135,AS135,AV135,AY135) -> 6.950330361 | BD135: =STDEV(B135,E135,H135,K135,N135,Q135,T135,W135,Z135,AC135,AF135,AI135,AL135,AO135,AR135,AU135,AX135) -> 96.8702682 | BE135: =STDEV(C135,F135,I135,L135,O135,R135,U135,X135,AA135,AD135,AG135,AJ135,AM135,AP135,AS135,AV135,AY135) -> 2.863540273
A136: 151.25 | B136: 403.0407 | C136: 10.3691385 | D136: 151.25 | E136: 648.1347 | F136: 5.201526718 | G136: 151.25 | H136: 637.8364 | I136: 4.877317339 | J136: 151.25 | K136: 648.7217 | L136: 4.808287895 | M136: 151.25 | N136: 608.8834 | O136: 6.015921483 | P136: 151.25 | Q136: 691.7077 | R136: 4.0217012 | S136: 151.25 | T136: 366.6534 | U136: 7.003053435 | V136: 151.25 | W136: 645.9124 | X136: 5.123555071 | Y136: 151.25 | Z136: 617.9818 | AA136: 6.379498364 | AB136: 151.25 | AC136: 515.5911 | AD136: 9.233696838 | AE136: 151.25 | AF136: 598.423 | AG136: 5.873718648 | AH136: 151.25 | AI136: 600.0055 | AJ136: 6.32431843 | AK136: 151.25 | AL136: 648.0099 | AM136: 5.108615049 | AN136: 151.25 | AO136: 697.1736 | AP136: 3.796837514 | AQ136: 151.25 | AR136: 417.4131 | AS136: 13.06466739 | AT136: 151.25 | AU136: 477.3774 | AV136: 11.08157034 | AW136: 151.25 | AX136: 508.6942 | AY136: 9.522137405 | BA136: =AW136 -> 151.25 | BB136: =AVERAGE(B136,E136,H136,K136,N136,Q136,T136,W136,Z136,AC136,AF136,AI136,AL136,AO136,AR136,AU136,AX136) -> 572.4447059 | BC136: =AVERAGE(C136,F136,I136,L136,O136,R136,U136,X136,AA136,AD136,AG136,AJ136,AM136,AP136,AS136,AV136,AY136) -> 6.929738918 | BD136: =STDEV(B136,E136,H136,K136,N136,Q136,T136,W136,Z136,AC136,AF136,AI136,AL136,AO136,AR136,AU136,AX136) -> 103.9725001 | BE136: =STDEV(C136,F136,I136,L136,O136,R136,U136,X136,AA136,AD136,AG136,AJ136,AM136,AP136,AS136,AV136,AY136) -> 2.71464133
A137: 152.5 | B137: 406.6241 | C137: 10.32955289 | D137: 152.5 | E137: 663.5357 | F137: 5.175790622 | G137: 152.5 | H137: 636.0916 | I137: 4.870119956 | J137: 152.5 | K137: 661.691 | L137: 4.932388222 | M137: 152.5 | N137: 609.4533 | O137: 5.931733915 | P137: 152.5 | Q137: 670.7718 | R137: 4.294329335 | S137: 152.5 | T137: 513.2708 | U137: 9.235223555 | V137: 152.5 | W137: 637.8947 | X137: 5.22693566 | Y137: 152.5 | Z137: 619.8894 | AA137: 6.317448201 | AB137: 152.5 | AC137: 516.9131 | AD137: 9.373391494 | AE137: 152.5 | AF137: 592.3007 | AG137: 5.966194111 | AH137: 152.5 | AI137: 620.6883 | AJ137: 5.967284624 | AK137: 152.5 | AL137: 642.9274 | AM137: 5.187241003 | AN137: 152.5 | AO137: 701.5144 | AP137: 3.717011996 | AQ137: 152.5 | AR137: 420.9515 | AS137: 11.49672846 | AT137: 152.5 | AU137: 481.6252 | AV137: 11.05703381 | AW137: 152.5 | AX137: 494.336 | AY137: 9.293456925 | BA137: =AW137 -> 152.5 | BB137: =AVERAGE(B137,E137,H137,K137,N137,Q137,T137,W137,Z137,AC137,AF137,AI137,AL137,AO137,AR137,AU137,AX137) -> 581.7928824 | BC137: =AVERAGE(C137,F137,I137,L137,O137,R137,U137,X137,AA137,AD137,AG137,AJ137,AM137,AP137,AS137,AV137,AY137) -> 6.963050869 | BD137: =STDEV(B137,E137,H137,K137,N137,Q137,T137,W137,Z137,AC137,AF137,AI137,AL137,AO137,AR137,AU137,AX137) -> 90.87421851 | BE137: =STDEV(C137,F137,I137,L137,O137,R137,U137,X137,AA137,AD137,AG137,AJ137,AM137,AP137,AS137,AV137,AY137) -> 2.550023878
A138: 153.75 | B138: 421.4125 | C138: 10.48331516 | D138: 153.75 | E138: 656.2072 | F138: 5.14089422 | G138: 153.75 | H138: 645.607 | I138: 4.770338059 | J138: 153.75 | K138: 650.3764 | L138: 5.170883315 | M138: 153.75 | N138: 596.2205 | O138: 6.089094875 | P138: 153.75 | Q138: 673.7969 | R138: 4.334133043 | S138: 153.75 | T138: 515.836 | U138: 9.543402399 | V138: 153.75 | W138: 641.7038 | X138: 5.304143948 | Y138: 153.75 | Z138: 625.9052 | AA138: 6.236423119 | AB138: 153.75 | AC138: 516.787 | AD138: 9.360632497 | AE138: 153.75 | AF138: 585.9765 | AG138: 6.01134133 | AH138: 153.75 | AI138: 639.2591 | AJ138: 5.84438386 | AK138: 153.75 | AL138: 646.0091 | AM138: 5.19738277 | AN138: 153.75 | AO138: 706.7577 | AP138: 3.659323882 | AQ138: 153.75 | AR138: 441.9471 | AS138: 11.38953108 | AT138: 153.75 | AU138: 475.199 | AV138: 10.20665213 | AW138: 153.75 | AX138: 497.7299 | AY138: 9.324536532 | BA138: =AW138 -> 153.75 | BB138: =AVERAGE(B138,E138,H138,K138,N138,Q138,T138,W138,Z138,AC138,AF138,AI138,AL138,AO138,AR138,AU138,AX138) -> 584.5135824 | BC138: =AVERAGE(C138,F138,I138,L138,O138,R138,U138,X138,AA138,AD138,AG138,AJ138,AM138,AP138,AS138,AV138,AY138) -> 6.945083071 | BD138: =STDEV(B138,E138,H138,K138,N138,Q138,T138,W138,Z138,AC138,AF138,AI138,AL138,AO138,AR138,AU138,AX138) -> 87.94143167 | BE138: =STDEV(C138,F138,I138,L138,O138,R138,U138,X138,AA138,AD138,AG138,AJ138,AM138,AP138,AS138,AV138,AY138) -> 2.487080548
A139: 155 | B139: 427.1664 | C139: 10.4612868 | D139: 155 | E139: 645.3658 | F139: 5.272955289 | G139: 155 | H139: 642.1953 | I139: 4.780043621 | J139: 155 | K139: 647.055 | L139: 5.376990185 | M139: 155 | N139: 591.9514 | O139: 6.311450382 | P139: 155 | Q139: 661.1301 | R139: 4.504252999 | S139: 155 | T139: 507.0328 | U139: 9.560741549 | V139: 155 | W139: 635.487 | X139: 5.306761178 | Y139: 155 | Z139: 622.3103 | AA139: 6.141984733 | AB139: 155 | AC139: 504.8807 | AD139: 8.987022901 | AE139: 155 | AF139: 584.5631 | AG139: 6.051035987 | AH139: 155 | AI139: 637.7928 | AJ139: 5.788440567 | AK139: 155 | AL139: 640.4347 | AM139: 5.174482007 | AN139: 155 | AO139: 709.5138 | AP139: 3.585387132 | AQ139: 155 | AR139: 456.9333 | AS139: 12.25877863 | AT139: 155 | AU139: 416.2495 | AV139: 8.707524537 | AW139: 155 | AX139: 510.8151 | AY139: 8.859760087 | BA139: =AW139 -> 155 | BB139: =AVERAGE(B139,E139,H139,K139,N139,Q139,T139,W139,Z139,AC139,AF139,AI139,AL139,AO139,AR139,AU139,AX139) -> 578.8751235 | BC139: =AVERAGE(C139,F139,I139,L139,O139,R139,U139,X139,AA139,AD139,AG139,AJ139,AM139,AP139,AS139,AV139,AY139) -> 6.889935211 | BD139: =STDEV(B139,E139,H139,K139,N139,Q139,T139,W139,Z139,AC139,AF139,AI139,AL139,AO139,AR139,AU139,AX139) -> 89.81513308 | BE139: =STDEV(C139,F139,I139,L139,O139,R139,U139,X139,AA139,AD139,AG139,AJ139,AM139,AP139,AS139,AV139,AY139) -> 2.430547516
A140: 156.25 | B140: 430.2707 | C140: 10.42159215 | D140: 156.25 | E140: 649.1643 | F140: 5.444274809 | G140: 156.25 | H140: 634.3218 | I140: 5.013522356 | J140: 156.25 | K140: 644.7185 | L140: 5.494547437 | M140: 156.25 | N140: 594.9061 | O140: 6.400327154 | P140: 156.25 | Q140: 649.9233 | R140: 4.697600872 | S140: 156.25 | T140: 494.4775 | U140: 9.791384951 | V140: 156.25 | W140: 648.3047 | X140: 5.151254089 | Y140: 156.25 | Z140: 625.5129 | AA140: 6.054852781 | AB140: 156.25 | AC140: 450.8202 | AD140: 8.838604144 | AE140: 156.25 | AF140: 592.6921 | AG140: 6.072519084 | AH140: 156.25 | AI140: 638.0445 | AJ140: 5.797055616 | AK140: 156.25 | AL140: 644.9614 | AM140: 5.104689204 | AN140: 156.25 | AO140: 734.5839 | AP140: 3.29389313 | AQ140: 156.25 | AR140: 460.0692 | AS140: 12.0561614 | AT140: 156.25 | AU140: 425.562 | AV140: 10.38375136 | AW140: 156.25 | AX140: 533.7099 | AY140: 8.70174482 | BA140: =AW140 -> 156.25 | BB140: =AVERAGE(B140,E140,H140,K140,N140,Q140,T140,W140,Z140,AC140,AF140,AI140,AL140,AO140,AR140,AU140,AX140) -> 579.5319412 | BC140: =AVERAGE(C140,F140,I140,L140,O140,R140,U140,X140,AA140,AD140,AG140,AJ140,AM140,AP140,AS140,AV140,AY140) -> 6.98339855 | BD140: =STDEV(B140,E140,H140,K140,N140,Q140,T140,W140,Z140,AC140,AF140,AI140,AL140,AO140,AR140,AU140,AX140) -> 94.27744994 | BE140: =STDEV(C140,F140,I140,L140,O140,R140,U140,X140,AA140,AD140,AG140,AJ140,AM140,AP140,AS140,AV140,AY140) -> 2.512775884
A141: 157.5 | B141: 425.0567 | C141: 10.35976009 | D141: 157.5 | E141: 642.8079 | F141: 5.552453653 | G141: 157.5 | H141: 639.5794 | I141: 5.162268266 | J141: 157.5 | K141: 642.6646 | L141: 5.513522356 | M141: 157.5 | N141: 597.6843 | O141: 6.504580153 | P141: 157.5 | Q141: 637.2526 | R141: 4.983533261 | S141: 157.5 | T141: 498.8574 | U141: 10.34089422 | V141: 157.5 | W141: 660.6574 | X141: 4.982988004 | Y141: 157.5 | Z141: 629.8398 | AA141: 5.928462377 | AB141: 157.5 | AC141: 447.7617 | AD141: 10.44427481 | AE141: 157.5 | AF141: 583.8267 | AG141: 6.100327154 | AH141: 157.5 | AI141: 636.9139 | AJ141: 5.881570338 | AK141: 157.5 | AL141: 647.689 | AM141: 5.139040349 | AN141: 157.5 | AO141: 733.6087 | AP141: 3.294002181 | AQ141: 157.5 | AR141: 465.8437 | AS141: 12.15517993 | AT141: 157.5 | AU141: 429.7547 | AV141: 11.8561614 | AW141: 157.5 | AX141: 527.714 | AY141: 8.445801527 | BA141: =AW141 -> 157.5 | BB141: =AVERAGE(B141,E141,H141,K141,N141,Q141,T141,W141,Z141,AC141,AF141,AI141,AL141,AO141,AR141,AU141,AX141) -> 579.2654412 | BC141: =AVERAGE(C141,F141,I141,L141,O141,R141,U141,X141,AA141,AD141,AG141,AJ141,AM141,AP141,AS141,AV141,AY141) -> 7.21440118 | BD141: =STDEV(B141,E141,H141,K141,N141,Q141,T141,W141,Z141,AC141,AF141,AI141,AL141,AO141,AR141,AU141,AX141) -> 94.15457856 | BE141: =STDEV(C141,F141,I141,L141,O141,R141,U141,X141,AA141,AD141,AG141,AJ141,AM141,AP141,AS141,AV141,AY141) -> 2.764144568
A142: 158.75 | B142: 427.9654 | C142: 10.78985823 | D142: 158.75 | E142: 643.0138 | F142: 5.462704471 | G142: 158.75 | H142: 614.1616 | I142: 5.365539804 | J142: 158.75 | K142: 643.7611 | L142: 5.365430752 | M142: 158.75 | N142: 596.9506 | O142: 6.637513631 | P142: 158.75 | Q142: 668.916 | R142: 4.859760087 | S142: 158.75 | T142: 498.2663 | U142: 10.37001091 | V142: 158.75 | W142: 668.852 | X142: 4.821155943 | Y142: 158.75 | Z142: 608.4086 | AA142: 5.714503817 | AB142: 158.75 | AC142: 466.0583 | AD142: 11.19672846 | AE142: 158.75 | AF142: 578.3624 | AG142: 6.201635769 | AH142: 158.75 | AI142: 628.5717 | AJ142: 5.970992366 | AK142: 158.75 | AL142: 639.3015 | AM142: 5.21221374 | AN142: 158.75 | AO142: 713.3224 | AP142: 3.485278081 | AQ142: 158.75 | AR142: 452.494 | AS142: 10.86019629 | AT142: 158.75 | AU142: 432.0296 | AV142: 13.31232279 | AW142: 158.75 | AX142: 487.6272 | AY142: 8.4782988 | BA142: =AW142 -> 158.75 | BB142: =AVERAGE(B142,E142,H142,K142,N142,Q142,T142,W142,Z142,AC142,AF142,AI142,AL142,AO142,AR142,AU142,AX142) -> 574.5919118 | BC142: =AVERAGE(C142,F142,I142,L142,O142,R142,U142,X142,AA142,AD142,AG142,AJ142,AM142,AP142,AS142,AV142,AY142) -> 7.300243762 | BD142: =STDEV(B142,E142,H142,K142,N142,Q142,T142,W142,Z142,AC142,AF142,AI142,AL142,AO142,AR142,AU142,AX142) -> 93.11214134 | BE142: =STDEV(C142,F142,I142,L142,O142,R142,U142,X142,AA142,AD142,AG142,AJ142,AM142,AP142,AS142,AV142,AY142) -> 2.902542792
A143: 160 | B143: 420.3389 | C143: 10.53118866 | D143: 160 | E143: 648.0784 | F143: 5.344711014 | G143: 160 | H143: 608.3906 | I143: 5.449073064 | J143: 160 | K143: 644.8582 | L143: 5.118320611 | M143: 160 | N143: 581.6125 | O143: 6.726826609 | P143: 160 | Q143: 650.2035 | R143: 5.056706652 | S143: 160 | T143: 499.3033 | U143: 10.42028353 | V143: 160 | W143: 652.6229 | X143: 4.922246456 | Y143: 160 | Z143: 619.3372 | AA143: 5.29825518 | AB143: 160 | AC143: 473.2211 | AD143: 11.28778626 | AE143: 160 | AF143: 591.2206 | AG143: 6.290512541 | AH143: 160 | AI143: 626.5227 | AJ143: 5.968484188 | AK143: 160 | AL143: 635.9379 | AM143: 5.234569248 | AN143: 160 | AO143: 698.8119 | AP143: 3.57917121 | AQ143: 160 | AR143: 465.95 | AS143: 10.31559433 | AT143: 160 | AU143: 426.886 | AV143: 13.75670665 | AW143: 160 | AX143: 488.4742 | AY143: 8.99563795 | BA143: =AW143 -> 160 | BB143: =AVERAGE(B143,E143,H143,K143,N143,Q143,T143,W143,Z143,AC143,AF143,AI143,AL143,AO143,AR143,AU143,AX143) -> 572.4570529 | BC143: =AVERAGE(C143,F143,I143,L143,O143,R143,U143,X143,AA143,AD143,AG143,AJ143,AM143,AP143,AS143,AV143,AY143) -> 7.311533774 | BD143: =STDEV(B143,E143,H143,K143,N143,Q143,T143,W143,Z143,AC143,AF143,AI143,AL143,AO143,AR143,AU143,AX143) -> 89.51322858 | BE143: =STDEV(C143,F143,I143,L143,O143,R143,U143,X143,AA143,AD143,AG143,AJ143,AM143,AP143,AS143,AV143,AY143) -> 2.93329969
A144: 161.25 | B144: 418.585 | C144: 10.00109051 | D144: 161.25 | E144: 631.3241 | F144: 5.511014177 | G144: 161.25 | H144: 628.591 | I144: 5.34525627 | J144: 161.25 | K144: 636.9802 | L144: 5.004907306 | M144: 161.25 | N144: 577.5714 | O144: 6.869138495 | P144: 161.25 | Q144: 647.1906 | R144: 5.218647764 | S144: 161.25 | T144: 488.2072 | U144: 10.29869138 | V144: 161.25 | W144: 652.581 | X144: 4.958669575 | Y144: 161.25 | Z144: 658.2908 | AA144: 4.969356598 | AB144: 161.25 | AC144: 472.7009 | AD144: 11.28244275 | AE144: 161.25 | AF144: 590.6703 | AG144: 6.229661941 | AH144: 161.25 | AI144: 633.0011 | AJ144: 5.863031625 | AK144: 161.25 | AL144: 639.1177 | AM144: 5.226390403 | AN144: 161.25 | AO144: 670.1557 | AP144: 3.7217012 | AQ144: 161.25 | AR144: 482.8174 | AS144: 10.83358779 | AT144: 161.25 | AU144: 425.3074 | AV144: 14.14656489 | AW144: 161.25 | AX144: 480.1364 | AY144: 9.719847328 | BA144: =AW144 -> 161.25 | BB144: =AVERAGE(B144,E144,H144,K144,N144,Q144,T144,W144,Z144,AC144,AF144,AI144,AL144,AO144,AR144,AU144,AX144) -> 572.5428353 | BC144: =AVERAGE(C144,F144,I144,L144,O144,R144,U144,X144,AA144,AD144,AG144,AJ144,AM144,AP144,AS144,AV144,AY144) -> 7.364705882 | BD144: =STDEV(B144,E144,H144,K144,N144,Q144,T144,W144,Z144,AC144,AF144,AI144,AL144,AO144,AR144,AU144,AX144) -> 89.12817243 | BE144: =STDEV(C144,F144,I144,L144,O144,R144,U144,X144,AA144,AD144,AG144,AJ144,AM144,AP144,AS144,AV144,AY144) -> 3.013811834
A145: 162.5 | B145: 432.6693 | C145: 10.21832061 | D145: 162.5 | E145: 610.8093 | F145: 5.912431843 | G145: 162.5 | H145: 626.5872 | I145: 5.276881134 | J145: 162.5 | K145: 608.1854 | L145: 5.46782988 | M145: 162.5 | N145: 589.0801 | O145: 6.826172301 | P145: 162.5 | Q145: 644.6581 | R145: 5.29389313 | S145: 162.5 | T145: 484.0758 | U145: 10.41199564 | V145: 162.5 | W145: 663.0678 | X145: 4.877971647 | Y145: 162.5 | Z145: 670.2437 | AA145: 4.82606325 | AB145: 162.5 | AC145: 468.069 | AD145: 11.06335878 | AE145: 162.5 | AF145: 592.1265 | AG145: 6.1912759 | AH145: 162.5 | AI145: 635.8546 | AJ145: 5.804580153 | AK145: 162.5 | AL145: 632.7975 | AM145: 5.33217012 | AN145: 162.5 | AO145: 686.9321 | AP145: 3.461395856 | AQ145: 162.5 | AR145: 484.0225 | AS145: 10.72093784 | AT145: 162.5 | AU145: 422.6462 | AV145: 13.3438386 | AW145: 162.5 | AX145: 480.8469 | AY145: 10.48974918 | BA145: =AW145 -> 162.5 | BB145: =AVERAGE(B145,E145,H145,K145,N145,Q145,T145,W145,Z145,AC145,AF145,AI145,AL145,AO145,AR145,AU145,AX145) -> 572.5101176 | BC145: =AVERAGE(C145,F145,I145,L145,O145,R145,U145,X145,AA145,AD145,AG145,AJ145,AM145,AP145,AS145,AV145,AY145) -> 7.383462698 | BD145: =STDEV(B145,E145,H145,K145,N145,Q145,T145,W145,Z145,AC145,AF145,AI145,AL145,AO145,AR145,AU145,AX145) -> 89.09125892 | BE145: =STDEV(C145,F145,I145,L145,O145,R145,U145,X145,AA145,AD145,AG145,AJ145,AM145,AP145,AS145,AV145,AY145) -> 2.940391237
A146: 163.75 | B146: 438.8196 | C146: 10.16008724 | D146: 163.75 | E146: 588.8247 | F146: 6.19738277 | G146: 163.75 | H146: 623.5896 | I146: 5.227044711 | J146: 163.75 | K146: 626.0331 | L146: 5.649727372 | M146: 163.75 | N146: 591.2417 | O146: 6.784623773 | P146: 163.75 | Q146: 639.8013 | R146: 5.385714286 | S146: 163.75 | T146: 488.2832 | U146: 10.80054526 | V146: 163.75 | W146: 657.744 | X146: 4.957797165 | Y146: 163.75 | Z146: 668.7142 | AA146: 4.709814613 | AB146: 163.75 | AC146: 467.4163 | AD146: 10.99563795 | AE146: 163.75 | AF146: 591.8869 | AG146: 6.178735005 | AH146: 163.75 | AI146: 625.6323 | AJ146: 5.918538713 | AK146: 163.75 | AL146: 641.642 | AM146: 5.391712105 | AN146: 163.75 | AO146: 668.447 | AP146: 3.591603053 | AQ146: 163.75 | AR146: 489.7907 | AS146: 10.80665213 | AT146: 163.75 | AU146: 426.0034 | AV146: 12.31286805 | AW146: 163.75 | AX146: 470.2926 | AY146: 10.90796074 | BA146: =AW146 -> 163.75 | BB146: =AVERAGE(B146,E146,H146,K146,N146,Q146,T146,W146,Z146,AC146,AF146,AI146,AL146,AO146,AR146,AU146,AX146) -> 570.8330941 | BC146: =AVERAGE(C146,F146,I146,L146,O146,R146,U146,X146,AA146,AD146,AG146,AJ146,AM146,AP146,AS146,AV146,AY146) -> 7.410379113 | BD146: =STDEV(B146,E146,H146,K146,N146,Q146,T146,W146,Z146,AC146,AF146,AI146,AL146,AO146,AR146,AU146,AX146) -> 86.25503675 | BE146: =STDEV(C146,F146,I146,L146,O146,R146,U146,X146,AA146,AD146,AG146,AJ146,AM146,AP146,AS146,AV146,AY146) -> 2.842184434
A147: 165 | B147: 440.3564 | C147: 10.30796074 | D147: 165 | E147: 582.8358 | F147: 6.734351145 | G147: 165 | H147: 635.6229 | I147: 5.08778626 | J147: 165 | K147: 595.6918 | L147: 6.148527808 | M147: 165 | N147: 584.6936 | O147: 6.782224646 | P147: 165 | Q147: 629.075 | R147: 5.570010905 | S147: 165 | T147: 488.499 | U147: 10.95561614 | V147: 165 | W147: 646.3365 | X147: 5.064994547 | Y147: 165 | Z147: 676.0145 | AA147: 4.507306434 | AB147: 165 | AC147: 464.2362 | AD147: 10.71101418 | AE147: 165 | AF147: 590.8334 | AG147: 6.118102508 | AH147: 165 | AI147: 613.0558 | AJ147: 6.151690294 | AK147: 165 | AL147: 638.7674 | AM147: 5.427153762 | AN147: 165 | AO147: 564.4774 | AP147: 4.486150491 | AQ147: 165 | AR147: 486.1474 | AS147: 10.73718648 | AT147: 165 | AU147: 425.2288 | AV147: 10.5519084 | AW147: 165 | AX147: 466.4342 | AY147: 11.37818975 | BA147: =AW147 -> 165 | BB147: =AVERAGE(B147,E147,H147,K147,N147,Q147,T147,W147,Z147,AC147,AF147,AI147,AL147,AO147,AR147,AU147,AX147) -> 560.4885941 | BC147: =AVERAGE(C147,F147,I147,L147,O147,R147,U147,X147,AA147,AD147,AG147,AJ147,AM147,AP147,AS147,AV147,AY147) -> 7.454127911 | BD147: =STDEV(B147,E147,H147,K147,N147,Q147,T147,W147,Z147,AC147,AF147,AI147,AL147,AO147,AR147,AU147,AX147) -> 80.91829447 | BE147: =STDEV(C147,F147,I147,L147,O147,R147,U147,X147,AA147,AD147,AG147,AJ147,AM147,AP147,AS147,AV147,AY147) -> 2.614851804
A148: 166.25 | B148: 430.4248 | C148: 10.26924755 | D148: 166.25 | E148: 595.464 | F148: 7.013413304 | G148: 166.25 | H148: 642.2947 | I148: 5.021264995 | J148: 166.25 | K148: 611.9615 | L148: 6.382660851 | M148: 166.25 | N148: 584.5048 | O148: 6.612649945 | P148: 166.25 | Q148: 627.4204 | R148: 5.615921483 | S148: 166.25 | T148: 479.309 | U148: 10.84852781 | V148: 166.25 | W148: 644.8202 | X148: 5.066521265 | Y148: 166.25 | Z148: 688.2115 | AA148: 4.202071974 | AB148: 166.25 | AC148: 449.3899 | AD148: 10.85583424 | AE148: 166.25 | AF148: 595.2393 | AG148: 6.038058888 | AH148: 166.25 | AI148: 610.299 | AJ148: 6.366630316 | AK148: 166.25 | AL148: 637.3474 | AM148: 5.518756816 | AN148: 166.25 | AO148: 552.9864 | AP148: 4.894656489 | AQ148: 166.25 | AR148: 487.9564 | AS148: 10.76652126 | AT148: 166.25 | AU148: 456.9218 | AV148: 11.2827699 | AW148: 166.25 | AX148: 460.6783 | AY148: 11.82682661 | BA148: =AW148 -> 166.25 | BB148: =AVERAGE(B148,E148,H148,K148,N148,Q148,T148,W148,Z148,AC148,AF148,AI148,AL148,AO148,AR148,AU148,AX148) -> 562.0723176 | BC148: =AVERAGE(C148,F148,I148,L148,O148,R148,U148,X148,AA148,AD148,AG148,AJ148,AM148,AP148,AS148,AV148,AY148) -> 7.563666688 | BD148: =STDEV(B148,E148,H148,K148,N148,Q148,T148,W148,Z148,AC148,AF148,AI148,AL148,AO148,AR148,AU148,AX148) -> 83.08689839 | BE148: =STDEV(C148,F148,I148,L148,O148,R148,U148,X148,AA148,AD148,AG148,AJ148,AM148,AP148,AS148,AV148,AY148) -> 2.700400338
A149: 167.5 | B149: 426.0108 | C149: 10.51308615 | D149: 167.5 | E149: 594.2968 | F149: 7.114176663 | G149: 167.5 | H149: 637.2877 | I149: 4.966303162 | J149: 167.5 | K149: 604.3759 | L149: 6.47917121 | M149: 167.5 | N149: 592.3684 | O149: 6.56695747 | P149: 167.5 | Q149: 623.4256 | R149: 5.640348964 | S149: 167.5 | T149: 481.65 | U149: 11.01635769 | V149: 167.5 | W149: 655.6932 | X149: 4.989858233 | Y149: 167.5 | Z149: 691.4027 | AA149: 4.110141767 | AB149: 167.5 | AC149: 458.7279 | AD149: 11.59585605 | AE149: 167.5 | AF149: 590.9945 | AG149: 6.058778626 | AH149: 167.5 | AI149: 613.2712 | AJ149: 6.516248637 | AK149: 167.5 | AL149: 627.0237 | AM149: 5.563140676 | AN149: 167.5 | AO149: 624.8818 | AP149: 4.656815703 | AQ149: 167.5 | AR149: 488.2649 | AS149: 10.33947655 | AT149: 167.5 | AU149: 453.4257 | AV149: 11.46183206 | AW149: 167.5 | AX149: 448.5824 | AY149: 11.74503817 | BA149: =AW149 -> 167.5 | BB149: =AVERAGE(B149,E149,H149,K149,N149,Q149,T149,W149,Z149,AC149,AF149,AI149,AL149,AO149,AR149,AU149,AX149) -> 565.3931294 | BC149: =AVERAGE(C149,F149,I149,L149,O149,R149,U149,X149,AA149,AD149,AG149,AJ149,AM149,AP149,AS149,AV149,AY149) -> 7.607858105 | BD149: =STDEV(B149,E149,H149,K149,N149,Q149,T149,W149,Z149,AC149,AF149,AI149,AL149,AO149,AR149,AU149,AX149) -> 85.10466222 | BE149: =STDEV(C149,F149,I149,L149,O149,R149,U149,X149,AA149,AD149,AG149,AJ149,AM149,AP149,AS149,AV149,AY149) -> 2.788505613
A150: 168.75 | B150: 422.2096 | C150: 10.84013086 | D150: 168.75 | E150: 586.2187 | F150: 7.154416576 | G150: 168.75 | H150: 638.861 | I150: 4.883969466 | J150: 168.75 | K150: 606.2155 | L150: 6.406761178 | M150: 168.75 | N150: 582.2875 | O150: 6.609705562 | P150: 168.75 | Q150: 608.4943 | R150: 5.86782988 | S150: 168.75 | T150: 470.2448 | U150: 9.863576881 | V150: 168.75 | W150: 652.1928 | X150: 5.045692475 | Y150: 168.75 | Z150: 663.781 | AA150: 4.509487459 | AB150: 168.75 | AC150: 456.9605 | AD150: 10.64045802 | AE150: 168.75 | AF150: 594.3089 | AG150: 6.026281352 | AH150: 168.75 | AI150: 608.4697 | AJ150: 6.608069793 | AK150: 168.75 | AL150: 630.5025 | AM150: 5.315376227 | AN150: 168.75 | AO150: 590.4599 | AP150: 4.982442748 | AQ150: 168.75 | AR150: 446.5536 | AS150: 8.976990185 | AT150: 168.75 | AU150: 450.945 | AV150: 11.66892039 | AW150: 168.75 | AX150: 445.0403 | AY150: 12.25910578 | BA150: =AW150 -> 168.75 | BB150: =AVERAGE(B150,E150,H150,K150,N150,Q150,T150,W150,Z150,AC150,AF150,AI150,AL150,AO150,AR150,AU150,AX150) -> 556.1026824 | BC150: =AVERAGE(C150,F150,I150,L150,O150,R150,U150,X150,AA150,AD150,AG150,AJ150,AM150,AP150,AS150,AV150,AY150) -> 7.509365578 | BD150: =STDEV(B150,E150,H150,K150,N150,Q150,T150,W150,Z150,AC150,AF150,AI150,AL150,AO150,AR150,AU150,AX150) -> 85.13428153 | BE150: =STDEV(C150,F150,I150,L150,O150,R150,U150,X150,AA150,AD150,AG150,AJ150,AM150,AP150,AS150,AV150,AY150) -> 2.615746917
A151: 170 | B151: 428.2911 | C151: 10.82006543 | D151: 170 | E151: 567.8509 | F151: 7.429880044 | G151: 170 | H151: 622.4077 | I151: 5.095092694 | J151: 170 | K151: 525.1038 | L151: 6.611232279 | M151: 170 | N151: 580.0092 | O151: 6.690185387 | P151: 170 | Q151: 606.1593 | R151: 5.975572519 | S151: 170 | T151: 481.4385 | U151: 10.16619411 | V151: 170 | W151: 645.0581 | X151: 5.19302072 | Y151: 170 | Z151: 684.1292 | AA151: 4.480043621 | AB151: 170 | AC151: 471.971 | AD151: 10.53358779 | AE151: 170 | AF151: 586.063 | AG151: 6.041875682 | AH151: 170 | AI151: 603.0762 | AJ151: 6.683751363 | AK151: 170 | AL151: 645.4449 | AM151: 5.030643402 | AN151: 170 | AO151: 613.2014 | AP151: 5.115921483 | AQ151: 170 | AR151: 426.9365 | AS151: 9.510250818 | AT151: 170 | AU151: 450.7473 | AV151: 10.91570338 | AW151: 170 | AX151: 440.5402 | AY151: 12.23816794 | BA151: =AW151 -> 170 | BB151: =AVERAGE(B151,E151,H151,K151,N151,Q151,T151,W151,Z151,AC151,AF151,AI151,AL151,AO151,AR151,AU151,AX151) -> 551.6722529 | BC151: =AVERAGE(C151,F151,I151,L151,O151,R151,U151,X151,AA151,AD151,AG151,AJ151,AM151,AP151,AS151,AV151,AY151) -> 7.560658156 | BD151: =STDEV(B151,E151,H151,K151,N151,Q151,T151,W151,Z151,AC151,AF151,AI151,AL151,AO151,AR151,AU151,AX151) -> 85.51904594 | BE151: =STDEV(C151,F151,I151,L151,O151,R151,U151,X151,AA151,AD151,AG151,AJ151,AM151,AP151,AS151,AV151,AY151) -> 2.549561448
A152: 171.25 | B152: 431.1163 | C152: 11.18309706 | D152: 171.25 | E152: 572.2972 | F152: 7.717666303 | G152: 171.25 | H152: 625.2295 | I152: 5.197273719 | J152: 171.25 | K152: 547.4294 | L152: 7.539803708 | M152: 171.25 | N152: 582.8816 | O152: 6.751581243 | P152: 171.25 | Q152: 618.2343 | R152: 5.879280262 | S152: 171.25 | T152: 431.1031 | U152: 8.54263904 | V152: 171.25 | W152: 650.5146 | X152: 5.141003272 | Y152: 171.25 | Z152: 678.8937 | AA152: 4.610141767 | AB152: 171.25 | AC152: 468.6806 | AD152: 10.59378408 | AE152: 171.25 | AF152: 592.2149 | AG152: 6.111559433 | AH152: 171.25 | AI152: 600.2264 | AJ152: 6.821483097 | AK152: 171.25 | AL152: 667.0172 | AM152: 4.744711014 | AN152: 171.25 | AO152: 621.7448 | AP152: 5.194111232 | AQ152: 171.25 | AR152: 431.1732 | AS152: 11.14405671 | AT152: 171.25 | AU152: 457.5037 | AV152: 9.748418757 | AW152: 171.25 | AX152: 443.2128 | AY152: 12.2131952 | BA152: =AW152 -> 171.25 | BB152: =AVERAGE(B152,E152,H152,K152,N152,Q152,T152,W152,Z152,AC152,AF152,AI152,AL152,AO152,AR152,AU152,AX152) -> 554.0866647 | BC152: =AVERAGE(C152,F152,I152,L152,O152,R152,U152,X152,AA152,AD152,AG152,AJ152,AM152,AP152,AS152,AV152,AY152) -> 7.596106229 | BD152: =STDEV(B152,E152,H152,K152,N152,Q152,T152,W152,Z152,AC152,AF152,AI152,AL152,AO152,AR152,AU152,AX152) -> 90.29115715 | BE152: =STDEV(C152,F152,I152,L152,O152,R152,U152,X152,AA152,AD152,AG152,AJ152,AM152,AP152,AS152,AV152,AY152) -> 2.529413712
A153: 172.5 | B153: 429.9293 | C153: 11.34558342 | D153: 172.5 | E153: 565.3394 | F153: 7.789312977 | G153: 172.5 | H153: 627.6447 | I153: 5.160632497 | J153: 172.5 | K153: 542.3455 | L153: 8.000654308 | M153: 172.5 | N153: 588.5032 | O153: 6.607960742 | P153: 172.5 | Q153: 622.9968 | R153: 5.870883315 | S153: 172.5 | T153: 489.4103 | U153: 8.158887677 | V153: 172.5 | W153: 656.4319 | X153: 4.975354417 | Y153: 172.5 | Z153: 681.1723 | AA153: 4.585387132 | AB153: 172.5 | AC153: 474.0575 | AD153: 10.89029444 | AE153: 172.5 | AF153: 603.0483 | AG153: 6.029661941 | AH153: 172.5 | AI153: 596.7445 | AJ153: 6.889422028 | AK153: 172.5 | AL153: 668.6323 | AM153: 4.681461287 | AN153: 172.5 | AO153: 566.2261 | AP153: 5.431079607 | AQ153: 172.5 | AR153: 422.6907 | AS153: 12.44285714 | AT153: 172.5 | AU153: 485.3448 | AV153: 9.147655398 | AW153: 172.5 | AX153: 454.78 | AY153: 12.88375136 | BA153: =AW153 -> 172.5 | BB153: =AVERAGE(B153,E153,H153,K153,N153,Q153,T153,W153,Z153,AC153,AF153,AI153,AL153,AO153,AR153,AU153,AX153) -> 557.3704471 | BC153: =AVERAGE(C153,F153,I153,L153,O153,R153,U153,X153,AA153,AD153,AG153,AJ153,AM153,AP153,AS153,AV153,AY153) -> 7.699461159 | BD153: =STDEV(B153,E153,H153,K153,N153,Q153,T153,W153,Z153,AC153,AF153,AI153,AL153,AO153,AR153,AU153,AX153) -> 84.18367867 | BE153: =STDEV(C153,F153,I153,L153,O153,R153,U153,X153,AA153,AD153,AG153,AJ153,AM153,AP153,AS153,AV153,AY153) -> 2.750643464
A154: 173.75 | B154: 430.4617 | C154: 11.10163577 | D154: 173.75 | E154: 552.963 | F154: 8.006870229 | G154: 173.75 | H154: 623.0642 | I154: 5.178953108 | J154: 173.75 | K154: 548.9516 | L154: 8.374154853 | M154: 173.75 | N154: 594.3075 | O154: 6.295965104 | P154: 173.75 | Q154: 594.7807 | R154: 5.915049073 | S154: 173.75 | T154: 534.8413 | U154: 8.017339149 | V154: 173.75 | W154: 663.8286 | X154: 4.881570338 | Y154: 173.75 | Z154: 678.607 | AA154: 4.501417666 | AB154: 173.75 | AC154: 479.0993 | AD154: 10.55954198 | AE154: 173.75 | AF154: 595.0215 | AG154: 6.043402399 | AH154: 173.75 | AI154: 588.8564 | AJ154: 7.05823337 | AK154: 173.75 | AL154: 670.3741 | AM154: 4.653107961 | AN154: 173.75 | AO154: 547.5693 | AP154: 5.561068702 | AQ154: 173.75 | AR154: 423.5573 | AS154: 13.81821156 | AT154: 173.75 | AU154: 486.1153 | AV154: 8.851145038 | AW154: 173.75 | AX154: 453.7737 | AY154: 12.54394766 | BA154: =AW154 -> 173.75 | BB154: =AVERAGE(B154,E154,H154,K154,N154,Q154,T154,W154,Z154,AC154,AF154,AI154,AL154,AO154,AR154,AU154,AX154) -> 556.8336765 | BC154: =AVERAGE(C154,F154,I154,L154,O154,R154,U154,X154,AA154,AD154,AG154,AJ154,AM154,AP154,AS154,AV154,AY154) -> 7.727153762 | BD154: =STDEV(B154,E154,H154,K154,N154,Q154,T154,W154,Z154,AC154,AF154,AI154,AL154,AO154,AR154,AU154,AX154) -> 80.98099587 | BE154: =STDEV(C154,F154,I154,L154,O154,R154,U154,X154,AA154,AD154,AG154,AJ154,AM154,AP154,AS154,AV154,AY154) -> 2.842849369
A155: 175 | B155: 428.6025 | C155: 10.4778626 | D155: 175 | E155: 543.2963 | F155: 8.208505998 | G155: 175 | H155: 627.3202 | I155: 5.129770992 | J155: 175 | K155: 544.8395 | L155: 8.410141767 | M155: 175 | N155: 614.9529 | O155: 6.087022901 | P155: 175 | Q155: 604.2154 | R155: 5.579498364 | S155: 175 | T155: 553.0827 | U155: 7.869683751 | V155: 175 | W155: 664.166 | X155: 4.897928026 | Y155: 175 | Z155: 683.4816 | AA155: 4.332061069 | AB155: 175 | AC155: 481.4515 | AD155: 10.4736096 | AE155: 175 | AF155: 585.4967 | AG155: 6.069901854 | AH155: 175 | AI155: 589.5911 | AJ155: 7.244274809 | AK155: 175 | AL155: 409.9167 | AM155: 5.678735005 | AN155: 175 | AO155: 564.8665 | AP155: 5.585496183 | AQ155: 175 | AR155: 424.5024 | AS155: 14.36019629 | AT155: 175 | AU155: 493.7143 | AV155: 9.244274809 | AW155: 175 | AX155: 450.2446 | AY155: 11.30970556 | BA155: =AW155 -> 175 | BB155: =AVERAGE(B155,E155,H155,K155,N155,Q155,T155,W155,Z155,AC155,AF155,AI155,AL155,AO155,AR155,AU155,AX155) -> 544.9259353 | BC155: =AVERAGE(C155,F155,I155,L155,O155,R155,U155,X155,AA155,AD155,AG155,AJ155,AM155,AP155,AS155,AV155,AY155) -> 7.703451151 | BD155: =STDEV(B155,E155,H155,K155,N155,Q155,T155,W155,Z155,AC155,AF155,AI155,AL155,AO155,AR155,AU155,AX155) -> 84.63455868 | BE155: =STDEV(C155,F155,I155,L155,O155,R155,U155,X155,AA155,AD155,AG155,AJ155,AM155,AP155,AS155,AV155,AY155) -> 2.741969383
A156: 176.25 | B156: 448.2294 | C156: 10.56390403 | D156: 176.25 | E156: 518.3228 | F156: 8.470774264 | G156: 176.25 | H156: 633.9642 | I156: 5.115921483 | J156: 176.25 | K156: 544.8202 | L156: 8.432388222 | M156: 176.25 | N156: 610.4534 | O156: 6.023336968 | P156: 176.25 | Q156: 639.8158 | R156: 5.388113413 | S156: 176.25 | T156: 556.9909 | U156: 7.758778626 | V156: 176.25 | W156: 664.8183 | X156: 4.883424209 | Y156: 176.25 | Z156: 675.7739 | AA156: 4.46434024 | AB156: 176.25 | AC156: 471.9101 | AD156: 10.39225736 | AE156: 176.25 | AF156: 593.7944 | AG156: 6.068811341 | AH156: 176.25 | AI156: 582.8922 | AJ156: 7.291712105 | AK156: 176.25 | AL156: 280.0205 | AM156: 6.215812432 | AN156: 176.25 | AO156: 563.2695 | AP156: 5.506543075 | AQ156: 176.25 | AR156: 422.5299 | AS156: 14.06346783 | AT156: 176.25 | AU156: 510.6377 | AV156: 9.876663032 | AW156: 176.25 | AX156: 464.6031 | AY156: 11.0476554 | BA156: =AW156 -> 176.25 | BB156: =AVERAGE(B156,E156,H156,K156,N156,Q156,T156,W156,Z156,AC156,AF156,AI156,AL156,AO156,AR156,AU156,AX156) -> 540.1674294 | BC156: =AVERAGE(C156,F156,I156,L156,O156,R156,U156,X156,AA156,AD156,AG156,AJ156,AM156,AP156,AS156,AV156,AY156) -> 7.739053179 | BD156: =STDEV(B156,E156,H156,K156,N156,Q156,T156,W156,Z156,AC156,AF156,AI156,AL156,AO156,AR156,AU156,AX156) -> 101.4951302 | BE156: =STDEV(C156,F156,I156,L156,O156,R156,U156,X156,AA156,AD156,AG156,AJ156,AM156,AP156,AS156,AV156,AY156) -> 2.69344349
A157: 177.5 | B157: 426.9386 | C157: 9.991712105 | D157: 177.5 | E157: 519.9913 | F157: 9.045910578 | G157: 177.5 | H157: 631.7235 | I157: 5.175354417 | J157: 177.5 | K157: 548.4748 | L157: 8.450163577 | M157: 177.5 | N157: 598.0832 | O157: 6.022028353 | P157: 177.5 | Q157: 626.8491 | R157: 5.59214831 | S157: 177.5 | T157: 560.0468 | U157: 7.602835333 | V157: 177.5 | W157: 664.0534 | X157: 4.871537623 | Y157: 177.5 | Z157: 684.8875 | AA157: 4.541548528 | AB157: 177.5 | AC157: 474.9429 | AD157: 10.51537623 | AE157: 177.5 | AF157: 599.7701 | AG157: 6.202181025 | AH157: 177.5 | AI157: 583.2687 | AJ157: 7.260632497 | AK157: 177.5 | AL157: 543.2068 | AM157: 7.411559433 | AN157: 177.5 | AO157: 524.2074 | AP157: 5.501090513 | AQ157: 177.5 | AR157: 417.8252 | AS157: 12.84372955 | AT157: 177.5 | AU157: 514.0739 | AV157: 9.779934569 | AW157: 177.5 | AX157: 445.8612 | AY157: 9.456379498 | BA157: =AW157 -> 177.5 | BB157: =AVERAGE(B157,E157,H157,K157,N157,Q157,T157,W157,Z157,AC157,AF157,AI157,AL157,AO157,AR157,AU157,AX157) -> 550.8355529 | BC157: =AVERAGE(C157,F157,I157,L157,O157,R157,U157,X157,AA157,AD157,AG157,AJ157,AM157,AP157,AS157,AV157,AY157) -> 7.66259542 | BD157: =STDEV(B157,E157,H157,K157,N157,Q157,T157,W157,Z157,AC157,AF157,AI157,AL157,AO157,AR157,AU157,AX157) -> 79.7535054 | BE157: =STDEV(C157,F157,I157,L157,O157,R157,U157,X157,AA157,AD157,AG157,AJ157,AM157,AP157,AS157,AV157,AY157) -> 2.350139616
A158: 178.75 | B158: 432.0688 | C158: 10.37415485 | D158: 178.75 | E158: 502.8022 | F158: 8.47131952 | G158: 178.75 | H158: 627.6732 | I158: 5.213631407 | J158: 178.75 | K158: 547.226 | L158: 8.190730643 | M158: 178.75 | N158: 595.3185 | O158: 5.973391494 | P158: 178.75 | Q158: 580.6945 | R158: 6.08953108 | S158: 178.75 | T158: 570.6185 | U158: 7.54176663 | V158: 178.75 | W158: 658.1301 | X158: 4.867502726 | Y158: 178.75 | Z158: 681.2762 | AA158: 4.602181025 | AB158: 178.75 | AC158: 484.4841 | AD158: 10.90512541 | AE158: 178.75 | AF158: 608.0748 | AG158: 6.243729553 | AH158: 178.75 | AI158: 587.804 | AJ158: 7.24002181 | AK158: 178.75 | AL158: 545.8649 | AM158: 7.867720829 | AN158: 178.75 | AO158: 518.2817 | AP158: 5.423555071 | AQ158: 178.75 | AR158: 428.1801 | AS158: 12.43053435 | AT158: 178.75 | AU158: 513.1348 | AV158: 9.5608506 | AW158: 178.75 | AX158: 477.4866 | AY158: 8.67306434 | BA158: =AW158 -> 178.75 | BB158: =AVERAGE(B158,E158,H158,K158,N158,Q158,T158,W158,Z158,AC158,AF158,AI158,AL158,AO158,AR158,AU158,AX158) -> 550.5364118 | BC158: =AVERAGE(C158,F158,I158,L158,O158,R158,U158,X158,AA158,AD158,AG158,AJ158,AM158,AP158,AS158,AV158,AY158) -> 7.627577138 | BD158: =STDEV(B158,E158,H158,K158,N158,Q158,T158,W158,Z158,AC158,AF158,AI158,AL158,AO158,AR158,AU158,AX158) -> 73.35383514 | BE158: =STDEV(C158,F158,I158,L158,O158,R158,U158,X158,AA158,AD158,AG158,AJ158,AM158,AP158,AS158,AV158,AY158) -> 2.262494528
A159: 180 | B159: 436.0183 | C159: 10.55267176 | D159: 180 | E159: 380.1052 | F159: 7.130098146 | G159: 180 | H159: 635.0454 | I159: 5.172300981 | J159: 180 | K159: 557.7845 | L159: 7.973282443 | M159: 180 | N159: 620.3616 | O159: 5.836095965 | P159: 180 | Q159: 603.2816 | R159: 6.370556161 | S159: 180 | T159: 568.6691 | U159: 7.47219193 | V159: 180 | W159: 664.9407 | X159: 4.797273719 | Y159: 180 | Z159: 682.0974 | AA159: 4.494329335 | AB159: 180 | AC159: 479.6639 | AD159: 10.84612868 | AE159: 180 | AF159: 614.6658 | AG159: 6.097928026 | AH159: 180 | AI159: 590.5434 | AJ159: 7.209051254 | AK159: 180 | AL159: 514.6145 | AM159: 7.917884406 | AN159: 180 | AO159: 557.8177 | AP159: 5.105452563 | AQ159: 180 | AR159: 418.912 | AS159: 10.0608506 | AT159: 180 | AU159: 505.3273 | AV159: 9.268920393 | AW159: 180 | AX159: 519.6289 | AY159: 8.000109051 | BA159: =AW159 -> 180 | BB159: =AVERAGE(B159,E159,H159,K159,N159,Q159,T159,W159,Z159,AC159,AF159,AI159,AL159,AO159,AR159,AU159,AX159) -> 549.9692529 | BC159: =AVERAGE(C159,F159,I159,L159,O159,R159,U159,X159,AA159,AD159,AG159,AJ159,AM159,AP159,AS159,AV159,AY159) -> 7.312066201 | BD159: =STDEV(B159,E159,H159,K159,N159,Q159,T159,W159,Z159,AC159,AF159,AI159,AL159,AO159,AR159,AU159,AX159) -> 86.65183479 | BE159: =STDEV(C159,F159,I159,L159,O159,R159,U159,X159,AA159,AD159,AG159,AJ159,AM159,AP159,AS159,AV159,AY159) -> 1.999591025
A160: 181.25 | B160: 435.6044 | C160: 10.83685932 | D160: 181.25 | E160: 436.5712 | F160: 9.002835333 | G160: 181.25 | H160: 627.8338 | I160: 5.187022901 | J160: 181.25 | K160: 563.2926 | L160: 7.799345692 | M160: 181.25 | N160: 625.9741 | O160: 5.772737186 | P160: 181.25 | Q160: 606.6719 | R160: 6.336205016 | S160: 181.25 | T160: 570.8065 | U160: 7.437949836 | V160: 181.25 | W160: 672.3193 | X160: 4.74002181 | Y160: 181.25 | Z160: 683.539 | AA160: 4.337077426 | AB160: 181.25 | AC160: 474.7203 | AD160: 10.63107961 | AE160: 181.25 | AF160: 622.084 | AG160: 6.052235551 | AH160: 181.25 | AI160: 593.5811 | AJ160: 7.198800436 | AK160: 181.25 | AL160: 474.8601 | AM160: 8.570010905 | AN160: 181.25 | AO160: 564.0535 | AP160: 5.12955289 | AQ160: 181.25 | AR160: 468.7004 | AS160: 9.868920393 | AT160: 181.25 | AU160: 507.3338 | AV160: 9.384078517 | AW160: 181.25 | AX160: 551.9311 | AY160: 7.624427481 | BA160: =AW160 -> 181.25 | BB160: =AVERAGE(B160,E160,H160,K160,N160,Q160,T160,W160,Z160,AC160,AF160,AI160,AL160,AO160,AR160,AU160,AX160) -> 557.6398294 | BC160: =AVERAGE(C160,F160,I160,L160,O160,R160,U160,X160,AA160,AD160,AG160,AJ160,AM160,AP160,AS160,AV160,AY160) -> 7.406421194 | BD160: =STDEV(B160,E160,H160,K160,N160,Q160,T160,W160,Z160,AC160,AF160,AI160,AL160,AO160,AR160,AU160,AX160) -> 79.23306904 | BE160: =STDEV(C160,F160,I160,L160,O160,R160,U160,X160,AA160,AD160,AG160,AJ160,AM160,AP160,AS160,AV160,AY160) -> 2.07030152
A161: 182.5 | B161: 435.6636 | C161: 10.72246456 | D161: 182.5 | E161: 490.3509 | F161: 10.32399128 | G161: 182.5 | H161: 614.2429 | I161: 5.286586696 | J161: 182.5 | K161: 569.3717 | L161: 7.540130862 | M161: 182.5 | N161: 626.6263 | O161: 5.699018539 | P161: 182.5 | Q161: 604.4431 | R161: 6.348200654 | S161: 182.5 | T161: 583.2606 | U161: 7.431515812 | V161: 182.5 | W161: 668.1058 | X161: 4.73129771 | Y161: 182.5 | Z161: 691.4476 | AA161: 4.19738277 | AB161: 182.5 | AC161: 479.1002 | AD161: 10.51603053 | AE161: 182.5 | AF161: 604.0737 | AG161: 6.161832061 | AH161: 182.5 | AI161: 589.9001 | AJ161: 7.155507088 | AK161: 182.5 | AL161: 456.3219 | AM161: 9.643947655 | AN161: 182.5 | AO161: 423.5467 | AP161: 5.642202835 | AQ161: 182.5 | AR161: 490.7167 | AS161: 9.536423119 | AT161: 182.5 | AU161: 515.6805 | AV161: 9.381897492 | AW161: 182.5 | AX161: 552.2674 | AY161: 7.656052345 | BA161: =AW161 -> 182.5 | BB161: =AVERAGE(B161,E161,H161,K161,N161,Q161,T161,W161,Z161,AC161,AF161,AI161,AL161,AO161,AR161,AU161,AX161) -> 552.6541 | BC161: =AVERAGE(C161,F161,I161,L161,O161,R161,U161,X161,AA161,AD161,AG161,AJ161,AM161,AP161,AS161,AV161,AY161) -> 7.527910706 | BD161: =STDEV(B161,E161,H161,K161,N161,Q161,T161,W161,Z161,AC161,AF161,AI161,AL161,AO161,AR161,AU161,AX161) -> 80.59081341 | BE161: =STDEV(C161,F161,I161,L161,O161,R161,U161,X161,AA161,AD161,AG161,AJ161,AM161,AP161,AS161,AV161,AY161) -> 2.138359035
A162: 183.75 | B162: 431.6439 | C162: 10.41494002 | D162: 183.75 | E162: 498.6659 | F162: 10.44056707 | G162: 183.75 | H162: 616.2803 | I162: 5.456706652 | J162: 183.75 | K162: 581.0873 | L162: 7.464994547 | M162: 183.75 | N162: 634.2852 | O162: 5.584514722 | P162: 183.75 | Q162: 596.4664 | R162: 6.441439477 | S162: 183.75 | T162: 579.0502 | U162: 7.318756816 | V162: 183.75 | W162: 667.04 | X162: 4.698800436 | Y162: 183.75 | Z162: 688.9611 | AA162: 4.257579062 | AB162: 183.75 | AC162: 487.0247 | AD162: 10.4389313 | AE162: 183.75 | AF162: 595.9838 | AG162: 6.284623773 | AH162: 183.75 | AI162: 588.639 | AJ162: 7.153980371 | AK162: 183.75 | AL162: 461.5526 | AM162: 10.93173391 | AN162: 183.75 | AO162: 225.4957 | AP162: 6.09302072 | AQ162: 183.75 | AR162: 507.8019 | AS162: 9.675463468 | AT162: 183.75 | AU162: 523.7063 | AV162: 9.011232279 | AW162: 183.75 | AX162: 544.4084 | AY162: 7.988440567 | BA162: =AW162 -> 183.75 | BB162: =AVERAGE(B162,E162,H162,K162,N162,Q162,T162,W162,Z162,AC162,AF162,AI162,AL162,AO162,AR162,AU162,AX162) -> 542.8289824 | BC162: =AVERAGE(C162,F162,I162,L162,O162,R162,U162,X162,AA162,AD162,AG162,AJ162,AM162,AP162,AS162,AV162,AY162) -> 7.626807364 | BD162: =STDEV(B162,E162,H162,K162,N162,Q162,T162,W162,Z162,AC162,AF162,AI162,AL162,AO162,AR162,AU162,AX162) -> 108.2378451 | BE162: =STDEV(C162,F162,I162,L162,O162,R162,U162,X162,AA162,AD162,AG162,AJ162,AM162,AP162,AS162,AV162,AY162) -> 2.171906278
A163: 185 | B163: 437.9066 | C163: 10.1044711 | D163: 185 | E163: 495.7601 | F163: 10.33685932 | G163: 185 | H163: 616.658 | I163: 5.549291167 | J163: 185 | K163: 576.2672 | L163: 7.121919302 | M163: 185 | N163: 631.2029 | O163: 5.600981461 | P163: 185 | Q163: 599.3305 | R163: 6.516466739 | S163: 185 | T163: 564.8656 | U163: 7.078080698 | V163: 185 | W163: 669.6132 | X163: 4.66259542 | Y163: 185 | Z163: 693.673 | AA163: 4.250817884 | AB163: 185 | AC163: 495.7381 | AD163: 10.26139586 | AE163: 185 | AF163: 599.3949 | AG163: 6.345910578 | AH163: 185 | AI163: 588.9003 | AJ163: 7.223336968 | AK163: 185 | AL163: 449.633 | AM163: 11.24700109 | AN163: 185 | AO163: 507.6279 | AP163: 6.688004362 | AQ163: 185 | AR163: 498.4459 | AS163: 9.555943293 | AT163: 185 | AU163: 512.5525 | AV163: 8.253980371 | AW163: 185 | AX163: 552.2357 | AY163: 8.236641221 | BA163: =AW163 -> 185 | BB163: =AVERAGE(B163,E163,H163,K163,N163,Q163,T163,W163,Z163,AC163,AF163,AI163,AL163,AO163,AR163,AU163,AX163) -> 558.2238471 | BC163: =AVERAGE(C163,F163,I163,L163,O163,R163,U163,X163,AA163,AD163,AG163,AJ163,AM163,AP163,AS163,AV163,AY163) -> 7.590217461 | BD163: =STDEV(B163,E163,H163,K163,N163,Q163,T163,W163,Z163,AC163,AF163,AI163,AL163,AO163,AR163,AU163,AX163) -> 73.53552249 | BE163: =STDEV(C163,F163,I163,L163,O163,R163,U163,X163,AA163,AD163,AG163,AJ163,AM163,AP163,AS163,AV163,AY163) -> 2.107601035
A164: 186.25 | B164: 450.3531 | C164: 10.39269357 | D164: 186.25 | E164: 488.6364 | F164: 10.44209378 | G164: 186.25 | H164: 600.3944 | I164: 5.448964013 | J164: 186.25 | K164: 588.4239 | L164: 6.750490731 | M164: 186.25 | N164: 625.2092 | O164: 5.612322792 | P164: 186.25 | Q164: 592.5954 | R164: 6.556815703 | S164: 186.25 | T164: 589.5703 | U164: 7.045801527 | V164: 186.25 | W164: 657.4478 | X164: 4.677862595 | Y164: 186.25 | Z164: 688.7181 | AA164: 4.349618321 | AB164: 186.25 | AC164: 501.1311 | AD164: 10.3348964 | AE164: 186.25 | AF164: 602.0064 | AG164: 6.368593239 | AH164: 186.25 | AI164: 583.6399 | AJ164: 7.319956379 | AK164: 186.25 | AL164: 442.5042 | AM164: 11.75092694 | AN164: 186.25 | AO164: 533.0747 | AP164: 7.087241003 | AQ164: 186.25 | AR164: 498.8092 | AS164: 9.951472192 | AT164: 186.25 | AU164: 533.9801 | AV164: 7.849073064 | AW164: 186.25 | AX164: 550.7954 | AY164: 8.006870229 | BA164: =AW164 -> 186.25 | BB164: =AVERAGE(B164,E164,H164,K164,N164,Q164,T164,W164,Z164,AC164,AF164,AI164,AL164,AO164,AR164,AU164,AX164) -> 560.4288 | BC164: =AVERAGE(C164,F164,I164,L164,O164,R164,U164,X164,AA164,AD164,AG164,AJ164,AM164,AP164,AS164,AV164,AY164) -> 7.643864263 | BD164: =STDEV(B164,E164,H164,K164,N164,Q164,T164,W164,Z164,AC164,AF164,AI164,AL164,AO164,AR164,AU164,AX164) -> 69.20552272 | BE164: =STDEV(C164,F164,I164,L164,O164,R164,U164,X164,AA164,AD164,AG164,AJ164,AM164,AP164,AS164,AV164,AY164) -> 2.207476062
A165: 187.5 | B165: 446.0467 | C165: 9.785169029 | D165: 187.5 | E165: 483.7847 | F165: 10.22835333 | G165: 187.5 | H165: 621.2802 | I165: 5.269465649 | J165: 187.5 | K165: 597.1007 | L165: 6.362050164 | M165: 187.5 | N165: 639.598 | O165: 5.455179935 | P165: 187.5 | Q165: 552.0957 | R165: 6.791603053 | S165: 187.5 | T165: 590.2277 | U165: 7.086041439 | V165: 187.5 | W165: 669.3208 | X165: 4.47568157 | Y165: 187.5 | Z165: 691.8127 | AA165: 4.336641221 | AB165: 187.5 | AC165: 487.3775 | AD165: 9.961832061 | AE165: 187.5 | AF165: 606.959 | AG165: 6.4217012 | AH165: 187.5 | AI165: 586.9383 | AJ165: 7.416139586 | AK165: 187.5 | AL165: 442.4011 | AM165: 11.72748092 | AN165: 187.5 | AO165: 527.7122 | AP165: 7.536641221 | AQ165: 187.5 | AR165: 497.9885 | AS165: 10.07262814 | AT165: 187.5 | AU165: 550.6529 | AV165: 7.856597601 | AW165: 187.5 | AX165: 559.3899 | AY165: 7.77044711 | BA165: =AW165 -> 187.5 | BB165: =AVERAGE(B165,E165,H165,K165,N165,Q165,T165,W165,Z165,AC165,AF165,AI165,AL165,AO165,AR165,AU165,AX165) -> 561.8050941 | BC165: =AVERAGE(C165,F165,I165,L165,O165,R165,U165,X165,AA165,AD165,AG165,AJ165,AM165,AP165,AS165,AV165,AY165) -> 7.561979601 | BD165: =STDEV(B165,E165,H165,K165,N165,Q165,T165,W165,Z165,AC165,AF165,AI165,AL165,AO165,AR165,AU165,AX165) -> 73.9586603 | BE165: =STDEV(C165,F165,I165,L165,O165,R165,U165,X165,AA165,AD165,AG165,AJ165,AM165,AP165,AS165,AV165,AY165) -> 2.162184513
A166: 188.75 | B166: 457.006 | C166: 9.838822246 | D166: 188.75 | E166: 454.728 | F166: 9.764667394 | G166: 188.75 | H166: 624.5312 | I166: 5.29302072 | J166: 188.75 | K166: 594.9846 | L166: 6.398909487 | M166: 188.75 | N166: 642.8472 | O166: 5.417011996 | P166: 188.75 | Q166: 522.6306 | R166: 7.466848419 | S166: 188.75 | T166: 587.5038 | U166: 7.082551799 | V166: 188.75 | W166: 683.8235 | X166: 4.329661941 | Y166: 188.75 | Z166: 689.1585 | AA166: 4.273827699 | AB166: 188.75 | AC166: 477.9174 | AD166: 9.81221374 | AE166: 188.75 | AF166: 604.8081 | AG166: 6.43653217 | AH166: 188.75 | AI166: 589.4847 | AJ166: 7.329225736 | AK166: 188.75 | AL166: 447.8712 | AM166: 11.7606325 | AN166: 188.75 | AO166: 483.5578 | AP166: 7.474154853 | AQ166: 188.75 | AR166: 494.8819 | AS166: 9.722137405 | AT166: 188.75 | AU166: 555.5146 | AV166: 7.561941112 | AW166: 188.75 | AX166: 566.8101 | AY166: 7.683097056 | BA166: =AW166 -> 188.75 | BB166: =AVERAGE(B166,E166,H166,K166,N166,Q166,T166,W166,Z166,AC166,AF166,AI166,AL166,AO166,AR166,AU166,AX166) -> 557.5328941 | BC166: =AVERAGE(C166,F166,I166,L166,O166,R166,U166,X166,AA166,AD166,AG166,AJ166,AM166,AP166,AS166,AV166,AY166) -> 7.508544486 | BD166: =STDEV(B166,E166,H166,K166,N166,Q166,T166,W166,Z166,AC166,AF166,AI166,AL166,AO166,AR166,AU166,AX166) -> 79.19250993 | BE166: =STDEV(C166,F166,I166,L166,O166,R166,U166,X166,AA166,AD166,AG166,AJ166,AM166,AP166,AS166,AV166,AY166) -> 2.110828184
A167: 190 | B167: 462.5104 | C167: 9.837513631 | D167: 190 | E167: 460.399 | F167: 11.18146129 | G167: 190 | H167: 620.0984 | I167: 5.198364231 | J167: 190 | K167: 592.0797 | L167: 6.686150491 | M167: 190 | N167: 637.2243 | O167: 5.423882225 | P167: 190 | Q167: 487.2702 | R167: 8.170338059 | S167: 190 | T167: 587.3783 | U167: 7.044492912 | V167: 190 | W167: 671.1003 | X167: 4.449727372 | Y167: 190 | Z167: 688.7134 | AA167: 4.195419847 | AB167: 190 | AC167: 488.1451 | AD167: 10.11286805 | AE167: 190 | AF167: 606.9099 | AG167: 6.364776445 | AH167: 190 | AI167: 589.931 | AJ167: 7.164013086 | AK167: 190 | AL167: 441.088 | AM167: 11.67055616 | AN167: 190 | AO167: 503.1747 | AP167: 7.902181025 | AQ167: 190 | AR167: 508.9265 | AS167: 9.534023991 | AT167: 190 | AU167: 549.3021 | AV167: 7.350163577 | AW167: 190 | AX167: 564.8546 | AY167: 7.424536532 | BA167: =AW167 -> 190 | BB167: =AVERAGE(B167,E167,H167,K167,N167,Q167,T167,W167,Z167,AC167,AF167,AI167,AL167,AO167,AR167,AU167,AX167) -> 556.4179941 | BC167: =AVERAGE(C167,F167,I167,L167,O167,R167,U167,X167,AA167,AD167,AG167,AJ167,AM167,AP167,AS167,AV167,AY167) -> 7.630027584 | BD167: =STDEV(B167,E167,H167,K167,N167,Q167,T167,W167,Z167,AC167,AF167,AI167,AL167,AO167,AR167,AU167,AX167) -> 76.2954004 | BE167: =STDEV(C167,F167,I167,L167,O167,R167,U167,X167,AA167,AD167,AG167,AJ167,AM167,AP167,AS167,AV167,AY167) -> 2.233697721
A168: 191.25 | B168: 470.4311 | C168: 9.80436205 | D168: 191.25 | E168: 456.6639 | F168: 11.45321701 | G168: 191.25 | H168: 627.9925 | I168: 5.152453653 | J168: 191.25 | K168: 583.203 | L168: 6.957797165 | M168: 191.25 | N168: 632.0828 | O168: 5.396946565 | P168: 191.25 | Q168: 490.3157 | R168: 9.33129771 | S168: 191.25 | T168: 587.1402 | U168: 7.085496183 | V168: 191.25 | W168: 672.0516 | X168: 4.471755725 | Y168: 191.25 | Z168: 705.1437 | AA168: 3.925845147 | AB168: 191.25 | AC168: 491.5454 | AD168: 10.12857143 | AE168: 191.25 | AF168: 613.6368 | AG168: 6.384514722 | AH168: 191.25 | AI168: 571.9885 | AJ168: 7.11046892 | AK168: 191.25 | AL168: 431.9715 | AM168: 11.64231189 | AN168: 191.25 | AO168: 526.7368 | AP168: 8.316466739 | AQ168: 191.25 | AR168: 382.2761 | AS168: 7.35474373 | AT168: 191.25 | AU168: 508.5941 | AV168: 7.629661941 | AW168: 191.25 | AX168: 577.9694 | AY168: 7.107960742 | BA168: =AW168 -> 191.25 | BB168: =AVERAGE(B168,E168,H168,K168,N168,Q168,T168,W168,Z168,AC168,AF168,AI168,AL168,AO168,AR168,AU168,AX168) -> 548.8084176 | BC168: =AVERAGE(C168,F168,I168,L168,O168,R168,U168,X168,AA168,AD168,AG168,AJ168,AM168,AP168,AS168,AV168,AY168) -> 7.603168901 | BD168: =STDEV(B168,E168,H168,K168,N168,Q168,T168,W168,Z168,AC168,AF168,AI168,AL168,AO168,AR168,AU168,AX168) -> 88.70574542 | BE168: =STDEV(C168,F168,I168,L168,O168,R168,U168,X168,AA168,AD168,AG168,AJ168,AM168,AP168,AS168,AV168,AY168) -> 2.274554468
A169: 192.5 | B169: 469.014 | C169: 9.78778626 | D169: 192.5 | E169: 451.5877 | F169: 11.5610687 | G169: 192.5 | H169: 633.6006 | I169: 5.230316249 | J169: 192.5 | K169: 594.083 | L169: 7.097928026 | M169: 192.5 | N169: 630.7889 | O169: 5.405997819 | P169: 192.5 | Q169: 457.6738 | R169: 9.339476554 | S169: 192.5 | T169: 590.4025 | U169: 7.123227917 | V169: 192.5 | W169: 686.9127 | X169: 4.381788441 | Y169: 192.5 | Z169: 706.3807 | AA169: 3.858778626 | AB169: 192.5 | AC169: 496.2021 | AD169: 10.29454744 | AE169: 192.5 | AF169: 607.8105 | AG169: 6.328898582 | AH169: 192.5 | AI169: 571.3276 | AJ169: 7.468266085 | AK169: 192.5 | AL169: 431.0563 | AM169: 11.19367503 | AN169: 192.5 | AO169: 435.858 | AP169: 7.37044711 | AQ169: 192.5 | AR169: 329.3046 | AS169: 7.550708833 | AT169: 192.5 | AU169: 497.2935 | AV169: 8.347001091 | AW169: 192.5 | AX169: 584.2214 | AY169: 6.791712105 | BA169: =AW169 -> 192.5 | BB169: =AVERAGE(B169,E169,H169,K169,N169,Q169,T169,W169,Z169,AC169,AF169,AI169,AL169,AO169,AR169,AU169,AX169) -> 539.6187 | BC169: =AVERAGE(C169,F169,I169,L169,O169,R169,U169,X169,AA169,AD169,AG169,AJ169,AM169,AP169,AS169,AV169,AY169) -> 7.595977933 | BD169: =STDEV(B169,E169,H169,K169,N169,Q169,T169,W169,Z169,AC169,AF169,AI169,AL169,AO169,AR169,AU169,AX169) -> 103.0018174 | BE169: =STDEV(C169,F169,I169,L169,O169,R169,U169,X169,AA169,AD169,AG169,AJ169,AM169,AP169,AS169,AV169,AY169) -> 2.261617757
A170: 193.75 | B170: 465.9676 | C170: 9.617666303 | D170: 193.75 | E170: 441.1659 | F170: 11.10883315 | G170: 193.75 | H170: 637.1667 | I170: 5.177208288 | J170: 193.75 | K170: 592.2277 | L170: 7.074591058 | M170: 193.75 | N170: 647.3874 | O170: 5.389640131 | P170: 193.75 | Q170: 425.6421 | R170: 10.33598691 | S170: 193.75 | T170: 581.1654 | U170: 7.002944384 | V170: 193.75 | W170: 685.7348 | X170: 4.422137405 | Y170: 193.75 | Z170: 672.9902 | AA170: 4.199781897 | AB170: 193.75 | AC170: 493.1665 | AD170: 10.23380589 | AE170: 193.75 | AF170: 609.0662 | AG170: 6.253544166 | AH170: 193.75 | AI170: 570.4482 | AJ170: 7.680806979 | AK170: 193.75 | AL170: 333.7964 | AM170: 7.350926936 | AN170: 193.75 | AO170: 405.6765 | AP170: 7.519738277 | AQ170: 193.75 | AR170: 442.8955 | AS170: 12.26619411 | AT170: 193.75 | AU170: 509.5844 | AV170: 9.16695747 | AW170: 193.75 | AX170: 599.6361 | AY170: 6.371428571 | BA170: =AW170 -> 193.75 | BB170: =AVERAGE(B170,E170,H170,K170,N170,Q170,T170,W170,Z170,AC170,AF170,AI170,AL170,AO170,AR170,AU170,AX170) -> 536.1010353 | BC170: =AVERAGE(C170,F170,I170,L170,O170,R170,U170,X170,AA170,AD170,AG170,AJ170,AM170,AP170,AS170,AV170,AY170) -> 7.71601129 | BD170: =STDEV(B170,E170,H170,K170,N170,Q170,T170,W170,Z170,AC170,AF170,AI170,AL170,AO170,AR170,AU170,AX170) -> 104.5087423 | BE170: =STDEV(C170,F170,I170,L170,O170,R170,U170,X170,AA170,AD170,AG170,AJ170,AM170,AP170,AS170,AV170,AY170) -> 2.388136647
A171: 195 | B171: 474.0751 | C171: 9.515703381 | D171: 195 | E171: 445.9988 | F171: 11.41155943 | G171: 195 | H171: 629.7395 | I171: 5.145692475 | J171: 195 | K171: 593.6009 | L171: 6.8608506 | M171: 195 | N171: 636.6725 | O171: 5.354416576 | P171: 195 | Q171: 416.9079 | R171: 11.69803708 | S171: 195 | T171: 551.8356 | U171: 6.678625954 | V171: 195 | W171: 676.3684 | X171: 4.564122137 | Y171: 195 | Z171: 533.1924 | AA171: 5.199563795 | AB171: 195 | AC171: 496.8411 | AD171: 10.195747 | AE171: 195 | AF171: 603.2454 | AG171: 6.2304253 | AH171: 195 | AI171: 569.9312 | AJ171: 7.662377317 | AK171: 195 | AL171: 397.6847 | AM171: 6.457251908 | AN171: 195 | AO171: 354.3738 | AP171: 7.364994547 | AQ171: 195 | AR171: 443.1775 | AS171: 13.19858233 | AT171: 195 | AU171: 496.8514 | AV171: 9.23129771 | AW171: 195 | AX171: 600.677 | AY171: 6.294111232 | BA171: =AW171 -> 195 | BB171: =AVERAGE(B171,E171,H171,K171,N171,Q171,T171,W171,Z171,AC171,AF171,AI171,AL171,AO171,AR171,AU171,AX171) -> 524.7748941 | BC171: =AVERAGE(C171,F171,I171,L171,O171,R171,U171,X171,AA171,AD171,AG171,AJ171,AM171,AP171,AS171,AV171,AY171) -> 7.827256399 | BD171: =STDEV(B171,E171,H171,K171,N171,Q171,T171,W171,Z171,AC171,AF171,AI171,AL171,AO171,AR171,AU171,AX171) -> 93.48638434 | BE171: =STDEV(C171,F171,I171,L171,O171,R171,U171,X171,AA171,AD171,AG171,AJ171,AM171,AP171,AS171,AV171,AY171) -> 2.588958058
A172: 196.25 | B172: 478.6484 | C172: 9.653544166 | D172: 196.25 | E172: 451.9951 | F172: 12.05114504 | G172: 196.25 | H172: 626.3717 | I172: 5.180916031 | J172: 196.25 | K172: 602.7065 | L172: 6.592039258 | M172: 196.25 | N172: 644.8602 | O172: 5.232824427 | P172: 196.25 | Q172: 402.9701 | R172: 12.49236641 | S172: 196.25 | T172: 576.434 | U172: 6.163249727 | V172: 196.25 | W172: 664.9166 | X172: 4.711559433 | Y172: 196.25 | Z172: 576.5181 | AA172: 5.411559433 | AB172: 196.25 | AC172: 500.7421 | AD172: 10.14078517 | AE172: 196.25 | AF172: 612.5295 | AG172: 6.158560523 | AH172: 196.25 | AI172: 572.4685 | AJ172: 7.700436205 | AK172: 196.25 | AL172: 520.7703 | AM172: 5.327480916 | AN172: 196.25 | AO172: 349.591 | AP172: 7.695419847 | AQ172: 196.25 | AR172: 437.0764 | AS172: 13.23522356 | AT172: 196.25 | AU172: 478.6704 | AV172: 9.401199564 | AW172: 196.25 | AX172: 599.5641 | AY172: 6.559760087 | BA172: =AW172 -> 196.25 | BB172: =AVERAGE(B172,E172,H172,K172,N172,Q172,T172,W172,Z172,AC172,AF172,AI172,AL172,AO172,AR172,AU172,AX172) -> 535.1078235 | BC172: =AVERAGE(C172,F172,I172,L172,O172,R172,U172,X172,AA172,AD172,AG172,AJ172,AM172,AP172,AS172,AV172,AY172) -> 7.865180576 | BD172: =STDEV(B172,E172,H172,K172,N172,Q172,T172,W172,Z172,AC172,AF172,AI172,AL172,AO172,AR172,AU172,AX172) -> 91.14410355 | BE172: =STDEV(C172,F172,I172,L172,O172,R172,U172,X172,AA172,AD172,AG172,AJ172,AM172,AP172,AS172,AV172,AY172) -> 2.786537422
A173: 197.5 | B173: 461.5386 | C173: 9.582224646 | D173: 197.5 | E173: 446.2622 | F173: 12.39563795 | G173: 197.5 | H173: 631.2117 | I173: 5.202726281 | J173: 197.5 | K173: 610.4011 | L173: 6.343729553 | M173: 197.5 | N173: 648.0206 | O173: 5.160196292 | P173: 197.5 | Q173: 398.8068 | R173: 13.82410033 | S173: 197.5 | T173: 602.6333 | U173: 5.780261723 | V173: 197.5 | W173: 668.1719 | X173: 4.673718648 | Y173: 197.5 | Z173: 574.6604 | AA173: 5.663904035 | AB173: 197.5 | AC173: 491.618 | AD173: 9.715376227 | AE173: 197.5 | AF173: 616.569 | AG173: 6.072082879 | AH173: 197.5 | AI173: 569.8524 | AJ173: 7.911232279 | AK173: 197.5 | AL173: 647.0243 | AM173: 3.991930207 | AN173: 197.5 | AO173: 307.6688 | AP173: 7.510796074 | AQ173: 197.5 | AR173: 427.1709 | AS173: 13.36619411 | AT173: 197.5 | AU173: 390.6966 | AV173: 7.996292257 | AW173: 197.5 | AX173: 598.0086 | AY173: 6.584405671 | BA173: =AW173 -> 197.5 | BB173: =AVERAGE(B173,E173,H173,K173,N173,Q173,T173,W173,Z173,AC173,AF173,AI173,AL173,AO173,AR173,AU173,AX173) -> 534.7244235 | BC173: =AVERAGE(C173,F173,I173,L173,O173,R173,U173,X173,AA173,AD173,AG173,AJ173,AM173,AP173,AS173,AV173,AY173) -> 7.751459362 | BD173: =STDEV(B173,E173,H173,K173,N173,Q173,T173,W173,Z173,AC173,AF173,AI173,AL173,AO173,AR173,AU173,AX173) -> 110.0612577 | BE173: =STDEV(C173,F173,I173,L173,O173,R173,U173,X173,AA173,AD173,AG173,AJ173,AM173,AP173,AS173,AV173,AY173) -> 3.047000902
A174: 198.75 | B174: 460.8931 | C174: 9.671101418 | D174: 198.75 | E174: 439.8098 | F174: 12.46684842 | G174: 198.75 | H174: 620.2548 | I174: 5.152235551 | J174: 198.75 | K174: 606.591 | L174: 6.364231189 | M174: 198.75 | N174: 648.3454 | O174: 5.099236641 | P174: 198.75 | Q174: 393.854 | R174: 14.02464558 | S174: 198.75 | T174: 628.774 | U174: 5.683860414 | V174: 198.75 | W174: 681.814 | X174: 4.490076336 | Y174: 198.75 | Z174: 571.4543 | AA174: 6.074918212 | AB174: 198.75 | AC174: 491.5773 | AD174: 9.827699019 | AE174: 198.75 | AF174: 623.6771 | AG174: 5.993675027 | AH174: 198.75 | AI174: 541.1925 | AJ174: 7.758560523 | AK174: 198.75 | AL174: 728.3138 | AM174: 3.027699019 | AN174: 198.75 | AO174: 362.9811 | AP174: 9.761286805 | AQ174: 198.75 | AR174: 421.5529 | AS174: 13.68625954 | AT174: 198.75 | AU174: 377.0107 | AV174: 8.595747001 | AW174: 198.75 | AX174: 588.6206 | AY174: 6.675354417 | BA174: =AW174 -> 198.75 | BB174: =AVERAGE(B174,E174,H174,K174,N174,Q174,T174,W174,Z174,AC174,AF174,AI174,AL174,AO174,AR174,AU174,AX174) -> 540.3950824 | BC174: =AVERAGE(C174,F174,I174,L174,O174,R174,U174,X174,AA174,AD174,AG174,AJ174,AM174,AP174,AS174,AV174,AY174) -> 7.903143242 | BD174: =STDEV(B174,E174,H174,K174,N174,Q174,T174,W174,Z174,AC174,AF174,AI174,AL174,AO174,AR174,AU174,AX174) -> 114.1140629 | BE174: =STDEV(C174,F174,I174,L174,O174,R174,U174,X174,AA174,AD174,AG174,AJ174,AM174,AP174,AS174,AV174,AY174) -> 3.251589013
A175: 200 | B175: 473.7637 | C175: 9.921919302 | D175: 200 | E175: 426.8542 | F175: 12.2087241 | G175: 200 | H175: 645.0086 | I175: 4.952998909 | J175: 200 | K175: 614.259 | L175: 6.408178844 | M175: 200 | N175: 653.5078 | O175: 5.035986914 | P175: 200 | Q175: 388.612 | R175: 14.12420938 | S175: 200 | T175: 630.9299 | U175: 5.695419847 | V175: 200 | W175: 674.9774 | X175: 4.541003272 | Y175: 200 | Z175: 584.2409 | AA175: 6.202508179 | AB175: 200 | AC175: 494.575 | AD175: 9.899018539 | AE175: 200 | AF175: 618.4131 | AG175: 5.973173391 | AH175: 200 | AI175: 530.3713 | AJ175: 7.977644493 | AK175: 200 | AL175: 765.203 | AM175: 2.54263904 | AN175: 200 | AO175: 356.6616 | AP175: 8.884950927 | AQ175: 200 | AR175: 420.733 | AS175: 13.73097056 | AT175: 200 | AU175: 449.8708 | AV175: 12.14231189 | AW175: 200 | AX175: 591.4105 | AY175: 6.92431843 | BA175: =AW175 -> 200 | BB175: =AVERAGE(B175,E175,H175,K175,N175,Q175,T175,W175,Z175,AC175,AF175,AI175,AL175,AO175,AR175,AU175,AX175) -> 548.1995176 | BC175: =AVERAGE(C175,F175,I175,L175,O175,R175,U175,X175,AA175,AD175,AG175,AJ175,AM175,AP175,AS175,AV175,AY175) -> 8.068586824 | BD175: =STDEV(B175,E175,H175,K175,N175,Q175,T175,W175,Z175,AC175,AF175,AI175,AL175,AO175,AR175,AU175,AX175) -> 115.7743698 | BE175: =STDEV(C175,F175,I175,L175,O175,R175,U175,X175,AA175,AD175,AG175,AJ175,AM175,AP175,AS175,AV175,AY175) -> 3.440420552
A176: 201.25 | B176: 476.0954 | C176: 9.8912759 | D176: 201.25 | E176: 427.3266 | F176: 13.41395856 | G176: 201.25 | H176: 647.7538 | I176: 4.90261723 | J176: 201.25 | K176: 620.5016 | L176: 6.347110142 | M176: 201.25 | N176: 648.009 | O176: 5.046237732 | P176: 201.25 | Q176: 385.2614 | R176: 14.32846238 | S176: 201.25 | T176: 626.0939 | U176: 5.608833152 | V176: 201.25 | W176: 673.9574 | X176: 4.594656489 | Y176: 201.25 | Z176: 577.5513 | AA176: 6.246564885 | AB176: 201.25 | AC176: 487.4425 | AD176: 9.714721919 | AE176: 201.25 | AF176: 605.7658 | AG176: 6.028135224 | AH176: 201.25 | AI176: 538.1191 | AJ176: 7.80174482 | AK176: 201.25 | AL176: 770.9711 | AM176: 2.469792803 | AN176: 201.25 | AO176: 389.7103 | AP176: 9.475572519 | AQ176: 201.25 | AR176: 424.6751 | AS176: 13.91733915 | AT176: 201.25 | AU176: 423.0866 | AV176: 11.29378408 | AW176: 201.25 | AX176: 553.7871 | AY176: 6.85387132 | BA176: =AW176 -> 201.25 | BB176: =AVERAGE(B176,E176,H176,K176,N176,Q176,T176,W176,Z176,AC176,AF176,AI176,AL176,AO176,AR176,AU176,AX176) -> 545.6534118 | BC176: =AVERAGE(C176,F176,I176,L176,O176,R176,U176,X176,AA176,AD176,AG176,AJ176,AM176,AP176,AS176,AV176,AY176) -> 8.113804606 | BD176: =STDEV(B176,E176,H176,K176,N176,Q176,T176,W176,Z176,AC176,AF176,AI176,AL176,AO176,AR176,AU176,AX176) -> 113.712422 | BE176: =STDEV(C176,F176,I176,L176,O176,R176,U176,X176,AA176,AD176,AG176,AJ176,AM176,AP176,AS176,AV176,AY176) -> 3.54402761
A177: 202.5 | B177: 474.6293 | C177: 9.589422028 | D177: 202.5 | E177: 428.4863 | F177: 14.09323882 | G177: 202.5 | H177: 649.558 | I177: 4.847328244 | J177: 202.5 | K177: 609.8386 | L177: 6.260305344 | M177: 202.5 | N177: 649.7561 | O177: 4.994656489 | P177: 202.5 | Q177: 386.1348 | R177: 14.18113413 | S177: 202.5 | T177: 642.7476 | U177: 5.391712105 | V177: 202.5 | W177: 656.5038 | X177: 4.736314068 | Y177: 202.5 | Z177: 429.5654 | AA177: 6.225408942 | AB177: 202.5 | AC177: 490.9953 | AD177: 9.68953108 | AE177: 202.5 | AF177: 598.2649 | AG177: 6.106434024 | AH177: 202.5 | AI177: 488.6941 | AJ177: 7.423991276 | AK177: 202.5 | AL177: 751.8859 | AM177: 2.736423119 | AN177: 202.5 | AO177: 398.2443 | AP177: 9.673391494 | AQ177: 202.5 | AR177: 419.032 | AS177: 12.63456925 | AT177: 202.5 | AU177: 403.6316 | AV177: 11.75768811 | AW177: 202.5 | AX177: 512.8915 | AY177: 6.175136314 | BA177: =AW177 -> 202.5 | BB177: =AVERAGE(B177,E177,H177,K177,N177,Q177,T177,W177,Z177,AC177,AF177,AI177,AL177,AO177,AR177,AU177,AX177) -> 528.8740882 | BC177: =AVERAGE(C177,F177,I177,L177,O177,R177,U177,X177,AA177,AD177,AG177,AJ177,AM177,AP177,AS177,AV177,AY177) -> 8.030393226 | BD177: =STDEV(B177,E177,H177,K177,N177,Q177,T177,W177,Z177,AC177,AF177,AI177,AL177,AO177,AR177,AU177,AX177) -> 114.813681 | BE177: =STDEV(C177,F177,I177,L177,O177,R177,U177,X177,AA177,AD177,AG177,AJ177,AM177,AP177,AS177,AV177,AY177) -> 3.50582945
A178: 203.75 | B178: 473.6401 | C178: 9.569792803 | D178: 203.75 | E178: 428.6182 | F178: 14.30098146 | G178: 203.75 | H178: 644.0585 | I178: 4.791494002 | J178: 203.75 | K178: 618.2752 | L178: 5.954198473 | M178: 203.75 | N178: 667.8698 | O178: 4.860087241 | P178: 203.75 | Q178: 391.3264 | R178: 13.95812432 | S178: 203.75 | T178: 648.4288 | U178: 5.268047983 | V178: 203.75 | W178: 646.8228 | X178: 4.832824427 | Y178: 203.75 | Z178: 375.3173 | AA178: 6.562813522 | AB178: 203.75 | AC178: 503.9162 | AD178: 9.946673937 | AE178: 203.75 | AF178: 605.316 | AG178: 6.216902944 | AH178: 203.75 | AI178: 494.3311 | AJ178: 8.405125409 | AK178: 203.75 | AL178: 725.5575 | AM178: 3.098691385 | AN178: 203.75 | AO178: 383.1815 | AP178: 9.367284624 | AQ178: 203.75 | AR178: 433.2586 | AS178: 12.73904035 | AT178: 203.75 | AU178: 416.761 | AV178: 13.6172301 | AW178: 203.75 | AX178: 530.0898 | AY178: 5.517121047 | BA178: =AW178 -> 203.75 | BB178: =AVERAGE(B178,E178,H178,K178,N178,Q178,T178,W178,Z178,AC178,AF178,AI178,AL178,AO178,AR178,AU178,AX178) -> 528.6334588 | BC178: =AVERAGE(C178,F178,I178,L178,O178,R178,U178,X178,AA178,AD178,AG178,AJ178,AM178,AP178,AS178,AV178,AY178) -> 8.17684906 | BD178: =STDEV(B178,E178,H178,K178,N178,Q178,T178,W178,Z178,AC178,AF178,AI178,AL178,AO178,AR178,AU178,AX178) -> 115.5607167 | BE178: =STDEV(C178,F178,I178,L178,O178,R178,U178,X178,AA178,AD178,AG178,AJ178,AM178,AP178,AS178,AV178,AY178) -> 3.65919195
A179: 205 | B179: 474.8725 | C179: 9.591384951 | D179: 205 | E179: 426.5963 | F179: 13.96990185 | G179: 205 | H179: 639.6564 | I179: 4.799781897 | J179: 205 | K179: 548.4548 | L179: 5.874372955 | M179: 205 | N179: 648.4549 | O179: 5.054198473 | P179: 205 | Q179: 396.0761 | R179: 14.19792803 | S179: 205 | T179: 615.5959 | U179: 5.341984733 | V179: 205 | W179: 663.9808 | X179: 4.740239913 | Y179: 205 | Z179: 548.627 | AA179: 7.067284624 | AB179: 205 | AC179: 487.2398 | AD179: 9.650163577 | AE179: 205 | AF179: 617.8797 | AG179: 6.296837514 | AH179: 205 | AI179: 505.3762 | AJ179: 8.92868048 | AK179: 205 | AL179: 715.9679 | AM179: 3.264013086 | AN179: 205 | AO179: 359.5571 | AP179: 8.939694656 | AQ179: 205 | AR179: 437.96 | AS179: 12.7568157 | AT179: 205 | AU179: 422.8931 | AV179: 13.95692475 | AW179: 205 | AX179: 619.8161 | AY179: 5.088331516 | BA179: =AW179 -> 205 | BB179: =AVERAGE(B179,E179,H179,K179,N179,Q179,T179,W179,Z179,AC179,AF179,AI179,AL179,AO179,AR179,AU179,AX179) -> 537.0002706 | BC179: =AVERAGE(C179,F179,I179,L179,O179,R179,U179,X179,AA179,AD179,AG179,AJ179,AM179,AP179,AS179,AV179,AY179) -> 8.206972865 | BD179: =STDEV(B179,E179,H179,K179,N179,Q179,T179,W179,Z179,AC179,AF179,AI179,AL179,AO179,AR179,AU179,AX179) -> 107.4295384 | BE179: =STDEV(C179,F179,I179,L179,O179,R179,U179,X179,AA179,AD179,AG179,AJ179,AM179,AP179,AS179,AV179,AY179) -> 3.659283444
A180: 206.25 | B180: 479.0333 | C180: 9.62519084 | D180: 206.25 | E180: 424.954 | F180: 13.87873501 | G180: 206.25 | H180: 628.6899 | I180: 4.922355507 | J180: 206.25 | K180: 530.9839 | L180: 6.129116685 | M180: 206.25 | N180: 643.4803 | O180: 5.259432933 | P180: 206.25 | Q180: 398.9339 | R180: 13.84111232 | S180: 206.25 | T180: 495.2649 | U180: 5.943947655 | V180: 206.25 | W180: 680.4503 | X180: 4.637840785 | Y180: 206.25 | Z180: 563.9358 | AA180: 6.640348964 | AB180: 206.25 | AC180: 479.7005 | AD180: 9.760196292 | AE180: 206.25 | AF180: 612.1942 | AG180: 6.312868048 | AH180: 206.25 | AI180: 494.029 | AJ180: 9.643729553 | AK180: 206.25 | AL180: 723.9783 | AM180: 3.203162486 | AN180: 206.25 | AO180: 338.7272 | AP180: 8.270119956 | AQ180: 206.25 | AR180: 409.9594 | AS180: 10.11428571 | AT180: 206.25 | AU180: 419.4018 | AV180: 13.0610687 | AW180: 206.25 | AX180: 526.43 | AY180: 5.532606325 | BA180: =AW180 -> 206.25 | BB180: =AVERAGE(B180,E180,H180,K180,N180,Q180,T180,W180,Z180,AC180,AF180,AI180,AL180,AO180,AR180,AU180,AX180) -> 520.5968647 | BC180: =AVERAGE(C180,F180,I180,L180,O180,R180,U180,X180,AA180,AD180,AG180,AJ180,AM180,AP180,AS180,AV180,AY180) -> 8.045653987 | BD180: =STDEV(B180,E180,H180,K180,N180,Q180,T180,W180,Z180,AC180,AF180,AI180,AL180,AO180,AR180,AU180,AX180) -> 108.5030313 | BE180: =STDEV(C180,F180,I180,L180,O180,R180,U180,X180,AA180,AD180,AG180,AJ180,AM180,AP180,AS180,AV180,AY180) -> 3.326490967
A181: 207.5 | B181: 480.0592 | C181: 9.735441658 | D181: 207.5 | E181: 422.9694 | F181: 13.47600872 | G181: 207.5 | H181: 622.6943 | I181: 4.98865867 | J181: 207.5 | K181: 575.127 | L181: 6.469029444 | M181: 207.5 | N181: 645.7144 | O181: 5.357579062 | P181: 207.5 | Q181: 397.8095 | R181: 13.44231189 | S181: 207.5 | T181: 526.8302 | U181: 6.443402399 | V181: 207.5 | W181: 676.9156 | X181: 4.634133043 | Y181: 207.5 | Z181: 568.5426 | AA181: 6.227262814 | AB181: 207.5 | AC181: 466.3604 | AD181: 9.760959651 | AE181: 207.5 | AF181: 607.5297 | AG181: 6.334896401 | AH181: 207.5 | AI181: 495.93 | AJ181: 10.14700109 | AK181: 207.5 | AL181: 717.9313 | AM181: 3.332715376 | AN181: 207.5 | AO181: 372.1872 | AP181: 8.551145038 | AQ181: 207.5 | AR181: 420.9713 | AS181: 9.034569248 | AT181: 207.5 | AU181: 421.1125 | AV181: 13.24100327 | AW181: 207.5 | AX181: 435.8179 | AY181: 6.162922574 | BA181: =AW181 -> 207.5 | BB181: =AVERAGE(B181,E181,H181,K181,N181,Q181,T181,W181,Z181,AC181,AF181,AI181,AL181,AO181,AR181,AU181,AX181) -> 520.8530882 | BC181: =AVERAGE(C181,F181,I181,L181,O181,R181,U181,X181,AA181,AD181,AG181,AJ181,AM181,AP181,AS181,AV181,AY181) -> 8.078767079 | BD181: =STDEV(B181,E181,H181,K181,N181,Q181,T181,W181,Z181,AC181,AF181,AI181,AL181,AO181,AR181,AU181,AX181) -> 106.406825 | BE181: =STDEV(C181,F181,I181,L181,O181,R181,U181,X181,AA181,AD181,AG181,AJ181,AM181,AP181,AS181,AV181,AY181) -> 3.184774095
A182: 208.75 | B182: 478.4395 | C182: 9.527699019 | D182: 208.75 | E182: 416.7266 | F182: 12.8480916 | G182: 208.75 | H182: 637.7164 | I182: 4.997928026 | J182: 208.75 | K182: 530.0439 | L182: 7.192366412 | M182: 208.75 | N182: 635.6261 | O182: 5.402835333 | P182: 208.75 | Q182: 389.4051 | R182: 13.55081788 | S182: 208.75 | T182: 573.4926 | U182: 6.864449291 | V182: 208.75 | W182: 671.6781 | X182: 4.66521265 | Y182: 208.75 | Z182: 611.2242 | AA182: 5.897491821 | AB182: 208.75 | AC182: 446.0985 | AD182: 10.35049073 | AE182: 208.75 | AF182: 605.0965 | AG182: 6.196183206 | AH182: 208.75 | AI182: 480.8134 | AJ182: 10.23140676 | AK182: 208.75 | AL182: 732.8618 | AM182: 3.20785169 | AN182: 208.75 | AO182: 428.4512 | AP182: 10.01995638 | AQ182: 208.75 | AR182: 421.697 | AS182: 7.853544166 | AT182: 208.75 | AU182: 415.9059 | AV182: 13.21559433 | AW182: 208.75 | AX182: 567.4184 | AY182: 6.554198473 | BA182: =AW182 -> 208.75 | BB182: =AVERAGE(B182,E182,H182,K182,N182,Q182,T182,W182,Z182,AC182,AF182,AI182,AL182,AO182,AR182,AU182,AX182) -> 531.9232471 | BC182: =AVERAGE(C182,F182,I182,L182,O182,R182,U182,X182,AA182,AD182,AG182,AJ182,AM182,AP182,AS182,AV182,AY182) -> 8.15153634 | BD182: =STDEV(B182,E182,H182,K182,N182,Q182,T182,W182,Z182,AC182,AF182,AI182,AL182,AO182,AR182,AU182,AX182) -> 105.8375017 | BE182: =STDEV(C182,F182,I182,L182,O182,R182,U182,X182,AA182,AD182,AG182,AJ182,AM182,AP182,AS182,AV182,AY182) -> 3.158487751
A183: 210 | B183: 476.3921 | C183: 9.335986914 | D183: 210 | E183: 419.0729 | F183: 13.17818975 | G183: 210 | H183: 617.194 | I183: 5.222682661 | J183: 210 | K183: 507.4814 | L183: 8.279280262 | M183: 210 | N183: 626.338 | O183: 5.313740458 | P183: 210 | Q183: 387.6959 | R183: 14.14656489 | S183: 210 | T183: 597.4627 | U183: 7.081352236 | V183: 210 | W183: 674.2749 | X183: 4.70261723 | Y183: 210 | Z183: 626.8556 | AA183: 5.710796074 | AB183: 210 | AC183: 431.1726 | AD183: 11.2736096 | AE183: 210 | AF183: 607.0128 | AG183: 6.048636859 | AH183: 210 | AI183: 492.3713 | AJ183: 10.62944384 | AK183: 210 | AL183: 720.0099 | AM183: 3.399345692 | AN183: 210 | AO183: 435.0477 | AP183: 10.22137405 | AQ183: 210 | AR183: 470.3401 | AS183: 8.352671756 | AT183: 210 | AU183: 342.3321 | AV183: 8.422355507 | AW183: 210 | AX183: 538.0724 | AY183: 6.948091603 | BA183: =AW183 -> 210 | BB183: =AVERAGE(B183,E183,H183,K183,N183,Q183,T183,W183,Z183,AC183,AF183,AI183,AL183,AO183,AR183,AU183,AX183) -> 527.5956706 | BC183: =AVERAGE(C183,F183,I183,L183,O183,R183,U183,X183,AA183,AD183,AG183,AJ183,AM183,AP183,AS183,AV183,AY183) -> 8.13333761 | BD183: =STDEV(B183,E183,H183,K183,N183,Q183,T183,W183,Z183,AC183,AF183,AI183,AL183,AO183,AR183,AU183,AX183) -> 108.554804 | BE183: =STDEV(C183,F183,I183,L183,O183,R183,U183,X183,AA183,AD183,AG183,AJ183,AM183,AP183,AS183,AV183,AY183) -> 3.030977746
A184: 211.25 | B184: 478.2708 | C184: 9.323991276 | D184: 211.25 | E184: 425.6467 | F184: 13.54732824 | G184: 211.25 | H184: 636.8838 | I184: 5.196619411 | J184: 211.25 | K184: 519.9483 | L184: 9.298909487 | M184: 211.25 | N184: 630.9024 | O184: 5.111559433 | P184: 211.25 | Q184: 388.0293 | R184: 14.42355507 | S184: 211.25 | T184: 560.7034 | U184: 6.76259542 | V184: 211.25 | W184: 675.5782 | X184: 4.675790622 | Y184: 211.25 | Z184: 608.7107 | AA184: 5.866521265 | AB184: 211.25 | AC184: 416.9495 | AD184: 12.18146129 | AE184: 211.25 | AF184: 619.2676 | AG184: 5.990948746 | AH184: 211.25 | AI184: 493.1046 | AJ184: 10.73315158 | AK184: 211.25 | AL184: 701.3654 | AM184: 3.634133043 | AN184: 211.25 | AO184: 441.9919 | AP184: 10.74296619 | AQ184: 211.25 | AR184: 485.9308 | AS184: 8.658560523 | AT184: 211.25 | AU184: 426.9412 | AV184: 8.34612868 | AW184: 211.25 | AX184: 540.4772 | AY184: 7.321919302 | BA184: =AW184 -> 211.25 | BB184: =AVERAGE(B184,E184,H184,K184,N184,Q184,T184,W184,Z184,AC184,AF184,AI184,AL184,AO184,AR184,AU184,AX184) -> 532.3942235 | BC184: =AVERAGE(C184,F184,I184,L184,O184,R184,U184,X184,AA184,AD184,AG184,AJ184,AM184,AP184,AS184,AV184,AY184) -> 8.342125858 | BD184: =STDEV(B184,E184,H184,K184,N184,Q184,T184,W184,Z184,AC184,AF184,AI184,AL184,AO184,AR184,AU184,AX184) -> 98.60153832 | BE184: =STDEV(C184,F184,I184,L184,O184,R184,U184,X184,AA184,AD184,AG184,AJ184,AM184,AP184,AS184,AV184,AY184) -> 3.195792741
A185: 212.5 | B185: 477.6103 | C185: 9.031188659 | D185: 212.5 | E185: 430.1053 | F185: 13.8257361 | G185: 212.5 | H185: 646.8194 | I185: 5.064231189 | J185: 212.5 | K185: 493.4065 | L185: 9.146673937 | M185: 212.5 | N185: 652.5229 | O185: 4.963249727 | P185: 212.5 | Q185: 389.1111 | R185: 14.31003272 | S185: 212.5 | T185: 559.6766 | U185: 6.183315158 | V185: 212.5 | W185: 679.6536 | X185: 4.59302072 | Y185: 212.5 | Z185: 628.8723 | AA185: 5.971428571 | AB185: 212.5 | AC185: 413.9711 | AD185: 13.76030534 | AE185: 212.5 | AF185: 630.6047 | AG185: 5.871428571 | AH185: 212.5 | AI185: 484.854 | AJ185: 10.91352236 | AK185: 212.5 | AL185: 694.7648 | AM185: 3.712104689 | AN185: 212.5 | AO185: 446.0171 | AP185: 10.78211559 | AQ185: 212.5 | AR185: 439.2087 | AS185: 8.724536532 | AT185: 212.5 | AU185: 444.0159 | AV185: 7.63129771 | AW185: 212.5 | AX185: 516.21 | AY185: 7.506215921 | BA185: =AW185 -> 212.5 | BB185: =AVERAGE(B185,E185,H185,K185,N185,Q185,T185,W185,Z185,AC185,AF185,AI185,AL185,AO185,AR185,AU185,AX185) -> 531.0249588 | BC185: =AVERAGE(C185,F185,I185,L185,O185,R185,U185,X185,AA185,AD185,AG185,AJ185,AM185,AP185,AS185,AV185,AY185) -> 8.352376676 | BD185: =STDEV(B185,E185,H185,K185,N185,Q185,T185,W185,Z185,AC185,AF185,AI185,AL185,AO185,AR185,AU185,AX185) -> 103.4574289 | BE185: =STDEV(C185,F185,I185,L185,O185,R185,U185,X185,AA185,AD185,AG185,AJ185,AM185,AP185,AS185,AV185,AY185) -> 3.39225283
A186: 213.75 | B186: 481.0454 | C186: 8.909051254 | D186: 213.75 | E186: 427.8646 | F186: 13.63391494 | G186: 213.75 | H186: 647.0172 | I186: 5.015485278 | J186: 213.75 | K186: 467.3116 | L186: 9.893784079 | M186: 213.75 | N186: 646.5263 | O186: 5.124972737 | P186: 213.75 | Q186: 394.2899 | R186: 14.29280262 | S186: 213.75 | T186: 578.1875 | U186: 5.739912759 | V186: 213.75 | W186: 671.6546 | X186: 4.644601963 | Y186: 213.75 | Z186: 633.6882 | AA186: 5.868375136 | AB186: 213.75 | AC186: 409.2003 | AD186: 14.63958561 | AE186: 213.75 | AF186: 627.138 | AG186: 5.713413304 | AH186: 213.75 | AI186: 486.7343 | AJ186: 10.94721919 | AK186: 213.75 | AL186: 718.123 | AM186: 3.503598691 | AN186: 213.75 | AO186: 426.4116 | AP186: 9.919738277 | AQ186: 213.75 | AR186: 458.8956 | AS186: 10.55627045 | AT186: 213.75 | AU186: 508.3983 | AV186: 7.166412214 | AW186: 213.75 | AX186: 520.5009 | AY186: 7.916030534 | BA186: =AW186 -> 213.75 | BB186: =AVERAGE(B186,E186,H186,K186,N186,Q186,T186,W186,Z186,AC186,AF186,AI186,AL186,AO186,AR186,AU186,AX186) -> 535.4698412 | BC186: =AVERAGE(C186,F186,I186,L186,O186,R186,U186,X186,AA186,AD186,AG186,AJ186,AM186,AP186,AS186,AV186,AY186) -> 8.440304061 | BD186: =STDEV(B186,E186,H186,K186,N186,Q186,T186,W186,Z186,AC186,AF186,AI186,AL186,AO186,AR186,AU186,AX186) -> 103.8963252 | BE186: =STDEV(C186,F186,I186,L186,O186,R186,U186,X186,AA186,AD186,AG186,AJ186,AM186,AP186,AS186,AV186,AY186) -> 3.532696948
A187: 215 | B187: 476.9083 | C187: 8.822791712 | D187: 215 | E187: 425.9797 | F187: 13.61810251 | G187: 215 | H187: 657.0024 | I187: 4.932606325 | J187: 215 | K187: 482.2708 | L187: 11.0693566 | M187: 215 | N187: 654.9802 | O187: 5.108505998 | P187: 215 | Q187: 393.5016 | R187: 14.33238822 | S187: 215 | T187: 610.9739 | U187: 5.72868048 | V187: 215 | W187: 667.8935 | X187: 4.653762268 | Y187: 215 | Z187: 634.3782 | AA187: 5.736968375 | AB187: 215 | AC187: 397.1959 | AD187: 14.57971647 | AE187: 215 | AF187: 621.6809 | AG187: 5.53565976 | AH187: 215 | AI187: 494.4357 | AJ187: 11.09498364 | AK187: 215 | AL187: 718.9293 | AM187: 3.531188659 | AN187: 215 | AO187: 432.0834 | AP187: 10.73293348 | AQ187: 215 | AR187: 449.4663 | AS187: 11.18527808 | AT187: 215 | AU187: 509.7193 | AV187: 7.079389313 | AW187: 215 | AX187: 524.0161 | AY187: 8.064449291 | BA187: =AW187 -> 215 | BB187: =AVERAGE(B187,E187,H187,K187,N187,Q187,T187,W187,Z187,AC187,AF187,AI187,AL187,AO187,AR187,AU187,AX187) -> 538.3185588 | BC187: =AVERAGE(C187,F187,I187,L187,O187,R187,U187,X187,AA187,AD187,AG187,AJ187,AM187,AP187,AS187,AV187,AY187) -> 8.576868305 | BD187: =STDEV(B187,E187,H187,K187,N187,Q187,T187,W187,Z187,AC187,AF187,AI187,AL187,AO187,AR187,AU187,AX187) -> 106.3926084 | BE187: =STDEV(C187,F187,I187,L187,O187,R187,U187,X187,AA187,AD187,AG187,AJ187,AM187,AP187,AS187,AV187,AY187) -> 3.646329795
A188: 216.25 | B188: 485.0424 | C188: 9.011559433 | D188: 216.25 | E188: 429.5563 | F188: 13.59672846 | G188: 216.25 | H188: 664.1824 | I188: 4.865866957 | J188: 216.25 | K188: 477.4666 | L188: 10.84732824 | M188: 216.25 | N188: 656.8098 | O188: 5.041003272 | P188: 216.25 | Q188: 390.847 | R188: 14.0393675 | S188: 216.25 | T188: 610.1822 | U188: 5.875572519 | V188: 216.25 | W188: 665.0461 | X188: 4.625299891 | Y188: 216.25 | Z188: 625.0583 | AA188: 5.724645583 | AB188: 216.25 | AC188: 393.4523 | AD188: 15.50436205 | AE188: 216.25 | AF188: 647.1417 | AG188: 5.197164667 | AH188: 216.25 | AI188: 492.2021 | AJ188: 10.90370774 | AK188: 216.25 | AL188: 688.8519 | AM188: 3.826390403 | AN188: 216.25 | AO188: 438.7119 | AP188: 11.17873501 | AQ188: 216.25 | AR188: 443.2398 | AS188: 11.99236641 | AT188: 216.25 | AU188: 512.1016 | AV188: 7.303925845 | AW188: 216.25 | AX188: 490.6842 | AY188: 7.908505998 | BA188: =AW188 -> 216.25 | BB188: =AVERAGE(B188,E188,H188,K188,N188,Q188,T188,W188,Z188,AC188,AF188,AI188,AL188,AO188,AR188,AU188,AX188) -> 535.9162706 | BC188: =AVERAGE(C188,F188,I188,L188,O188,R188,U188,X188,AA188,AD188,AG188,AJ188,AM188,AP188,AS188,AV188,AY188) -> 8.673089999 | BD188: =STDEV(B188,E188,H188,K188,N188,Q188,T188,W188,Z188,AC188,AF188,AI188,AL188,AO188,AR188,AU188,AX188) -> 105.5295428 | BE188: =STDEV(C188,F188,I188,L188,O188,R188,U188,X188,AA188,AD188,AG188,AJ188,AM188,AP188,AS188,AV188,AY188) -> 3.753678173
A189: 217.5 | B189: 487.0754 | C189: 8.942529989 | D189: 217.5 | E189: 433.0858 | F189: 13.33522356 | G189: 217.5 | H189: 652.9855 | I189: 5.012977099 | J189: 217.5 | K189: 476.765 | L189: 10.5523446 | M189: 217.5 | N189: 646.316 | O189: 5.125299891 | P189: 217.5 | Q189: 393.0731 | R189: 12.99160305 | S189: 217.5 | T189: 605.0804 | U189: 5.83827699 | V189: 217.5 | W189: 633.5177 | X189: 4.857579062 | Y189: 217.5 | Z189: 597.3352 | AA189: 6.010796074 | AB189: 217.5 | AC189: 389.2588 | AD189: 15.89389313 | AE189: 217.5 | AF189: 656.0027 | AG189: 5.041657579 | AH189: 217.5 | AI189: 497.2162 | AJ189: 10.57251908 | AK189: 217.5 | AL189: 648.8701 | AM189: 4.117666303 | AN189: 217.5 | AO189: 446.8761 | AP189: 11.46641221 | AQ189: 217.5 | AR189: 439.1692 | AS189: 12.63227917 | AT189: 217.5 | AU189: 544.6099 | AV189: 7.386259542 | AW189: 217.5 | AX189: 477.6089 | AY189: 8.366194111 | BA189: =AW189 -> 217.5 | BB189: =AVERAGE(B189,E189,H189,K189,N189,Q189,T189,W189,Z189,AC189,AF189,AI189,AL189,AO189,AR189,AU189,AX189) -> 530.8732941 | BC189: =AVERAGE(C189,F189,I189,L189,O189,R189,U189,X189,AA189,AD189,AG189,AJ189,AM189,AP189,AS189,AV189,AY189) -> 8.714324203 | BD189: =STDEV(B189,E189,H189,K189,N189,Q189,T189,W189,Z189,AC189,AF189,AI189,AL189,AO189,AR189,AU189,AX189) -> 97.2607488 | BE189: =STDEV(C189,F189,I189,L189,O189,R189,U189,X189,AA189,AD189,AG189,AJ189,AM189,AP189,AS189,AV189,AY189) -> 3.661801426
A190: 218.75 | B190: 485.7457 | C190: 8.963249727 | D190: 218.75 | E190: 438.3432 | F190: 13.2257361 | G190: 218.75 | H190: 650.0566 | I190: 5.141657579 | J190: 218.75 | K190: 490.2799 | L190: 10.64852781 | M190: 218.75 | N190: 649.408 | O190: 5.128135224 | P190: 218.75 | Q190: 404.8172 | R190: 12.76477644 | S190: 218.75 | T190: 602.6792 | U190: 5.618538713 | V190: 218.75 | W190: 587.9671 | X190: 5.463249727 | Y190: 218.75 | Z190: 568.1352 | AA190: 6.60174482 | AB190: 218.75 | AC190: 380.1354 | AD190: 13.97971647 | AE190: 218.75 | AF190: 658.4521 | AG190: 4.974045802 | AH190: 218.75 | AI190: 502.5028 | AJ190: 10.39803708 | AK190: 218.75 | AL190: 648.2106 | AM190: 4.228244275 | AN190: 218.75 | AO190: 451.423 | AP190: 11.63958561 | AQ190: 218.75 | AR190: 433.0276 | AS190: 12.84154853 | AT190: 218.75 | AU190: 555.7384 | AV190: 7.281025082 | AW190: 218.75 | AX190: 501.8698 | AY190: 9.023555071 | BA190: =AW190 -> 218.75 | BB190: =AVERAGE(B190,E190,H190,K190,N190,Q190,T190,W190,Z190,AC190,AF190,AI190,AL190,AO190,AR190,AU190,AX190) -> 529.9289294 | BC190: =AVERAGE(C190,F190,I190,L190,O190,R190,U190,X190,AA190,AD190,AG190,AJ190,AM190,AP190,AS190,AV190,AY190) -> 8.701257297 | BD190: =STDEV(B190,E190,H190,K190,N190,Q190,T190,W190,Z190,AC190,AF190,AI190,AL190,AO190,AR190,AU190,AX190) -> 92.56662967 | BE190: =STDEV(C190,F190,I190,L190,O190,R190,U190,X190,AA190,AD190,AG190,AJ190,AM190,AP190,AS190,AV190,AY190) -> 3.383925363
A191: 220 | B191: 491.4725 | C191: 9.203380589 | D191: 220 | E191: 439.4029 | F191: 12.67557252 | G191: 220 | H191: 623.4419 | I191: 5.376990185 | J191: 220 | K191: 495.1669 | L191: 10.43642312 | M191: 220 | N191: 654.7547 | O191: 4.947764449 | P191: 220 | Q191: 409.8507 | R191: 12.8263904 | S191: 220 | T191: 621.4762 | U191: 5.33827699 | V191: 220 | W191: 618.2493 | X191: 5.672846238 | Y191: 220 | Z191: 587.5638 | AA191: 6.983315158 | AB191: 220 | AC191: 371.0851 | AD191: 12.40806979 | AE191: 220 | AF191: 658.075 | AG191: 4.902835333 | AH191: 220 | AI191: 501.1862 | AJ191: 10.43609597 | AK191: 220 | AL191: 678.2806 | AM191: 4.000327154 | AN191: 220 | AO191: 449.8884 | AP191: 11.49683751 | AQ191: 220 | AR191: 435.7618 | AS191: 13.50087241 | AT191: 220 | AU191: 535.7586 | AV191: 7.427153762 | AW191: 220 | AX191: 479.4195 | AY191: 8.738167939 | BA191: =AW191 -> 220 | BB191: =AVERAGE(B191,E191,H191,K191,N191,Q191,T191,W191,Z191,AC191,AF191,AI191,AL191,AO191,AR191,AU191,AX191) -> 532.4020059 | BC191: =AVERAGE(C191,F191,I191,L191,O191,R191,U191,X191,AA191,AD191,AG191,AJ191,AM191,AP191,AS191,AV191,AY191) -> 8.610077619 | BD191: =STDEV(B191,E191,H191,K191,N191,Q191,T191,W191,Z191,AC191,AF191,AI191,AL191,AO191,AR191,AU191,AX191) -> 97.266594 | BE191: =STDEV(C191,F191,I191,L191,O191,R191,U191,X191,AA191,AD191,AG191,AJ191,AM191,AP191,AS191,AV191,AY191) -> 3.26207707
A192: 221.25 | B192: 484.0757 | C192: 9.27044711 | D192: 221.25 | E192: 443.9255 | F192: 12.6648855 | G192: 221.25 | H192: 614.185 | I192: 5.614721919 | J192: 221.25 | K192: 499.8289 | L192: 10.40327154 | M192: 221.25 | N192: 673.1406 | O192: 4.773827699 | P192: 221.25 | Q192: 414.4306 | R192: 13.08887677 | S192: 221.25 | T192: 634.7474 | U192: 5.137295529 | V192: 221.25 | W192: 626.3574 | X192: 5.817011996 | Y192: 221.25 | Z192: 572.3574 | AA192: 7.232715376 | AB192: 221.25 | AC192: 364.5512 | AD192: 13.02508179 | AE192: 221.25 | AF192: 654.5789 | AG192: 4.836968375 | AH192: 221.25 | AI192: 498.8372 | AJ192: 10.63544166 | AK192: 221.25 | AL192: 665.8543 | AM192: 4.051035987 | AN192: 221.25 | AO192: 441.8282 | AP192: 11.13402399 | AQ192: 221.25 | AR192: 437.8006 | AS192: 13.39400218 | AT192: 221.25 | AU192: 517.929 | AV192: 7.788222465 | AW192: 221.25 | AX192: 474.9205 | AY192: 8.724427481 | BA192: =AW192 -> 221.25 | BB192: =AVERAGE(B192,E192,H192,K192,N192,Q192,T192,W192,Z192,AC192,AF192,AI192,AL192,AO192,AR192,AU192,AX192) -> 530.5499059 | BC192: =AVERAGE(C192,F192,I192,L192,O192,R192,U192,X192,AA192,AD192,AG192,AJ192,AM192,AP192,AS192,AV192,AY192) -> 8.681897492 | BD192: =STDEV(B192,E192,H192,K192,N192,Q192,T192,W192,Z192,AC192,AF192,AI192,AL192,AO192,AR192,AU192,AX192) -> 98.48278327 | BE192: =STDEV(C192,F192,I192,L192,O192,R192,U192,X192,AA192,AD192,AG192,AJ192,AM192,AP192,AS192,AV192,AY192) -> 3.298417395
A193: 222.5 | B193: 488.7366 | C193: 9.472082879 | D193: 222.5 | E193: 443.3775 | F193: 12.53097056 | G193: 222.5 | H193: 634.1733 | I193: 5.529661941 | J193: 222.5 | K193: 486.5478 | L193: 9.459869138 | M193: 222.5 | N193: 669.0108 | O193: 4.775899673 | P193: 222.5 | Q193: 414.914 | R193: 13.14034896 | S193: 222.5 | T193: 648.8997 | U193: 4.949945474 | V193: 222.5 | W193: 618.1615 | X193: 5.989640131 | Y193: 222.5 | Z193: 576.919 | AA193: 7.284732824 | AB193: 222.5 | AC193: 358.9254 | AD193: 13.1174482 | AE193: 222.5 | AF193: 647.082 | AG193: 4.930752454 | AH193: 222.5 | AI193: 497.7368 | AJ193: 10.80436205 | AK193: 222.5 | AL193: 652.6699 | AM193: 4.19825518 | AN193: 222.5 | AO193: 442.0779 | AP193: 11.12224646 | AQ193: 222.5 | AR193: 435.5051 | AS193: 13.24231189 | AT193: 222.5 | AU193: 523.6877 | AV193: 8.148418757 | AW193: 222.5 | AX193: 484.2777 | AY193: 9.047219193 | BA193: =AW193 -> 222.5 | BB193: =AVERAGE(B193,E193,H193,K193,N193,Q193,T193,W193,Z193,AC193,AF193,AI193,AL193,AO193,AR193,AU193,AX193) -> 530.7472176 | BC193: =AVERAGE(C193,F193,I193,L193,O193,R193,U193,X193,AA193,AD193,AG193,AJ193,AM193,AP193,AS193,AV193,AY193) -> 8.69083328 | BD193: =STDEV(B193,E193,H193,K193,N193,Q193,T193,W193,Z193,AC193,AF193,AI193,AL193,AO193,AR193,AU193,AX193) -> 98.8907424 | BE193: =STDEV(C193,F193,I193,L193,O193,R193,U193,X193,AA193,AD193,AG193,AJ193,AM193,AP193,AS193,AV193,AY193) -> 3.257361532
A194: 223.75 | B194: 485.5022 | C194: 9.398691385 | D194: 223.75 | E194: 443.6967 | F194: 12.51515812 | G194: 223.75 | H194: 625.2947 | I194: 5.607524537 | J194: 223.75 | K194: 505.8507 | L194: 8.810032715 | M194: 223.75 | N194: 665.9962 | O194: 4.754525627 | P194: 223.75 | Q194: 416.8102 | R194: 13.03206107 | S194: 223.75 | T194: 635.2914 | U194: 5.030970556 | V194: 223.75 | W194: 616.2836 | X194: 6.174372955 | Y194: 223.75 | Z194: 579.1369 | AA194: 7.160414395 | AB194: 223.75 | AC194: 346.4956 | AD194: 13.39029444 | AE194: 223.75 | AF194: 654.6998 | AG194: 4.941112323 | AH194: 223.75 | AI194: 495.0857 | AJ194: 10.8351145 | AK194: 223.75 | AL194: 608.6637 | AM194: 4.472955289 | AN194: 223.75 | AO194: 441.5833 | AP194: 10.7 | AQ194: 223.75 | AR194: 433.1415 | AS194: 13.19803708 | AT194: 223.75 | AU194: 519.2722 | AV194: 8.16259542 | AW194: 223.75 | AX194: 450.3194 | AY194: 8.901090513 | BA194: =AW194 -> 223.75 | BB194: =AVERAGE(B194,E194,H194,K194,N194,Q194,T194,W194,Z194,AC194,AF194,AI194,AL194,AO194,AR194,AU194,AX194) -> 524.8896353 | BC194: =AVERAGE(C194,F194,I194,L194,O194,R194,U194,X194,AA194,AD194,AG194,AJ194,AM194,AP194,AS194,AV194,AY194) -> 8.652055937 | BD194: =STDEV(B194,E194,H194,K194,N194,Q194,T194,W194,Z194,AC194,AF194,AI194,AL194,AO194,AR194,AU194,AX194) -> 97.20954832 | BE194: =STDEV(C194,F194,I194,L194,O194,R194,U194,X194,AA194,AD194,AG194,AJ194,AM194,AP194,AS194,AV194,AY194) -> 3.203911166
A195: 225 | B195: 478.9489 | C195: 9.472519084 | D195: 225 | E195: 437.1858 | F195: 12.09422028 | G195: 225 | H195: 625.0969 | I195: 5.656597601 | J195: 225 | K195: 430.2361 | L195: 7.181461287 | M195: 225 | N195: 661.686 | O195: 4.813631407 | P195: 225 | Q195: 416.2514 | R195: 12.4304253 | S195: 225 | T195: 634.0223 | U195: 5.096292257 | V195: 225 | W195: 614.3075 | X195: 6.249727372 | Y195: 225 | Z195: 573.9722 | AA195: 7.291603053 | AB195: 225 | AC195: 351.0863 | AD195: 14.86281352 | AE195: 225 | AF195: 669.5534 | AG195: 4.863685932 | AH195: 225 | AI195: 494.699 | AJ195: 10.86324973 | AK195: 225 | AL195: 588.0441 | AM195: 4.547219193 | AN195: 225 | AO195: 456.1036 | AP195: 11.13587786 | AQ195: 225 | AR195: 434.569 | AS195: 13.31613959 | AT195: 225 | AU195: 463.2343 | AV195: 8.053762268 | AW195: 225 | AX195: 457.3198 | AY195: 9.371973828 | BA195: =AW195 -> 225 | BB195: =AVERAGE(B195,E195,H195,K195,N195,Q195,T195,W195,Z195,AC195,AF195,AI195,AL195,AO195,AR195,AU195,AX195) -> 516.8421529 | BC195: =AVERAGE(C195,F195,I195,L195,O195,R195,U195,X195,AA195,AD195,AG195,AJ195,AM195,AP195,AS195,AV195,AY195) -> 8.664776445 | BD195: =STDEV(B195,E195,H195,K195,N195,Q195,T195,W195,Z195,AC195,AF195,AI195,AL195,AO195,AR195,AU195,AX195) -> 99.31767675 | BE195: =STDEV(C195,F195,I195,L195,O195,R195,U195,X195,AA195,AD195,AG195,AJ195,AM195,AP195,AS195,AV195,AY195) -> 3.320325435
A196: 226.25 | B196: 470.924 | C196: 9.166848419 | D196: 226.25 | E196: 417.701 | F196: 9.777753544 | G196: 226.25 | H196: 628.7 | I196: 5.477971647 | J196: 226.25 | K196: 372.2168 | L196: 6.49040349 | M196: 226.25 | N196: 654.9227 | O196: 4.912322792 | P196: 226.25 | Q196: 419.2699 | R196: 12.4785169 | S196: 226.25 | T196: 641.4328 | U196: 5.091821156 | V196: 226.25 | W196: 603.5387 | X196: 6.016357688 | Y196: 226.25 | Z196: 553.168 | AA196: 7.619411123 | AB196: 226.25 | AC196: 346.7419 | AD196: 12.27589967 | AE196: 226.25 | AF196: 665.9698 | AG196: 4.893238822 | AH196: 226.25 | AI196: 497.2918 | AJ196: 10.80163577 | AK196: 226.25 | AL196: 588.8494 | AM196: 4.57044711 | AN196: 226.25 | AO196: 458.4228 | AP196: 11.08396947 | AQ196: 226.25 | AR196: 436.2766 | AS196: 13.61777535 | AT196: 226.25 | AU196: 475.1923 | AV196: 8.531624864 | AW196: 226.25 | AX196: 440.2956 | AY196: 8.343620502 | BA196: =AW196 -> 226.25 | BB196: =AVERAGE(B196,E196,H196,K196,N196,Q196,T196,W196,Z196,AC196,AF196,AI196,AL196,AO196,AR196,AU196,AX196) -> 510.0537706 | BC196: =AVERAGE(C196,F196,I196,L196,O196,R196,U196,X196,AA196,AD196,AG196,AJ196,AM196,AP196,AS196,AV196,AY196) -> 8.302918725 | BD196: =STDEV(B196,E196,H196,K196,N196,Q196,T196,W196,Z196,AC196,AF196,AI196,AL196,AO196,AR196,AU196,AX196) -> 103.6116892 | BE196: =STDEV(C196,F196,I196,L196,O196,R196,U196,X196,AA196,AD196,AG196,AJ196,AM196,AP196,AS196,AV196,AY196) -> 2.986917679
A197: 227.5 | B197: 447.6773 | C197: 7.830643402 | D197: 227.5 | E197: 445.8848 | F197: 8.775572519 | G197: 227.5 | H197: 637.7703 | I197: 5.259432933 | J197: 227.5 | K197: 357.4814 | L197: 6.855725191 | M197: 227.5 | N197: 651.1075 | O197: 5.032279171 | P197: 227.5 | Q197: 425.3309 | R197: 12.60610687 | S197: 227.5 | T197: 637.7829 | U197: 5.188222465 | V197: 227.5 | W197: 624.9831 | X197: 5.765757906 | Y197: 227.5 | Z197: 555.5251 | AA197: 8.186150491 | AB197: 227.5 | AC197: 292.9686 | AD197: 7.570119956 | AE197: 227.5 | AF197: 659.7796 | AG197: 4.998146129 | AH197: 227.5 | AI197: 498.5612 | AJ197: 10.73533261 | AK197: 227.5 | AL197: 453.5815 | AM197: 5.342311887 | AN197: 227.5 | AO197: 457.9681 | AP197: 11.09454744 | AQ197: 227.5 | AR197: 435.7367 | AS197: 13.43860414 | AT197: 227.5 | AU197: 478.38 | AV197: 8.161941112 | AW197: 227.5 | AX197: 469.2787 | AY197: 7.540348964 | BA197: =AW197 -> 227.5 | BB197: =AVERAGE(B197,E197,H197,K197,N197,Q197,T197,W197,Z197,AC197,AF197,AI197,AL197,AO197,AR197,AU197,AX197) -> 501.7528059 | BC197: =AVERAGE(C197,F197,I197,L197,O197,R197,U197,X197,AA197,AD197,AG197,AJ197,AM197,AP197,AS197,AV197,AY197) -> 7.904779011 | BD197: =STDEV(B197,E197,H197,K197,N197,Q197,T197,W197,Z197,AC197,AF197,AI197,AL197,AO197,AR197,AU197,AX197) -> 108.6447569 | BE197: =STDEV(C197,F197,I197,L197,O197,R197,U197,X197,AA197,AD197,AG197,AJ197,AM197,AP197,AS197,AV197,AY197) -> 2.685443568
A198: 228.75 | B198: 491.014 | C198: 6.983533261 | D198: 228.75 | E198: 475.551 | F198: 9.196619411 | G198: 228.75 | H198: 649.4151 | I198: 5.136968375 | J198: 228.75 | K198: 478.7873 | L198: 8.17568157 | M198: 228.75 | N198: 646.6549 | O198: 5.164449291 | P198: 228.75 | Q198: 426.6218 | R198: 11.96444929 | S198: 228.75 | T198: 627.7505 | U198: 5.19214831 | V198: 228.75 | W198: 619.4736 | X198: 5.745147219 | Y198: 228.75 | Z198: 556.9304 | AA198: 8.299890949 | AB198: 228.75 | AC198: 383.9296 | AD198: 7.804143948 | AE198: 228.75 | AF198: 663.2353 | AG198: 5.055398037 | AH198: 228.75 | AI198: 491.1683 | AJ198: 10.53413304 | AK198: 228.75 | AL198: 560.9531 | AM198: 4.909814613 | AN198: 228.75 | AO198: 455.5303 | AP198: 11.24045802 | AQ198: 228.75 | AR198: 432.7969 | AS198: 12.53260632 | AT198: 228.75 | AU198: 478.0541 | AV198: 7.698473282 | AW198: 228.75 | AX198: 526.045 | AY198: 6.921046892 | BA198: =AW198 -> 228.75 | BB198: =AVERAGE(B198,E198,H198,K198,N198,Q198,T198,W198,Z198,AC198,AF198,AI198,AL198,AO198,AR198,AU198,AX198) -> 527.2888941 | BC198: =AVERAGE(C198,F198,I198,L198,O198,R198,U198,X198,AA198,AD198,AG198,AJ198,AM198,AP198,AS198,AV198,AY198) -> 7.797350696 | BD198: =STDEV(B198,E198,H198,K198,N198,Q198,T198,W198,Z198,AC198,AF198,AI198,AL198,AO198,AR198,AU198,AX198) -> 87.7090739 | BE198: =STDEV(C198,F198,I198,L198,O198,R198,U198,X198,AA198,AD198,AG198,AJ198,AM198,AP198,AS198,AV198,AY198) -> 2.546941519
A199: 230 | B199: 566.4129 | C199: 6.397491821 | D199: 230 | E199: 432.577 | F199: 9.199018539 | G199: 230 | H199: 644.9588 | I199: 5.109814613 | J199: 230 | K199: 479.0303 | L199: 8.495201745 | M199: 230 | N199: 633.8012 | O199: 5.40174482 | P199: 230 | Q199: 429.7675 | R199: 11.49258451 | S199: 230 | T199: 647.8772 | U199: 4.964667394 | V199: 230 | W199: 618.1113 | X199: 5.789640131 | Y199: 230 | Z199: 559.3473 | AA199: 8.211232279 | AB199: 230 | AC199: 474.5236 | AD199: 7.361286805 | AE199: 230 | AF199: 657.0305 | AG199: 5.126172301 | AH199: 230 | AI199: 338.0963 | AJ199: 7.137186478 | AK199: 230 | AL199: 607.4377 | AM199: 4.661613959 | AN199: 230 | AO199: 457.227 | AP199: 11.50174482 | AQ199: 230 | AR199: 437.8938 | AS199: 12.37153762 | AT199: 230 | AU199: 514.815 | AV199: 7.165866957 | AW199: 230 | AX199: 569.5113 | AY199: 6.430098146 | BA199: =AW199 -> 230 | BB199: =AVERAGE(B199,E199,H199,K199,N199,Q199,T199,W199,Z199,AC199,AF199,AI199,AL199,AO199,AR199,AU199,AX199) -> 533.4363941 | BC199: =AVERAGE(C199,F199,I199,L199,O199,R199,U199,X199,AA199,AD199,AG199,AJ199,AM199,AP199,AS199,AV199,AY199) -> 7.45981782 | BD199: =STDEV(B199,E199,H199,K199,N199,Q199,T199,W199,Z199,AC199,AF199,AI199,AL199,AO199,AR199,AU199,AX199) -> 95.9753107 | BE199: =STDEV(C199,F199,I199,L199,O199,R199,U199,X199,AA199,AD199,AG199,AJ199,AM199,AP199,AS199,AV199,AY199) -> 2.447258616
A200: 231.25 | B200: 594.0362 | C200: 6.047110142 | D200: 231.25 | E200: 416.2818 | F200: 10.91897492 | G200: 231.25 | H200: 650.9955 | I200: 4.952671756 | J200: 231.25 | K200: 523.554 | L200: 9.161177754 | M200: 231.25 | N200: 640.3523 | O200: 5.429225736 | P200: 231.25 | Q200: 427.79 | R200: 11.31624864 | S200: 231.25 | T200: 647.5507 | U200: 4.907524537 | V200: 231.25 | W200: 624.9757 | X200: 5.814503817 | Y200: 231.25 | Z200: 549.0227 | AA200: 7.879716467 | AB200: 231.25 | AC200: 530.7728 | AD200: 6.537186478 | AE200: 231.25 | AF200: 653.0727 | AG200: 5.114285714 | AH200: 231.25 | AI200: 450.2363 | AJ200: 7.2608506 | AK200: 231.25 | AL200: 437.7798 | AM200: 5.654961832 | AN200: 231.25 | AO200: 454.8928 | AP200: 11.45485278 | AQ200: 231.25 | AR200: 438.4573 | AS200: 12.33424209 | AT200: 231.25 | AU200: 562.6792 | AV200: 6.942093784 | AW200: 231.25 | AX200: 579.2927 | AY200: 5.975463468 | BA200: =AW200 -> 231.25 | BB200: =AVERAGE(B200,E200,H200,K200,N200,Q200,T200,W200,Z200,AC200,AF200,AI200,AL200,AO200,AR200,AU200,AX200) -> 540.1025 | BC200: =AVERAGE(C200,F200,I200,L200,O200,R200,U200,X200,AA200,AD200,AG200,AJ200,AM200,AP200,AS200,AV200,AY200) -> 7.511828854 | BD200: =STDEV(B200,E200,H200,K200,N200,Q200,T200,W200,Z200,AC200,AF200,AI200,AL200,AO200,AR200,AU200,AX200) -> 87.79841359 | BE200: =STDEV(C200,F200,I200,L200,O200,R200,U200,X200,AA200,AD200,AG200,AJ200,AM200,AP200,AS200,AV200,AY200) -> 2.541288946
... 141 more rows

Sheet Albedo details
A1: ='Global data DD.MM.YY'!A1 -> Snow Pits Dome Fuji 2018/2019 | B1: SSA data, exported from the ICE Cube software
A2: ='Global data DD.MM.YY'!A2 -> Potential use of the pit SP: Snow Physic R: Radar ST: Satellite MB: Mass Balance | B2: ='Global data DD.MM.YY'!B2 -> SP
A3: ='Global data DD.MM.YY'!A3 -> Closest Point on Japanese Traverse | B3: ='Global data DD.MM.YY'!B3 -> MD364
A4: ='Global data DD.MM.YY'!A4 -> South position (decimal) | B4: ='Global data DD.MM.YY'!B4 -> 74.00731
A5: ='Global data DD.MM.YY'!A5 -> East position (decimal) | B5: ='Global data DD.MM.YY'!B5 -> 42.99695
A6: ='Global data DD.MM.YY'!A6 -> Altitude (m a.s.l.) | B6: ='Global data DD.MM.YY'!B6 -> 3300
A7: ='Global data DD.MM.YY'!A7 -> Date (DD.MM.YY) | B7: ='Global data DD.MM.YY'!B7 -> 30.11.18
A8: ='Global data DD.MM.YY'!A8 -> Time UTC start | B8: ='Global data DD.MM.YY'!B8 -> 17:00:00
A9: ='Global data DD.MM.YY'!A9 -> Time UTC end | B9: ='Global data DD.MM.YY'!B9 -> 18:30:00
A10: ='Global data DD.MM.YY'!A10 -> Observer(s) | B10: ='Global data DD.MM.YY'!B10 -> JCG
A11: ='Global data DD.MM.YY'!A11 -> General comments (weather, clouds, other remarks) | B11: no cloud, blue sky, but albedo was just a test and was measured close to a truck, so shadow effects are just too strong

Sheet Snow surface variability details
A1: ='Global data DD.MM.YY'!A1 -> Snow Pits Dome Fuji 2018/2019 | B1: SSA data, exported from the ICE Cube software
A2: ='Global data DD.MM.YY'!A2 -> Potential use of the pit SP: Snow Physic R: Radar ST: Satellite MB: Mass Balance | B2: ='Global data DD.MM.YY'!B2 -> SP
A3: ='Global data DD.MM.YY'!A3 -> Closest Point on Japanese Traverse | B3: ='Global data DD.MM.YY'!B3 -> MD364
A4: ='Global data DD.MM.YY'!A4 -> South position (decimal) | B4: ='Global data DD.MM.YY'!B4 -> 74.00731
A5: ='Global data DD.MM.YY'!A5 -> East position (decimal) | B5: ='Global data DD.MM.YY'!B5 -> 42.99695
A6: ='Global data DD.MM.YY'!A6 -> Altitude (m a.s.l.) | B6: ='Global data DD.MM.YY'!B6 -> 3300
A7: ='Global data DD.MM.YY'!A7 -> Date (DD.MM.YY) | B7: ='Global data DD.MM.YY'!B7 -> 30.11.18
A8: ='Global data DD.MM.YY'!A8 -> Time UTC start | B8: ='Global data DD.MM.YY'!B8 -> 17:00:00
A9: ='Global data DD.MM.YY'!A9 -> Time UTC end | B9: ='Global data DD.MM.YY'!B9 -> 18:30:00
A10: ='Global data DD.MM.YY'!A10 -> Observer(s) | B10: ='Global data DD.MM.YY'!B10 -> JCG
A11: ='Global data DD.MM.YY'!A11 -> General comments (weather, clouds, other remarks)
